Workbook

Sheet Description
C5: Model Layout
C6: This model forms part of the broader post school education and training (PSET) system costing initiative
C7: 'This model forecasts expenditure of the Community Colleges up to 2030 based on the targets and objectives of White Paper on Post-School Education.

Sheet Dashboard
C2: INPUTS & ASSUMPTIONS | M2: OUTPUTS | AL2: CPI Inflation
N3: 2030 | AK3: Real | AL3: 0
N4: Status quo | O4: Full Policy | P4: Mixed | Q4: 2014 | AK4: Nominal | AL4: 0.062
E5: Status quo | F5: Full Policy | G5: Mixed | H5: 2014 | M5: Total Spending (R'm) 2030 | N5: =Expenditure!S39/1000000 -> 14163.28997 | O5: =Expenditure!S51/1000000 -> 17956.3476 | P5: =Expenditure!S63/1000000 -> 12283.74432 | Q5: =Expenditure!C39/1000000 -> 1843.818969
C6: Enrolment scenarios | D6: Target Enrolments (2030) | E6: 1000000 | F6: 1000000 | G6: 750000 | H6: =Enrolments!C2 -> 262621 | M6: Total number of completions | N6: ='Learner Numbers'!S35 -> 125713 | O6: ='Learner Numbers'!S39 -> 341249 | P6: ='Learner Numbers'!S43 -> 203685 | Q6: ='Learner Numbers'!C35 -> 33015
D7: Occupational % enrol | E7: 0.029 | F7: 0.35 | G7: 0.25 | H7: =E7 -> 0.029 | M7: Total Cumulative Spending (R'm) | N7: =Expenditure!T39/1000000 -> 111565.0096 | O7: =Expenditure!T51/1000000 -> 151165.1984 | P7: =Expenditure!T63/1000000 -> 107605.3328 | Q7: N/A
C8: Performance | D8: AET Throughput % | E8: 0.1745255015 | F8: 0.2 | G8: 0.1745255015 | H8: 0.1745255015 | M8: Infrastructure Spend (R'm) | N8: =Infrastructure!R30 -> 0 | O8: =Infrastructure!R31/1000000 -> 3134.508144 | P8: =Infrastructure!R32/1000000 -> 695.8625795 | Q8: N/A
C9: Student:Lecturer ratio | D9: All enrolments | E9: 18.25611654 | F9: 23 | G9: 23 | H9: =Expenditure!C8 -> 18 | M9: Cumulative Infrastructure Spend | N9: =Infrastructure!S30 -> 0 | O9: =Infrastructure!S31/1000000 -> 31995.98224 | P9: =Infrastructure!S32/1000000 -> 7084.540741 | Q9: N/A
C10: Direct Costs | D10: Direct Learner Cost | E10: 214 | F10: 3600 | G10: 2600 | H10: 525 | M10: Spend per FTE | N10: =N5/Enrolments!S90*1000000 -> 15522.23226 | O10: =O5/Enrolments!S98*1000000 -> 26621.71624 | P10: =P5/Enrolments!S106*1000000 -> 21910.8037 | Q10: =Q5/Enrolments!C90*1000000 -> 7694.472624
C11: Inflation | D11: PSET Inflation | E11: Nominal | G11: =IF(E11=AK3,AL3,AL4) -> 0.062 | M11: Spend per graduate | N11: =N5/N6*1000000 -> 112663.6861 | O11: =O5/O6*1000000 -> 52619.48783 | P11: =P5/P6*1000000 -> 60307.55491 | Q11: =Q5/Q6*1000000 -> 55847.91667
D15: Heading
D16: Item description
D17: User-defined Input
D18: Fixed Assumption
D19: Key output

Sheet Expenditure
C4: =Dashboard!N4 -> Status quo | D4: =Dashboard!O4 -> Full Policy | E4: =Dashboard!P4 -> Mixed | F4: Assumptions
B5: CPI Inflation (%) | C5: ='Funding Dashboard'!E8 -> 0 | D5: ='Funding Dashboard'!F8 -> 0 | E5: ='Funding Dashboard'!G8 -> 0
A6: Lecturing Costs | B6: Average salary per educator | C6: 83914 | D6: 274177.4488 | E6: 274177.4488 | F6: Based on existing data and average hours worked per week
B7: Number of lecturers | C7: 16063 | D7: 3790 | E7: 3790 | F7: Current existing lecturers employed
B8: Lecturer:Student ratio | C8: 18 | D8: =Dashboard!F9 -> 23 | E8: =Dashboard!G9 -> 23
B9: Wage Inflation | C9: =Dashboard!G11 -> 0.062 | D9: N/A | E9: N/A
B10: Lecturer:Post ratio | C10: 1 | D10: 4 | E10: 4.3
B11: Enrolmentts | C11: =Dashboard!E6 -> 1000000 | D11: =Dashboard!F6 -> 1000000 | E11: =Dashboard!G6 -> 750000 | F11: Estimations based on white paper targets
B12: Lecturer development cost (%) | C12: 0.011 | D12: 0.015 | E12: 0.015
B13: Average salary per centre manager | C13: =14000*12 -> 168000 | D13: =14000*12 -> 168000 | E13: =14000*12 -> 168000
B14: Direct Learning Cost | C14: =Dashboard!E10 -> 214 | D14: =Dashboard!F10 -> 3600 | E14: =Dashboard!G10 -> 2600
B15: Direct Learning Inflation | C15: =Dashboard!G11 -> 0.062 | D15: =Dashboard!G11 -> 0.062 | E15: =Dashboard!G11 -> 0.062
A16: Indirect Programme Costs | B16: Number of AET Centres | C16: 3276 | D16: 3276 | E16: 3276
B17: Consumables per centre | C17: 6362.623626 | D17: 6900 | E17: 6900
B18: Centre operational cost | C18: 14846.12179 | D18: 36048 | E18: 26048 | F18: Based on existing PALC data
B19: % centres requiring utility services | C19: 0.32 | D19: 0.32 | E19: 0.32 | F19: Estimate based on interviews with college principals school
A20: Management and Support | B20: Number of Community Colleges | C20: 9 | D20: 9 | E20: 9
B21: Management and support cost | C21: 26976701.95 | D21: 28864833.33 | E21: 28864833.33 | F21: Based on data provided by DHET on provincial support
B22: Proportion of additional learners requiring college infrastructure | C22: 0 | D22: 0.5 | E22: 0.15 | F22: Based on DHET Infrastructure costingestimates
S23: =S25/SUM(Enrolments!S91:S95) -> 15111.99646
C25: =C39-C38 -> 1729578834 | S25: =S39-S38 -> 1.370131997e+10
C28: 2014 | D28: 2015 | E28: 2016 | F28: 2017 | G28: 2018 | H28: 2019 | I28: 2020 | J28: 2021 | K28: 2022 | L28: 2023 | M28: 2024 | N28: 2025 | O28: 2026 | P28: 2027 | Q28: 2028 | R28: 2029 | S28: 2030 | U28: =(T48-S23)/S23 -> 0.355289986
B29: Lecturing costs | C29: =C31*$C$7 -> 1347910582 | D29: =D31*D$30 -> 1451849148 | E29: =E31*E$30 -> 1789598436 | F29: =F31*F$30 -> 2163647728 | G29: =G31*G$30 -> 2577199916 | H29: =H31*H$30 -> 3033715513 | I29: 3536932287 | J29: 4090886340 | K29: 4699934727 | L29: 5368779747 | M29: 6102495000 | N29: 6906553356 | O29: 7786856957 | P29: 8749769413 | Q29: 9802150336 | R29: 1.095139238e+10 | S29: 1.220546097e+10
B30: Lecturers required | C30: =C7 -> 16063 | D30: =Enrolments!D2/Expenditure!$C$8 -> 16291.55556 | E30: =Enrolments!E2/Expenditure!$C$8 -> 18909.15556 | F30: =Enrolments!F2/Expenditure!$C$8 -> 21526.75556 | G30: =Enrolments!G2/Expenditure!$C$8 -> 24144.35556 | H30: =Enrolments!H2/Expenditure!$C$8 -> 26761.95556 | I30: =Enrolments!I2/Expenditure!$C$8 -> 29379.55556 | J30: =Enrolments!J2/Expenditure!$C$8 -> 31997.15556 | K30: =Enrolments!K2/Expenditure!$C$8 -> 34614.75556 | L30: =Enrolments!L2/Expenditure!$C$8 -> 37232.35556 | M30: =Enrolments!M2/Expenditure!$C$8 -> 39849.95556 | N30: =Enrolments!N2/Expenditure!$C$8 -> 42467.55556 | O30: =Enrolments!O2/Expenditure!$C$8 -> 45085.15556 | P30: =Enrolments!P2/Expenditure!$C$8 -> 47702.75556 | Q30: =Enrolments!Q2/Expenditure!$C$8 -> 50320.35556 | R30: =Enrolments!R2/Expenditure!$C$8 -> 52937.95556 | S30: =Enrolments!S2/Expenditure!$C$8 -> 55555.55556
B31: Average lecturer salary | C31: =$C$6 -> 83914 | D31: =C31*(1+$C$9)/(1+$C$5) -> 89116.668 | E31: =D31*(1+$C$9)/(1+$C$5) -> 94641.90142 | F31: 100509.6993 | G31: 106741.3007 | H31: 113359.2613 | I31: 120387.5355 | J31: 127851.5627 | K31: 135778.3596 | L31: 144196.6179 | M31: 153136.8082 | N31: 162631.2903 | O31: 172714.4303 | P31: 183422.725 | Q31: 194794.9339 | R31: 206872.2198 | S31: 219698.2975
B32: Lecturer development | C32: =C29*$C$12 -> 14827016.4 | D32: =D29*$C$12 -> 15970340.62 | E32: 19685582.8 | F32: 23800125.01 | G32: 28349199.07 | H32: 33370870.64 | I32: 38906255.16 | J32: 44999749.74 | K32: 51699282 | L32: 59056577.22 | M32: 67127445.01 | N32: 75972086.92 | O32: 85655426.53 | P32: 96247463.54 | Q32: 107823653.7 | R32: 120465316.2 | S32: 134260070.7
B33: Management and Support | C33: =$C$21*$C$20 -> 242790317.5 | D33: =C33*(1+$C$9)/(1+$C$5) -> 257843317.2 | E33: =D33*(1+$C$9)/(1+$C$5) -> 273829602.9 | F33: 290807038.3 | G33: 308837074.6 | H33: 327984973.3 | I33: 348320041.6 | J33: 369915884.2 | K33: 392850669 | L33: 417207410.5 | M33: 443074269.9 | N33: 470544874.7 | O33: 499718656.9 | P33: 530701213.6 | Q33: 563604688.9 | R33: 598548179.6 | S33: 635658166.7
B34: Indirect costs per centre | C34: =$C$17+$C$18 -> 21208.74542 | D34: =C34*(1+$C$15)/(1+$C$5) -> 22523.68764 | E34: =D34*(1+$C$15)/(1+$C$5) -> 23920.15627 | F34: =E34*(1+$C$15)/(1+$C$5) -> 25403.20596 | G34: =F34*(1+$C$15)/(1+$C$5) -> 26978.20473 | H34: =G34*(1+$C$15)/(1+$C$5) -> 28650.85342 | I34: =H34*(1+$C$15)/(1+$C$5) -> 30427.20633 | J34: =I34*(1+$C$15)/(1+$C$5) -> 32313.69313 | K34: =J34*(1+$C$15)/(1+$C$5) -> 34317.1421 | L34: =K34*(1+$C$15)/(1+$C$5) -> 36444.80491 | M34: =L34*(1+$C$15)/(1+$C$5) -> 38704.38282 | N34: =M34*(1+$C$15)/(1+$C$5) -> 41104.05455 | O34: =N34*(1+$C$15)/(1+$C$5) -> 43652.50593 | P34: =O34*(1+$C$15)/(1+$C$5) -> 46358.9613 | Q34: =P34*(1+$C$15)/(1+$C$5) -> 49233.2169 | R34: =Q34*(1+$C$15)/(1+$C$5) -> 52285.67635 | S34: =R34*(1+$C$15)/(1+$C$5) -> 55527.38828
B35: Total indirect costs | C35: =C34*$C$16 -> 69479850 | D35: =D34*$C$16 -> 73787600.7 | E35: 78362431.94 | F35: 83220902.72 | G35: 88380598.69 | H35: 93860195.81 | I35: 99679527.95 | J35: 105859658.7 | K35: 112422957.5 | L35: 119393180.9 | M35: 126795558.1 | N35: 134656882.7 | O35: 143005609.4 | P35: 151871957.2 | Q35: 161288018.6 | R35: 171287875.7 | S35: 181907724
B36: Direct cost per learner | C36: =C14 -> 214 | D36: =C36*(1+$C$15)/(1+$C$5) -> 227.268 | E36: =D36*(1+$C$15)/(1+$C$5) -> 241.358616 | F36: =E36*(1+$C$15)/(1+$C$5) -> 256.3228502 | G36: =F36*(1+$C$15)/(1+$C$5) -> 272.2148669 | H36: =G36*(1+$C$15)/(1+$C$5) -> 289.0921887 | I36: =H36*(1+$C$15)/(1+$C$5) -> 307.0159043 | J36: =I36*(1+$C$15)/(1+$C$5) -> 326.0508904 | K36: =J36*(1+$C$15)/(1+$C$5) -> 346.2660456 | L36: =K36*(1+$C$15)/(1+$C$5) -> 367.7345405 | M36: =L36*(1+$C$15)/(1+$C$5) -> 390.534082 | N36: =M36*(1+$C$15)/(1+$C$5) -> 414.747195 | O36: =N36*(1+$C$15)/(1+$C$5) -> 440.4615211 | P36: =O36*(1+$C$15)/(1+$C$5) -> 467.7701354 | Q36: =P36*(1+$C$15)/(1+$C$5) -> 496.7718838 | R36: =Q36*(1+$C$15)/(1+$C$5) -> 527.5717406 | S36: =R36*(1+$C$15)/(1+$C$5) -> 560.2811886
B37: Total direct cost | C37: =(C36*C40) -> 54571068.07 | D37: =(D36*D40) -> 64713155.76 | E37: 79767627.73 | F37: 96440096.85 | G37: 114873325.4 | H37: 135221558.5 | I37: 157651399.5 | J37: 182342749.1 | K37: 209489814.1 | L37: 239302189.6 | M37: 272006020.8 | N37: 307845249.5 | O37: 347082951.4 | P37: 390002771.1 | Q37: 436910461.7 | R37: 488135535.2 | S37: 544033034.1
B38: Total occupational Costs | C38: =Enrolments!$G$84*Enrolments!C96 -> 114240135 | D38: =(Enrolments!$G$84*Enrolments!D96)*(1+$C$15)/(1+$C$5) -> 135471778.6 | E38: =(Enrolments!$G$84*Enrolments!E96)*(1+$C$15)/(1+$C$5) -> 157238326.7 | F38: =(Enrolments!$G$84*Enrolments!F96)*(1+$C$15)/(1+$C$5) -> 179004874.8 | G38: =(Enrolments!$G$84*Enrolments!G96)*(1+$C$15)/(1+$C$5) -> 200771422.8 | H38: =(Enrolments!$G$84*Enrolments!H96)*(1+$C$15)/(1+$C$5) -> 222537970.9 | I38: =(Enrolments!$G$84*Enrolments!I96)*(1+$C$15)/(1+$C$5) -> 244304519 | J38: =(Enrolments!$G$84*Enrolments!J96)*(1+$C$15)/(1+$C$5) -> 266071067.1 | K38: =(Enrolments!$G$84*Enrolments!K96)*(1+$C$15)/(1+$C$5) -> 287837615.2 | L38: =(Enrolments!$G$84*Enrolments!L96)*(1+$C$15)/(1+$C$5) -> 309604163.3 | M38: =(Enrolments!$G$84*Enrolments!M96)*(1+$C$15)/(1+$C$5) -> 331370711.4 | N38: =(Enrolments!$G$84*Enrolments!N96)*(1+$C$15)/(1+$C$5) -> 353137259.5 | O38: =(Enrolments!$G$84*Enrolments!O96)*(1+$C$15)/(1+$C$5) -> 374903807.6 | P38: =(Enrolments!$G$84*Enrolments!P96)*(1+$C$15)/(1+$C$5) -> 396670355.7 | Q38: =(Enrolments!$G$84*Enrolments!Q96)*(1+$C$15)/(1+$C$5) -> 418436903.8 | R38: =(Enrolments!$G$84*Enrolments!R96)*(1+$C$15)/(1+$C$5) -> 440203451.9 | S38: =(Enrolments!$G$84*Enrolments!S96)*(1+$C$15)/(1+$C$5) -> 461970000
B39: Total costs | C39: =C37+C35+C33+C32+C29+C38 -> 1843818969 | D39: 1999635340 | E39: 2398482008 | F39: 2836920765 | G39: 3318411536 | H39: 3846691082 | I39: 4425794031 | J39: 5060075449 | K39: 5754235065 | L39: 6513343269 | M39: 7342869006 | N39: 8248709709 | O39: 9237223409 | P39: 1.031526317e+10 | Q39: 1.149021406e+10 | R39: 1.277003274e+10 | S39: 1.416328997e+10 | T39: =SUM(C39:S39) -> 1.115650096e+11
A40: Status Quo | B40: =Enrolments!B2:S2 -> Total Enrolment | C40: =Enrolments!C63 -> 255004.991 | D40: =Enrolments!D63 -> 284743.808 | E40: =Enrolments!E63 -> 330494.2208 | F40: =Enrolments!F63 -> 376244.6336 | G40: =Enrolments!G63 -> 421995.0464 | H40: =Enrolments!H63 -> 467745.4592 | I40: =Enrolments!I63 -> 513495.872 | J40: =Enrolments!J63 -> 559246.2848 | K40: =Enrolments!K63 -> 604996.6976 | L40: =Enrolments!L63 -> 650747.1104 | M40: =Enrolments!M63 -> 696497.5232 | N40: =Enrolments!N63 -> 742247.936 | O40: =Enrolments!O63 -> 787998.3488 | P40: =Enrolments!P63 -> 833748.7616 | Q40: =Enrolments!Q63 -> 879499.1744 | R40: =Enrolments!R63 -> 925249.5872 | S40: =Enrolments!S63 -> 971000
B41: Lecturing costs | C41: =C42*C43 -> 1347910582 | D41: =D42*D43 -> 1431481038 | E41: =E42*E43 -> 1050663359 | F41: 1203707457 | G41: 1371690273 | H41: 1555875906 | I41: 1757627781 | J41: 1978416101 | K41: 2219825852 | L41: 2483565381 | M41: 2771475600 | N41: 3085539861 | O41: 3427894539 | P41: 3800840381 | Q41: 4206854681 | R41: 4648604324 | S41: 5128959773
B42: Lecturers required | C42: =$C$7 -> 16063 | D42: =C42 -> 16063 | E42: =E52/Expenditure!$D$8/$D$10 -> 3359.719791 | F42: =F52/Expenditure!$D$8/$D$10 -> 3624.398191 | G42: =G52/Expenditure!$D$8/$D$10 -> 3889.076591 | H42: =H52/Expenditure!$D$8/$D$10 -> 4153.754991 | I42: =I52/Expenditure!$D$8/$D$10 -> 4418.433391 | J42: =J52/Expenditure!$D$8/$D$10 -> 4683.111791 | K42: =K52/Expenditure!$D$8/$D$10 -> 4947.790191 | L42: =L52/Expenditure!$D$8/$D$10 -> 5212.468591 | M42: =M52/Expenditure!$D$8/$D$10 -> 5477.146991 | N42: =N52/Expenditure!$D$8/$D$10 -> 5741.825391 | O42: =O52/Expenditure!$D$8/$D$10 -> 6006.503791 | P42: =P52/Expenditure!$D$8/$D$10 -> 6271.182191 | Q42: =Q52/Expenditure!$D$8/$D$10 -> 6535.860591 | R42: =R52/Expenditure!$D$8/$D$10 -> 6800.538991 | S42: =S52/Expenditure!$D$8/$D$10 -> 7065.217391
B43: Average lecturer salary | C43: =$C$6 -> 83914 | D43: =C43*(1+$C$9)/(1+$C$5) -> 89116.668 | E43: =$D$6*1.074*(1+$C$9) -> 312723.508 | F43: =E43*(1+$C$9)/(1+$C$5) -> 332112.3655 | G43: 352703.3321 | H43: 374570.9387 | I43: 397794.3369 | J43: 422457.5858 | K43: 448649.9561 | L43: 476466.2534 | M43: 506007.1611 | N43: 537379.6051 | O43: 570697.1406 | P43: 606080.3633 | Q43: 643657.3458 | R43: 683564.1013 | S43: 725945.0756
B44: Lecturer development | C44: =C41*$D$12 -> 20218658.73 | D44: =D41*$D$12 -> 21472215.57 | E44: 15759950.38 | F44: 18055611.85 | G44: 20575354.09 | H44: 23338138.59 | I44: 26364416.72 | J44: 29676241.52 | K44: 33297387.78 | L44: 37253480.71 | M44: 41572134 | N44: 46283097.92 | O44: 51418418.08 | P44: 57012605.71 | Q44: 63102820.22 | R44: 69729064.86 | S44: 76934396.6
B45: Management and Support | C45: =$C$21*$C$20 -> 242790317.5 | D45: =$D$20*$D$21*(1+$C$9)/(1+$C$5) -> 275890077 | E45: =D45*(1+$C$9)/(1+$C$5) -> 292995261.8 | F45: =E45*(1+$C$9)/(1+$C$5) -> 311160968 | G45: =F45*(1+$C$9)/(1+$C$5) -> 330452948 | H45: 350941030.8 | I45: 372699374.7 | J45: 395806735.9 | K45: 420346753.6 | L45: 446408252.3 | M45: 474085563.9 | N45: 503478868.9 | O45: 534694558.8 | P45: 567845621.4 | Q45: 603052049.9 | R45: 640441277 | S45: 680148636.2
B46: Indirect costs per centre | C46: =$C$17+$C$18 -> 21208.74542 | D46: =($D$17+$D$18)*(1+$C$15)/(1+$C$5) -> 45610.776 | E46: =D46*(1+$C$15)/(1+$C$5) -> 48438.64411 | F46: =E46*(1+$C$15)/(1+$C$5) -> 51441.84005 | G46: =F46*(1+$C$15)/(1+$C$5) -> 54631.23413 | H46: =G46*(1+$C$15)/(1+$C$5) -> 58018.37065 | I46: =H46*(1+$C$15)/(1+$C$5) -> 61615.50963 | J46: =I46*(1+$C$15)/(1+$C$5) -> 65435.67122 | K46: =J46*(1+$C$15)/(1+$C$5) -> 69492.68284 | L46: =K46*(1+$C$15)/(1+$C$5) -> 73801.22917 | M46: =L46*(1+$C$15)/(1+$C$5) -> 78376.90538 | N46: =M46*(1+$C$15)/(1+$C$5) -> 83236.27352 | O46: =N46*(1+$C$15)/(1+$C$5) -> 88396.92248 | P46: =O46*(1+$C$15)/(1+$C$5) -> 93877.53167 | Q46: =P46*(1+$C$15)/(1+$C$5) -> 99697.93863 | R46: =Q46*(1+$C$15)/(1+$C$5) -> 105879.2108 | S46: =R46*(1+$C$15)/(1+$C$5) -> 112443.7219
B47: Total indirect costs | C47: =C46*$D$16 -> 69479850 | D47: 149420902.2 | E47: 158684998.1 | F47: 168523468 | G47: 178971923 | H47: 190068182.2 | I47: 201852409.5 | J47: 214367258.9 | K47: 227658029 | L47: 241772826.8 | M47: 256762742 | N47: 272682032 | O47: 289588318 | P47: 307542793.7 | Q47: 326610447 | R47: 346860294.7 | S47: 368365632.9 | T47: =S51-S50 -> 1.23808476e+10
B48: Direct cost per learner | C48: 525 | D48: =$D$14*(1+$C$15)/(1+$C$5) -> 3823.2 | E48: =D48*(1+$C$15)/(1+$C$5) -> 4060.2384 | F48: =E48*(1+$C$15)/(1+$C$5) -> 4311.973181 | G48: =F48*(1+$C$15)/(1+$C$5) -> 4579.315518 | H48: =G48*(1+$C$15)/(1+$C$5) -> 4863.23308 | I48: =H48*(1+$C$15)/(1+$C$5) -> 5164.753531 | J48: =I48*(1+$C$15)/(1+$C$5) -> 5484.96825 | K48: =J48*(1+$C$15)/(1+$C$5) -> 5825.036282 | L48: =K48*(1+$C$15)/(1+$C$5) -> 6186.188531 | M48: =L48*(1+$C$15)/(1+$C$5) -> 6569.73222 | N48: =M48*(1+$C$15)/(1+$C$5) -> 6977.055618 | O48: =N48*(1+$C$15)/(1+$C$5) -> 7409.633066 | P48: =O48*(1+$C$15)/(1+$C$5) -> 7869.030316 | Q48: =P48*(1+$C$15)/(1+$C$5) -> 8356.910195 | R48: =Q48*(1+$C$15)/(1+$C$5) -> 8875.038628 | S48: =R48*(1+$C$15)/(1+$C$5) -> 9425.291023 | T48: =T47/SUM(Enrolments!S99:S103) -> 20481.13747
B49: Total direct cost | C49: =C48*C52 -> 133877620.3 | D49: =D48*D52 -> 1088632527 | E49: 1254996225 | F49: 1437804317 | G49: 1638456408 | H49: 1858462439 | I49: 2099450990 | J49: 2363178193 | K49: 2651537279 | L49: 2966568834 | M49: 3310471794 | N49: 3685615229 | O49: 4094550997 | P49: 4540027296 | Q49: 5025003201 | R49: 5552664254 | S49: 6126439165
B50: Total occupational Costs | C50: =Enrolments!$G$84*Enrolments!C104 -> 114240135 | D50: =(Enrolments!$G$84*Enrolments!D104)*(1+$C$15)/(1+$C$5) -> 135471778.6 | E50: =(Enrolments!$G$84*Enrolments!E104)*(1+$C$15)/(1+$C$5) -> 498140326.7 | F50: =(Enrolments!$G$84*Enrolments!F104)*(1+$C$15)/(1+$C$5) -> 860808874.8 | G50: =(Enrolments!$G$84*Enrolments!G104)*(1+$C$15)/(1+$C$5) -> 1223477423 | H50: =(Enrolments!$G$84*Enrolments!H104)*(1+$C$15)/(1+$C$5) -> 1586145971 | I50: =(Enrolments!$G$84*Enrolments!I104)*(1+$C$15)/(1+$C$5) -> 1948814519 | J50: =(Enrolments!$G$84*Enrolments!J104)*(1+$C$15)/(1+$C$5) -> 2311483067 | K50: =(Enrolments!$G$84*Enrolments!K104)*(1+$C$15)/(1+$C$5) -> 2674151615 | L50: =(Enrolments!$G$84*Enrolments!L104)*(1+$C$15)/(1+$C$5) -> 3036820163 | M50: =(Enrolments!$G$84*Enrolments!M104)*(1+$C$15)/(1+$C$5) -> 3399488711 | N50: =(Enrolments!$G$84*Enrolments!N104)*(1+$C$15)/(1+$C$5) -> 3762157260 | O50: =(Enrolments!$G$84*Enrolments!O104)*(1+$C$15)/(1+$C$5) -> 4124825808 | P50: =(Enrolments!$G$84*Enrolments!P104)*(1+$C$15)/(1+$C$5) -> 4487494356 | Q50: =(Enrolments!$G$84*Enrolments!Q104)*(1+$C$15)/(1+$C$5) -> 4850162904 | R50: =(Enrolments!$G$84*Enrolments!R104)*(1+$C$15)/(1+$C$5) -> 5212831452 | S50: =(Enrolments!$G$84*Enrolments!S104)*(1+$C$15)/(1+$C$5) -> 5575500000
B51: Total costs | C51: =C49+C47+C45+C44+C41+C50 -> 1928517164 | D51: 3102368538 | E51: 3271240120 | F51: 4000060697 | G51: 4763624329 | H51: 5564831667 | I51: 6406809491 | J51: 7292927598 | K51: 8226816916 | L51: 9212388938 | M51: 1.025385655e+10 | N51: 1.135575635e+10 | O51: 1.252297264e+10 | P51: 1.376076305e+10 | Q51: 1.50747861e+10 | R51: 1.647113067e+10 | S51: 1.79563476e+10 | T51: =SUM(C51:S51) -> 1.511651984e+11
A52: Full White Paper | B52: =Enrolments!B18:S18 -> Total Enrolment | C52: =Enrolments!C64 -> 255004.991 | D52: =Enrolments!D64 -> 284743.808 | E52: =Enrolments!E64 -> 309094.2208 | F52: =Enrolments!F64 -> 333444.6336 | G52: =Enrolments!G64 -> 357795.0464 | H52: =Enrolments!H64 -> 382145.4592 | I52: =Enrolments!I64 -> 406495.872 | J52: =Enrolments!J64 -> 430846.2848 | K52: =Enrolments!K64 -> 455196.6976 | L52: =Enrolments!L64 -> 479547.1104 | M52: =Enrolments!M64 -> 503897.5232 | N52: =Enrolments!N64 -> 528247.936 | O52: =Enrolments!O64 -> 552598.3488 | P52: =Enrolments!P64 -> 576948.7616 | Q52: =Enrolments!Q64 -> 601299.1744 | R52: =Enrolments!R64 -> 625649.5872 | S52: =Enrolments!S64 -> 650000
B53: Lecturing costs | C53: =$C7*$C6 -> 1347910582 | D53: =D54*D55 -> 1431481038 | E53: =E54*E55 -> 1001026433 | F53: 1101480620 | G53: 1216244968 | H53: 1347471750 | I53: 1497627475 | J53: 1669537291 | K53: 1866435531 | L53: 2092023224 | M53: 2350533534 | N53: 2646806199 | O53: 2986372189 | P53: 3375549976 | Q53: 3821554998 | R53: 4332624097 | S53: 4438522881
B54: Lecturers required | C54: =$C$7 -> 16063 | D54: =C54 -> 16063 | E54: =E64/Expenditure!$D$8/$D$10 -> 3200.995151 | F54: =F64/Expenditure!$D$8/$D$10 -> 3316.590211 | G54: =G64/Expenditure!$D$8/$D$10 -> 3448.351227 | H54: =H64/Expenditure!$D$8/$D$10 -> 3597.373984 | I54: =I64/Expenditure!$D$8/$D$10 -> 3764.828546 | J54: =J64/Expenditure!$D$8/$D$10 -> 3951.964286 | K54: =K64/Expenditure!$D$8/$D$10 -> 4160.115265 | L54: =L64/Expenditure!$D$8/$D$10 -> 4390.705971 | M54: =M64/Expenditure!$D$8/$D$10 -> 4645.257448 | N54: =N64/Expenditure!$D$8/$D$10 -> 4925.393845 | O54: =O64/Expenditure!$D$8/$D$10 -> 5232.849398 | P54: =P64/Expenditure!$D$8/$D$10 -> 5569.475898 | Q54: =Q64/Expenditure!$D$8/$D$10 -> 5937.250655 | R54: =R64/Expenditure!$D$8/$D$10 -> 6338.285011 | S54: =S64/Expenditure!$D$8/$D$10 -> 6114.130435
B55: Average lecturer salary | C55: =$C$6 -> 83914 | D55: =C55*(1+$C$9)/(1+$C$5) -> 89116.668 | E55: =$E$6*1.074*(1+$C$9) -> 312723.508 | F55: =E55*(1+$C$9)/(1+$C$5) -> 332112.3655 | G55: =F55*(1+$C$9)/(1+$C$5) -> 352703.3321 | H55: 374570.9387 | I55: 397794.3369 | J55: 422457.5858 | K55: 448649.9561 | L55: 476466.2534 | M55: 506007.1611 | N55: 537379.6051 | O55: 570697.1406 | P55: 606080.3633 | Q55: 643657.3458 | R55: 683564.1013 | S55: 725945.0756
B56: Lecturer development | C56: =C53*$C$12 -> 14827016.4 | D56: =D53*$E$12 -> 21472215.57 | E56: =E53*$E$12 -> 15015396.49 | F56: 16522209.3 | G56: 18243674.52 | H56: 20212076.25 | I56: 22464412.13 | J56: 25043059.37 | K56: 27996532.96 | L56: 31380348.35 | M56: 35258003.01 | N56: 39702092.99 | O56: 44795582.83 | P56: 50633249.63 | Q56: 57323324.98 | R56: 64989361.46 | S56: 66577843.21
B57: Management and Support | C57: =$C$21*$C$20 -> 242790317.5 | D57: =$E$20*$E$21*(1+$C$9)/(1+$C$5) -> 275890077 | E57: =D57*(1+$C$9)/(1+$C$5) -> 292995261.8 | F57: =E57*(1+$C$9)/(1+$C$5) -> 311160968 | G57: 330452948 | H57: 350941030.8 | I57: 372699374.7 | J57: 395806735.9 | K57: 420346753.6 | L57: 446408252.3 | M57: 474085563.9 | N57: 503478868.9 | O57: 534694558.8 | P57: 567845621.4 | Q57: 603052049.9 | R57: 640441277 | S57: 680148636.2
B58: Indirect costs per centre | C58: =$C$17+$C$18 -> 21208.74542 | D58: =($E$17+$E$18)*(1+$C$9)/(1+$C$5) -> 34990.776 | E58: =D58*(1+$C$9)/(1+$C$5) -> 37160.20411 | F58: =E58*(1+$C$9)/(1+$C$5) -> 39464.13677 | G58: 41910.91325 | H58: 44509.38987 | I58: 47268.97204 | J58: 50199.64831 | K58: 53312.0265 | L58: 56617.37214 | M58: 60127.64922 | N58: 63855.56347 | O58: 67814.6084 | P58: 72019.11412 | Q58: 76484.2992 | R58: 81226.32575 | S58: 86262.35795
B59: Total indirect costs | C59: =C58*$E$16 -> 69479850 | D59: =D58*$E$16 -> 114629782.2 | E59: 121736828.7 | F59: 129284512 | G59: 137300151.8 | H59: 145812761.2 | I59: 154853152.4 | J59: 164454047.9 | K59: 174650198.8 | L59: 185478511.1 | M59: 196978178.8 | N59: 209190825.9 | O59: 222160657.1 | P59: 235934617.9 | Q59: 250562564.2 | R59: 266097443.2 | S59: 282595484.6
B60: Direct cost per learner | C60: 525 | D60: =$E$14*(1+$C$15)/(1+$C$5) -> 2761.2 | E60: =D60*(1+$C$15)/(1+$C$5) -> 2932.3944 | F60: =E60*(1+$C$15)/(1+$C$5) -> 3114.202853 | G60: =F60*(1+$C$15)/(1+$C$5) -> 3307.28343 | H60: =G60*(1+$C$15)/(1+$C$5) -> 3512.335002 | I60: =H60*(1+$C$15)/(1+$C$5) -> 3730.099772 | J60: =I60*(1+$C$15)/(1+$C$5) -> 3961.365958 | K60: =J60*(1+$C$15)/(1+$C$5) -> 4206.970648 | L60: =K60*(1+$C$15)/(1+$C$5) -> 4467.802828 | M60: =L60*(1+$C$15)/(1+$C$5) -> 4744.806603 | N60: =M60*(1+$C$15)/(1+$C$5) -> 5038.984613 | O60: =N60*(1+$C$15)/(1+$C$5) -> 5351.401659 | P60: =O60*(1+$C$15)/(1+$C$5) -> 5683.188561 | Q60: =P60*(1+$C$15)/(1+$C$5) -> 6035.546252 | R60: =Q60*(1+$C$15)/(1+$C$5) -> 6409.75012 | S60: =R60*(1+$C$15)/(1+$C$5) -> 6807.154627
B61: Total direct cost | C61: =C60*C64 -> 134414577.3 | D61: 760291155.7 | E61: 863565383.5 | F61: 950225192.2 | G61: 1049230088 | H61: 1162436796 | I61: 1291973121 | J61: 1440276265 | K61: 1610136419 | L61: 1804746387 | M61: 2027758036 | N61: 2283346509 | O61: 2576283263 | P61: 2912019118 | Q61: 3296778687 | R61: 3737667726 | S61: 3829024478
B62: Total occupational Costs | C62: =Enrolments!$G$84*Enrolments!C112 -> 98898504.49 | D62: =Enrolments!$G$84*Enrolments!D112*(1+$C$15)/(1+$C$5) -> 285145511 | E62: =Enrolments!$G$84*Enrolments!E112*(1+$C$15)/(1+$C$5) -> 465260810.3 | F62: =Enrolments!$G$84*Enrolments!F112*(1+$C$15)/(1+$C$5) -> 645376109.6 | G62: =Enrolments!$G$84*Enrolments!G112*(1+$C$15)/(1+$C$5) -> 825491408.8 | H62: =Enrolments!$G$84*Enrolments!H112*(1+$C$15)/(1+$C$5) -> 1005606708 | I62: =Enrolments!$G$84*Enrolments!I112*(1+$C$15)/(1+$C$5) -> 1185722007 | J62: =Enrolments!$G$84*Enrolments!J112*(1+$C$15)/(1+$C$5) -> 1365837307 | K62: =Enrolments!$G$84*Enrolments!K112*(1+$C$15)/(1+$C$5) -> 1545952606 | L62: =Enrolments!$G$84*Enrolments!L112*(1+$C$15)/(1+$C$5) -> 1726067905 | M62: =Enrolments!$G$84*Enrolments!M112*(1+$C$15)/(1+$C$5) -> 1906183204 | N62: =Enrolments!$G$84*Enrolments!N112*(1+$C$15)/(1+$C$5) -> 2086298504 | O62: =Enrolments!$G$84*Enrolments!O112*(1+$C$15)/(1+$C$5) -> 2266413803 | P62: =Enrolments!$G$84*Enrolments!P112*(1+$C$15)/(1+$C$5) -> 2446529102 | Q62: =Enrolments!$G$84*Enrolments!Q112*(1+$C$15)/(1+$C$5) -> 2626644401 | R62: =Enrolments!$G$84*Enrolments!R112*(1+$C$15)/(1+$C$5) -> 2806759701 | S62: =Enrolments!$G$84*Enrolments!S112*(1+$C$15)/(1+$C$5) -> 2986875000
B63: Total costs | C63: =C61+C59+C57+C56+C53+C62 -> 1908320848 | D63: 2888909780 | E63: 2759600113 | F63: 3154049611 | G63: 3576963239 | H63: 4032481122 | I63: 4525339543 | J63: 5060954706 | K63: 5645518041 | L63: 6286104627 | M63: 6990796520 | N63: 7768823000 | O63: 8630720054 | P63: 9588511685 | Q63: 1.065591603e+10 | R63: 1.184857961e+10 | S63: 1.228374432e+10 | T63: =SUM(C63:S63) -> 1.076053328e+11
A64: Balanced | B64: =Enrolments!B26 -> Total Enrolment | C64: =Enrolments!C65 -> 256027.7664 | D64: =Enrolments!D65 -> 275348.0935 | E64: =Enrolments!E65 -> 294491.5539 | F64: =Enrolments!F65 -> 305126.2994 | G64: =Enrolments!G65 -> 317248.3129 | H64: =Enrolments!H65 -> 330958.4066 | I64: =Enrolments!I65 -> 346364.2262 | J64: =Enrolments!J65 -> 363580.7143 | K64: =Enrolments!K65 -> 382730.6044 | L64: =Enrolments!L65 -> 403944.9493 | M64: =Enrolments!M65 -> 427363.6853 | N64: =Enrolments!N65 -> 453136.2338 | O64: =Enrolments!O65 -> 481422.1446 | P64: =Enrolments!P65 -> 512391.7826 | Q64: =Enrolments!Q65 -> 546227.0603 | R64: =Enrolments!R65 -> 583122.221 | S64: =Enrolments!S65 -> 562500
B68: Total costs | C68: 2014 | D68: 2015 | E68: 2016 | F68: 2017 | G68: 2018 | H68: 2019 | I68: 2020 | J68: 2021 | K68: 2022 | L68: 2023 | M68: 2024 | N68: 2025 | O68: 2026 | P68: 2027 | Q68: 2028 | R68: 2029 | S68: 2030
B69: Status Quo (R'm) | C69: =C39/1000000 -> 1843.818969 | D69: 1999.63534 | E69: 2398.482008 | F69: 2836.920765 | G69: 3318.411536 | H69: 3846.691082 | I69: 4425.794031 | J69: 5060.075449 | K69: 5754.235065 | L69: 6513.343269 | M69: 7342.869006 | N69: 8248.709709 | O69: 9237.223409 | P69: 10315.26317 | Q69: 11490.21406 | R69: 12770.03274 | S69: 14163.28997
B70: Full White Paper (R'm) | C70: =C51/1000000 -> 1928.517164 | D70: 3102.368538 | E70: 3271.24012 | F70: 4000.060697 | G70: 4763.624329 | H70: 5564.831667 | I70: 6406.809491 | J70: 7292.927598 | K70: 8226.816916 | L70: 9212.388938 | M70: 10253.85655 | N70: 11355.75635 | O70: 12522.97264 | P70: 13760.76305 | Q70: 15074.7861 | R70: 16471.13067 | S70: 17956.3476
B71: Balanced (R'm) | C71: =C63/1000000 -> 1908.320848 | D71: =D63/1000000 -> 2888.90978 | E71: 2759.600113 | F71: 3154.049611 | G71: 3576.963239 | H71: 4032.481122 | I71: 4525.339543 | J71: 5060.954706 | K71: 5645.518041 | L71: 6286.104627 | M71: 6990.79652 | N71: 7768.823 | O71: 8630.720054 | P71: 9588.511685 | Q71: 10655.91603 | R71: 11848.57961 | S71: 12283.74432

Sheet Learner Numbers (hidden)
C2: 2014 | D2: 2015 | E2: 2016 | F2: 2017 | G2: 2018 | H2: 2019 | I2: 2020 | J2: 2021 | K2: 2022 | L2: 2023 | M2: 2024 | N2: 2025 | O2: 2026 | P2: 2027 | Q2: 2028 | R2: 2029 | S2: 2030
B10: Enrolment | C10: Potential Key Variable A
A11: Number of enrolments per learning intervention | C11: =#REF! ->  | D11: =#REF! ->  | E11: =#REF! ->  | F11: =#REF! ->  | G11: =#REF! ->  | H11: =#REF! ->  | I11: =#REF! ->  | J11: =#REF! ->  | K11: =#REF! ->  | L11: =#REF! ->  | M11: =#REF! ->  | N11: =#REF! ->  | O11: =#REF! ->  | P11: =#REF! ->  | Q11: =#REF! ->  | R11: =#REF! ->  | S11: =#REF! -> 
B12: AET Level 1 | C12: =ROUNDUP(C$11*C63,0) ->  | D12: =ROUNDUP(D$11*D63,0) ->  | E12: =ROUNDUP(E$11*E63,0) ->  | F12: =Enrolments!C11 ->  | G12: =ROUNDUP(G$11*G63,0) ->  | H12: =Enrolments!D11 ->  | I12: =ROUNDUP(I$11*I63,0) -> 
B13: AET Level 2 | C13: =ROUNDUP(C$11*C64,0) ->  | H13: =Enrolments!D12 -> 
B14: AET Level 3 | C14: =ROUNDUP(C$11*C65,0) ->  | H14: =Enrolments!D13 -> 
B15: AET Level 4 | C15: =ROUNDUP(C$11*C66,0) ->  | H15: =Enrolments!D14 -> 
B16: Grade 12 | C16: =ROUNDUP(C$11*C67,0) ->  | D16: =ROUNDUP(D$11*D67,0) ->  | H16: =Enrolments!D15 ->  | I16: =ROUNDUP(I$11*I67,0) -> 
B17: Occupational Programmes | C17: =ROUNDUP(C$11*C68,0) ->  | H17: =Enrolments!D16 ->  | I17: =ROUNDUP(I$11*I68,0) -> 
A21: Number of dropouts per learning intervention | B21: =Dashboard!N4 -> Status quo | C21: =SUM(C22:C24) -> 141121 | D21: =SUM(D22:D24) -> 157579 | E21: =SUM(E22:E24) -> 182897 | F21: 208215 | G21: 233534 | H21: 258852 | I21: 284171 | J21: 309489 | K21: =SUM(K22:K24) -> 334807 | L21: 360126 | M21: 385444 | N21: 410762 | O21: 436080 | P21: 461399 | Q21: 486716 | R21: 512035 | S21: 537353
B22: AET Level 1 to 4 | C22: =ROUNDUP((SUM(Enrolments!C3:C6))*'Enrol Scenarios'!$B$18,0) -> 99303 | D22: =ROUNDUP((SUM(Enrolments!D3:D6))*'Enrol Scenarios'!$B$18,0) -> 110884 | E22: =ROUNDUP((SUM(Enrolments!E3:E6))*'Enrol Scenarios'!$B$18,0) -> 128700 | F22: =ROUNDUP((SUM(Enrolments!F3:F6))*'Enrol Scenarios'!$B$18,0) -> 146516 | G22: =ROUNDUP((SUM(Enrolments!G3:G6))*'Enrol Scenarios'!$B$18,0) -> 164332 | H22: =ROUNDUP((SUM(Enrolments!H3:H6))*'Enrol Scenarios'!$B$18,0) -> 182148 | I22: =ROUNDUP((SUM(Enrolments!I3:I6))*'Enrol Scenarios'!$B$18,0) -> 199964 | J22: =ROUNDUP((SUM(Enrolments!J3:J6))*'Enrol Scenarios'!$B$18,0) -> 217780 | K22: =ROUNDUP((SUM(Enrolments!K3:K6))*'Enrol Scenarios'!$B$18,0) -> 235596 | L22: =ROUNDUP((SUM(Enrolments!L3:L6))*'Enrol Scenarios'!$B$18,0) -> 253412 | M22: =ROUNDUP((SUM(Enrolments!M3:M6))*'Enrol Scenarios'!$B$18,0) -> 271228 | N22: =ROUNDUP((SUM(Enrolments!N3:N6))*'Enrol Scenarios'!$B$18,0) -> 289044 | O22: =ROUNDUP((SUM(Enrolments!O3:O6))*'Enrol Scenarios'!$B$18,0) -> 306859 | P22: =ROUNDUP((SUM(Enrolments!P3:P6))*'Enrol Scenarios'!$B$18,0) -> 324675 | Q22: =ROUNDUP((SUM(Enrolments!Q3:Q6))*'Enrol Scenarios'!$B$18,0) -> 342491 | R22: =ROUNDUP((SUM(Enrolments!R3:R6))*'Enrol Scenarios'!$B$18,0) -> 360307 | S22: =ROUNDUP((SUM(Enrolments!S3:S6))*'Enrol Scenarios'!$B$18,0) -> 378123
B23: Grade 12 | C23: =ROUNDUP(Enrolments!C7*'Enrol Scenarios'!$B$19,0) -> 41513 | D23: =ROUNDUP(Enrolments!D7*'Enrol Scenarios'!$B$19,0) -> 46354 | E23: =ROUNDUP(Enrolments!E7*'Enrol Scenarios'!$B$19,0) -> 53802 | F23: =ROUNDUP(Enrolments!F7*'Enrol Scenarios'!$B$19,0) -> 61249 | G23: =ROUNDUP(Enrolments!G7*'Enrol Scenarios'!$B$19,0) -> 68697 | H23: =ROUNDUP(Enrolments!H7*'Enrol Scenarios'!$B$19,0) -> 76145 | I23: =ROUNDUP(Enrolments!I7*'Enrol Scenarios'!$B$19,0) -> 83593 | J23: =ROUNDUP(Enrolments!J7*'Enrol Scenarios'!$B$19,0) -> 91040 | K23: =ROUNDUP(Enrolments!K7*'Enrol Scenarios'!$B$19,0) -> 98488 | L23: =ROUNDUP(Enrolments!L7*'Enrol Scenarios'!$B$19,0) -> 105936 | M23: =ROUNDUP(Enrolments!M7*'Enrol Scenarios'!$B$19,0) -> 113383 | N23: =ROUNDUP(Enrolments!N7*'Enrol Scenarios'!$B$19,0) -> 120831 | O23: =ROUNDUP(Enrolments!O7*'Enrol Scenarios'!$B$19,0) -> 128279 | P23: =ROUNDUP(Enrolments!P7*'Enrol Scenarios'!$B$19,0) -> 135727 | Q23: =ROUNDUP(Enrolments!Q7*'Enrol Scenarios'!$B$19,0) -> 143174 | R23: =ROUNDUP(Enrolments!R7*'Enrol Scenarios'!$B$19,0) -> 150622 | S23: =ROUNDUP(Enrolments!S7*'Enrol Scenarios'!$B$19,0) -> 158070
B24: Occupational Programmes | C24: =ROUNDUP(Enrolments!C8*'Enrol Scenarios'!$B$20,0) -> 305 | D24: =ROUNDUP(Enrolments!D8*'Enrol Scenarios'!$B$20,0) -> 341 | E24: =ROUNDUP(Enrolments!E8*'Enrol Scenarios'!$B$20,0) -> 395 | F24: =ROUNDUP(Enrolments!F8*'Enrol Scenarios'!$B$20,0) -> 450 | G24: =ROUNDUP(Enrolments!G8*'Enrol Scenarios'!$B$20,0) -> 505 | H24: =ROUNDUP(Enrolments!H8*'Enrol Scenarios'!$B$20,0) -> 559 | I24: =ROUNDUP(Enrolments!I8*'Enrol Scenarios'!$B$20,0) -> 614 | J24: =ROUNDUP(Enrolments!J8*'Enrol Scenarios'!$B$20,0) -> 669 | K24: =ROUNDUP(Enrolments!K8*'Enrol Scenarios'!$B$20,0) -> 723 | L24: =ROUNDUP(Enrolments!L8*'Enrol Scenarios'!$B$20,0) -> 778 | M24: =ROUNDUP(Enrolments!M8*'Enrol Scenarios'!$B$20,0) -> 833 | N24: =ROUNDUP(Enrolments!N8*'Enrol Scenarios'!$B$20,0) -> 887 | O24: =ROUNDUP(Enrolments!O8*'Enrol Scenarios'!$B$20,0) -> 942 | P24: =ROUNDUP(Enrolments!P8*'Enrol Scenarios'!$B$20,0) -> 997 | Q24: =ROUNDUP(Enrolments!Q8*'Enrol Scenarios'!$B$20,0) -> 1051 | R24: =ROUNDUP(Enrolments!R8*'Enrol Scenarios'!$B$20,0) -> 1106 | S24: =ROUNDUP(Enrolments!S8*'Enrol Scenarios'!$B$20,0) -> 1160
B25: =Dashboard!O4 -> Full Policy | C25: =SUM(C26:C28) -> 141121 | D25: 157579 | E25: 171840 | F25: 186102 | G25: 200363 | H25: 214624 | I25: 228887 | J25: 243149 | K25: =SUM(K26:K28) -> 257409 | L25: 271671 | M25: 285933 | N25: 300194 | O25: 314455 | P25: 328717 | Q25: 342978 | R25: 357240 | S25: 371500
B26: AET Level 1 to 4 | C26: =ROUNDUP((SUM(Enrolments!C19:C22))*'Enrol Scenarios'!$C$18,0) -> 99303 | D26: =ROUNDUP((SUM(Enrolments!D19:D22))*'Enrol Scenarios'!$C$18,0) -> 110884 | E26: =ROUNDUP((SUM(Enrolments!E19:E22))*'Enrol Scenarios'!$C$18,0) -> 121092 | F26: =ROUNDUP((SUM(Enrolments!F19:F22))*'Enrol Scenarios'!$C$18,0) -> 131300 | G26: =ROUNDUP((SUM(Enrolments!G19:G22))*'Enrol Scenarios'!$C$18,0) -> 141507 | H26: =ROUNDUP((SUM(Enrolments!H19:H22))*'Enrol Scenarios'!$C$18,0) -> 151715 | I26: =ROUNDUP((SUM(Enrolments!I19:I22))*'Enrol Scenarios'!$C$18,0) -> 161923 | J26: =ROUNDUP((SUM(Enrolments!J19:J22))*'Enrol Scenarios'!$C$18,0) -> 172131 | K26: =ROUNDUP((SUM(Enrolments!K19:K22))*'Enrol Scenarios'!$C$18,0) -> 182338 | L26: =ROUNDUP((SUM(Enrolments!L19:L22))*'Enrol Scenarios'!$C$18,0) -> 192546 | M26: =ROUNDUP((SUM(Enrolments!M19:M22))*'Enrol Scenarios'!$C$18,0) -> 202754 | N26: =ROUNDUP((SUM(Enrolments!N19:N22))*'Enrol Scenarios'!$C$18,0) -> 212962 | O26: =ROUNDUP((SUM(Enrolments!O19:O22))*'Enrol Scenarios'!$C$18,0) -> 223169 | P26: =ROUNDUP((SUM(Enrolments!P19:P22))*'Enrol Scenarios'!$C$18,0) -> 233377 | Q26: =ROUNDUP((SUM(Enrolments!Q19:Q22))*'Enrol Scenarios'!$C$18,0) -> 243585 | R26: =ROUNDUP((SUM(Enrolments!R19:R22))*'Enrol Scenarios'!$C$18,0) -> 253793 | S26: =ROUNDUP((SUM(Enrolments!S19:S22))*'Enrol Scenarios'!$C$18,0) -> 264000
B27: Grade 12 | C27: =ROUNDUP(Enrolments!C23*'Enrol Scenarios'!$C$19,0) -> 41513 | D27: =ROUNDUP(Enrolments!D23*'Enrol Scenarios'!$C$19,0) -> 46354 | E27: =ROUNDUP(Enrolments!E23*'Enrol Scenarios'!$C$19,0) -> 49497 | F27: =ROUNDUP(Enrolments!F23*'Enrol Scenarios'!$C$19,0) -> 52640 | G27: =ROUNDUP(Enrolments!G23*'Enrol Scenarios'!$C$19,0) -> 55783 | H27: =ROUNDUP(Enrolments!H23*'Enrol Scenarios'!$C$19,0) -> 58926 | I27: =ROUNDUP(Enrolments!I23*'Enrol Scenarios'!$C$19,0) -> 62070 | J27: =ROUNDUP(Enrolments!J23*'Enrol Scenarios'!$C$19,0) -> 65213 | K27: =ROUNDUP(Enrolments!K23*'Enrol Scenarios'!$C$19,0) -> 68356 | L27: =ROUNDUP(Enrolments!L23*'Enrol Scenarios'!$C$19,0) -> 71499 | M27: =ROUNDUP(Enrolments!M23*'Enrol Scenarios'!$C$19,0) -> 74642 | N27: =ROUNDUP(Enrolments!N23*'Enrol Scenarios'!$C$19,0) -> 77785 | O27: =ROUNDUP(Enrolments!O23*'Enrol Scenarios'!$C$19,0) -> 80928 | P27: =ROUNDUP(Enrolments!P23*'Enrol Scenarios'!$C$19,0) -> 84071 | Q27: =ROUNDUP(Enrolments!Q23*'Enrol Scenarios'!$C$19,0) -> 87214 | R27: =ROUNDUP(Enrolments!R23*'Enrol Scenarios'!$C$19,0) -> 90357 | S27: =ROUNDUP(Enrolments!S23*'Enrol Scenarios'!$C$19,0) -> 93500
B28: Occupational Programmes | C28: =ROUNDUP(Enrolments!C24*'Enrol Scenarios'!$C$20,0) -> 305 | D28: =ROUNDUP(Enrolments!D24*'Enrol Scenarios'!$C$20,0) -> 341 | E28: =ROUNDUP(Enrolments!E24*'Enrol Scenarios'!$C$20,0) -> 1251 | F28: =ROUNDUP(Enrolments!F24*'Enrol Scenarios'!$C$20,0) -> 2162 | G28: =ROUNDUP(Enrolments!G24*'Enrol Scenarios'!$C$20,0) -> 3073 | H28: =ROUNDUP(Enrolments!H24*'Enrol Scenarios'!$C$20,0) -> 3983 | I28: =ROUNDUP(Enrolments!I24*'Enrol Scenarios'!$C$20,0) -> 4894 | J28: =ROUNDUP(Enrolments!J24*'Enrol Scenarios'!$C$20,0) -> 5805 | K28: =ROUNDUP(Enrolments!K24*'Enrol Scenarios'!$C$20,0) -> 6715 | L28: =ROUNDUP(Enrolments!L24*'Enrol Scenarios'!$C$20,0) -> 7626 | M28: =ROUNDUP(Enrolments!M24*'Enrol Scenarios'!$C$20,0) -> 8537 | N28: =ROUNDUP(Enrolments!N24*'Enrol Scenarios'!$C$20,0) -> 9447 | O28: =ROUNDUP(Enrolments!O24*'Enrol Scenarios'!$C$20,0) -> 10358 | P28: =ROUNDUP(Enrolments!P24*'Enrol Scenarios'!$C$20,0) -> 11269 | Q28: =ROUNDUP(Enrolments!Q24*'Enrol Scenarios'!$C$20,0) -> 12179 | R28: =ROUNDUP(Enrolments!R24*'Enrol Scenarios'!$C$20,0) -> 13090 | S28: =ROUNDUP(Enrolments!S24*'Enrol Scenarios'!$C$20,0) -> 14000
B29: =Dashboard!P4 -> Mixed | C29: =SUM(C30:C32) -> 141080 | D29: 152068 | E29: 163055 | F29: 174042 | G29: 185030 | H29: 196017 | I29: 207004 | J29: 217991 | K29: =SUM(K30:K32) -> 228979 | L29: 239966 | M29: 250953 | N29: 261940 | O29: 272927 | P29: 283915 | Q29: 294902 | R29: 305889 | S29: 316876
B30: AET Level 1 to 4 | C30: =ROUNDUP((SUM(Enrolments!C27:C30))*'Enrol Scenarios'!$D$18,0) -> 99303 | D30: =ROUNDUP((SUM(Enrolments!D27:D30))*'Enrol Scenarios'!$D$18,0) -> 106733 | E30: =ROUNDUP((SUM(Enrolments!E27:E30))*'Enrol Scenarios'!$D$18,0) -> 114162 | F30: =ROUNDUP((SUM(Enrolments!F27:F30))*'Enrol Scenarios'!$D$18,0) -> 121591 | G30: =ROUNDUP((SUM(Enrolments!G27:G30))*'Enrol Scenarios'!$D$18,0) -> 129021 | H30: =ROUNDUP((SUM(Enrolments!H27:H30))*'Enrol Scenarios'!$D$18,0) -> 136450 | I30: =ROUNDUP((SUM(Enrolments!I27:I30))*'Enrol Scenarios'!$D$18,0) -> 143879 | J30: =ROUNDUP((SUM(Enrolments!J27:J30))*'Enrol Scenarios'!$D$18,0) -> 151308 | K30: =ROUNDUP((SUM(Enrolments!K27:K30))*'Enrol Scenarios'!$D$18,0) -> 158738 | L30: =ROUNDUP((SUM(Enrolments!L27:L30))*'Enrol Scenarios'!$D$18,0) -> 166167 | M30: =ROUNDUP((SUM(Enrolments!M27:M30))*'Enrol Scenarios'!$D$18,0) -> 173596 | N30: =ROUNDUP((SUM(Enrolments!N27:N30))*'Enrol Scenarios'!$D$18,0) -> 181025 | O30: =ROUNDUP((SUM(Enrolments!O27:O30))*'Enrol Scenarios'!$D$18,0) -> 188455 | P30: =ROUNDUP((SUM(Enrolments!P27:P30))*'Enrol Scenarios'!$D$18,0) -> 195884 | Q30: =ROUNDUP((SUM(Enrolments!Q27:Q30))*'Enrol Scenarios'!$D$18,0) -> 203313 | R30: =ROUNDUP((SUM(Enrolments!R27:R30))*'Enrol Scenarios'!$D$18,0) -> 210743 | S30: =ROUNDUP((SUM(Enrolments!S27:S30))*'Enrol Scenarios'!$D$18,0) -> 218172
B31: Grade 12 | C31: =ROUNDUP(Enrolments!C31*'Enrol Scenarios'!$D$19,0) -> 41513 | D31: =ROUNDUP(Enrolments!D31*'Enrol Scenarios'!$D$19,0) -> 44619 | E31: =ROUNDUP(Enrolments!E31*'Enrol Scenarios'!$D$19,0) -> 47724 | F31: =ROUNDUP(Enrolments!F31*'Enrol Scenarios'!$D$19,0) -> 50830 | G31: =ROUNDUP(Enrolments!G31*'Enrol Scenarios'!$D$19,0) -> 53936 | H31: =ROUNDUP(Enrolments!H31*'Enrol Scenarios'!$D$19,0) -> 57041 | I31: =ROUNDUP(Enrolments!I31*'Enrol Scenarios'!$D$19,0) -> 60147 | J31: =ROUNDUP(Enrolments!J31*'Enrol Scenarios'!$D$19,0) -> 63253 | K31: =ROUNDUP(Enrolments!K31*'Enrol Scenarios'!$D$19,0) -> 66359 | L31: =ROUNDUP(Enrolments!L31*'Enrol Scenarios'!$D$19,0) -> 69464 | M31: =ROUNDUP(Enrolments!M31*'Enrol Scenarios'!$D$19,0) -> 72570 | N31: =ROUNDUP(Enrolments!N31*'Enrol Scenarios'!$D$19,0) -> 75676 | O31: =ROUNDUP(Enrolments!O31*'Enrol Scenarios'!$D$19,0) -> 78781 | P31: =ROUNDUP(Enrolments!P31*'Enrol Scenarios'!$D$19,0) -> 81887 | Q31: =ROUNDUP(Enrolments!Q31*'Enrol Scenarios'!$D$19,0) -> 84993 | R31: =ROUNDUP(Enrolments!R31*'Enrol Scenarios'!$D$19,0) -> 88098 | S31: =ROUNDUP(Enrolments!S31*'Enrol Scenarios'!$D$19,0) -> 91204
B32: Occupational Programmes | C32: =ROUNDUP(Enrolments!C32*'Enrol Scenarios'!$D$20,0) -> 264 | D32: =ROUNDUP(Enrolments!D32*'Enrol Scenarios'!$D$20,0) -> 716 | E32: =ROUNDUP(Enrolments!E32*'Enrol Scenarios'!$D$20,0) -> 1169 | F32: =ROUNDUP(Enrolments!F32*'Enrol Scenarios'!$D$20,0) -> 1621 | G32: =ROUNDUP(Enrolments!G32*'Enrol Scenarios'!$D$20,0) -> 2073 | H32: =ROUNDUP(Enrolments!H32*'Enrol Scenarios'!$D$20,0) -> 2526 | I32: =ROUNDUP(Enrolments!I32*'Enrol Scenarios'!$D$20,0) -> 2978 | J32: =ROUNDUP(Enrolments!J32*'Enrol Scenarios'!$D$20,0) -> 3430 | K32: =ROUNDUP(Enrolments!K32*'Enrol Scenarios'!$D$20,0) -> 3882 | L32: =ROUNDUP(Enrolments!L32*'Enrol Scenarios'!$D$20,0) -> 4335 | M32: =ROUNDUP(Enrolments!M32*'Enrol Scenarios'!$D$20,0) -> 4787 | N32: =ROUNDUP(Enrolments!N32*'Enrol Scenarios'!$D$20,0) -> 5239 | O32: =ROUNDUP(Enrolments!O32*'Enrol Scenarios'!$D$20,0) -> 5691 | P32: =ROUNDUP(Enrolments!P32*'Enrol Scenarios'!$D$20,0) -> 6144 | Q32: =ROUNDUP(Enrolments!Q32*'Enrol Scenarios'!$D$20,0) -> 6596 | R32: =ROUNDUP(Enrolments!R32*'Enrol Scenarios'!$D$20,0) -> 7048 | S32: =ROUNDUP(Enrolments!S32*'Enrol Scenarios'!$D$20,0) -> 7500
A35: Number of Certifications per learning intervention | B35: =Dashboard!N4 -> Status quo | C35: =SUM(C36:C38) -> 33015 | D35: 36866 | E35: 42789 | F35: 48712 | G35: 54635 | H35: 60559 | I35: 66481 | J35: 72404 | K35: =SUM(K36:K38) -> 78328 | L35: 84251 | M35: 90174 | N35: 96097 | O35: 102020 | P35: 107944 | Q35: 113867 | R35: 119791 | S35: 125713
B36: AET Level 1 to 4 | C36: =ROUNDUP(((SUM(Enrolments!C3:C6))-C22)*'Enrol Scenarios'!$B$13,0) -> 14180 | D36: =ROUNDUP((SUM(Enrolments!D3:D6)-D22)*'Enrol Scenarios'!$B$13,0) -> 15834 | E36: =ROUNDUP((SUM(Enrolments!E3:E6)-E22)*'Enrol Scenarios'!$B$13,0) -> 18378 | F36: =ROUNDUP((SUM(Enrolments!F3:F6)-F22)*'Enrol Scenarios'!$B$13,0) -> 20922 | G36: =ROUNDUP((SUM(Enrolments!G3:G6)-G22)*'Enrol Scenarios'!$B$13,0) -> 23466 | H36: =ROUNDUP((SUM(Enrolments!H3:H6)-H22)*'Enrol Scenarios'!$B$13,0) -> 26010 | I36: =ROUNDUP((SUM(Enrolments!I3:I6)-I22)*'Enrol Scenarios'!$B$13,0) -> 28554 | J36: =ROUNDUP((SUM(Enrolments!J3:J6)-J22)*'Enrol Scenarios'!$B$13,0) -> 31098 | K36: =ROUNDUP((SUM(Enrolments!K3:K6)-K22)*'Enrol Scenarios'!$B$13,0) -> 33642 | L36: =ROUNDUP((SUM(Enrolments!L3:L6)-L22)*'Enrol Scenarios'!$B$13,0) -> 36186 | M36: =ROUNDUP((SUM(Enrolments!M3:M6)-M22)*'Enrol Scenarios'!$B$13,0) -> 38730 | N36: =ROUNDUP((SUM(Enrolments!N3:N6)-N22)*'Enrol Scenarios'!$B$13,0) -> 41274 | O36: =ROUNDUP((SUM(Enrolments!O3:O6)-O22)*'Enrol Scenarios'!$B$13,0) -> 43818 | P36: =ROUNDUP((SUM(Enrolments!P3:P6)-P22)*'Enrol Scenarios'!$B$13,0) -> 46362 | Q36: =ROUNDUP((SUM(Enrolments!Q3:Q6)-Q22)*'Enrol Scenarios'!$B$13,0) -> 48906 | R36: =ROUNDUP((SUM(Enrolments!R3:R6)-R22)*'Enrol Scenarios'!$B$13,0) -> 51450 | S36: =ROUNDUP((SUM(Enrolments!S3:S6)-S22)*'Enrol Scenarios'!$B$13,0) -> 53994
B37: Grade 12 | C37: =ROUNDUP((Enrolments!C7-'Learner Numbers'!C23)*'Enrol Scenarios'!$B$14,0) -> 12986 | D37: =ROUNDUP((Enrolments!D7-'Learner Numbers'!D23)*'Enrol Scenarios'!$B$14,0) -> 14501 | E37: =ROUNDUP((Enrolments!E7-'Learner Numbers'!E23)*'Enrol Scenarios'!$B$14,0) -> 16830 | F37: =ROUNDUP((Enrolments!F7-'Learner Numbers'!F23)*'Enrol Scenarios'!$B$14,0) -> 19160 | G37: =ROUNDUP((Enrolments!G7-'Learner Numbers'!G23)*'Enrol Scenarios'!$B$14,0) -> 21490 | H37: =ROUNDUP((Enrolments!H7-'Learner Numbers'!H23)*'Enrol Scenarios'!$B$14,0) -> 23820 | I37: =ROUNDUP((Enrolments!I7-'Learner Numbers'!I23)*'Enrol Scenarios'!$B$14,0) -> 26149 | J37: =ROUNDUP((Enrolments!J7-'Learner Numbers'!J23)*'Enrol Scenarios'!$B$14,0) -> 28479 | K37: =ROUNDUP((Enrolments!K7-'Learner Numbers'!K23)*'Enrol Scenarios'!$B$14,0) -> 30809 | L37: =ROUNDUP((Enrolments!L7-'Learner Numbers'!L23)*'Enrol Scenarios'!$B$14,0) -> 33139 | M37: =ROUNDUP((Enrolments!M7-'Learner Numbers'!M23)*'Enrol Scenarios'!$B$14,0) -> 35469 | N37: =ROUNDUP((Enrolments!N7-'Learner Numbers'!N23)*'Enrol Scenarios'!$B$14,0) -> 37798 | O37: =ROUNDUP((Enrolments!O7-'Learner Numbers'!O23)*'Enrol Scenarios'!$B$14,0) -> 40128 | P37: =ROUNDUP((Enrolments!P7-'Learner Numbers'!P23)*'Enrol Scenarios'!$B$14,0) -> 42458 | Q37: =ROUNDUP((Enrolments!Q7-'Learner Numbers'!Q23)*'Enrol Scenarios'!$B$14,0) -> 44788 | R37: =ROUNDUP((Enrolments!R7-'Learner Numbers'!R23)*'Enrol Scenarios'!$B$14,0) -> 47118 | S37: =ROUNDUP((Enrolments!S7-'Learner Numbers'!S23)*'Enrol Scenarios'!$B$14,0) -> 49447
B38: Occupational Programmes | C38: =ROUNDUP((Enrolments!C8-'Learner Numbers'!C24)*'Enrol Scenarios'!$B$15,0) -> 5849 | D38: =ROUNDUP((Enrolments!D8-'Learner Numbers'!D24)*'Enrol Scenarios'!$B$15,0) -> 6531 | E38: =ROUNDUP((Enrolments!E8-'Learner Numbers'!E24)*'Enrol Scenarios'!$B$15,0) -> 7581 | F38: =ROUNDUP((Enrolments!F8-'Learner Numbers'!F24)*'Enrol Scenarios'!$B$15,0) -> 8630 | G38: =ROUNDUP((Enrolments!G8-'Learner Numbers'!G24)*'Enrol Scenarios'!$B$15,0) -> 9679 | H38: =ROUNDUP((Enrolments!H8-'Learner Numbers'!H24)*'Enrol Scenarios'!$B$15,0) -> 10729 | I38: =ROUNDUP((Enrolments!I8-'Learner Numbers'!I24)*'Enrol Scenarios'!$B$15,0) -> 11778 | J38: =ROUNDUP((Enrolments!J8-'Learner Numbers'!J24)*'Enrol Scenarios'!$B$15,0) -> 12827 | K38: =ROUNDUP((Enrolments!K8-'Learner Numbers'!K24)*'Enrol Scenarios'!$B$15,0) -> 13877 | L38: =ROUNDUP((Enrolments!L8-'Learner Numbers'!L24)*'Enrol Scenarios'!$B$15,0) -> 14926 | M38: =ROUNDUP((Enrolments!M8-'Learner Numbers'!M24)*'Enrol Scenarios'!$B$15,0) -> 15975 | N38: =ROUNDUP((Enrolments!N8-'Learner Numbers'!N24)*'Enrol Scenarios'!$B$15,0) -> 17025 | O38: =ROUNDUP((Enrolments!O8-'Learner Numbers'!O24)*'Enrol Scenarios'!$B$15,0) -> 18074 | P38: =ROUNDUP((Enrolments!P8-'Learner Numbers'!P24)*'Enrol Scenarios'!$B$15,0) -> 19124 | Q38: =ROUNDUP((Enrolments!Q8-'Learner Numbers'!Q24)*'Enrol Scenarios'!$B$15,0) -> 20173 | R38: =ROUNDUP((Enrolments!R8-'Learner Numbers'!R24)*'Enrol Scenarios'!$B$15,0) -> 21223 | S38: =ROUNDUP((Enrolments!S8-'Learner Numbers'!S24)*'Enrol Scenarios'!$B$15,0) -> 22272
B39: =Dashboard!O4 -> Full Policy | C39: =SUM(C40:C42) -> 35085 | D39: 39177 | E39: 59315 | F39: 79453 | G39: 99591 | H39: 119730 | I39: 139867 | J39: 160006 | K39: =SUM(K40:K42) -> 180145 | L39: 200282 | M39: 220419 | N39: 240559 | O39: 260697 | P39: 280834 | Q39: 300973 | R39: 321111 | S39: 341249
B40: AET Level 1 to 4 | C40: =ROUNDUP(((SUM(Enrolments!C19:C22)-C26))*'Enrol Scenarios'!$C$13,0) -> 16250 | D40: =ROUNDUP(((SUM(Enrolments!D19:D22)-D26))*'Enrol Scenarios'!$C$13,0) -> 18145 | E40: =ROUNDUP(((SUM(Enrolments!E19:E22)-E26))*'Enrol Scenarios'!$C$13,0) -> 19815 | F40: =ROUNDUP(((SUM(Enrolments!F19:F22)-F26))*'Enrol Scenarios'!$C$13,0) -> 21486 | G40: =ROUNDUP(((SUM(Enrolments!G19:G22)-G26))*'Enrol Scenarios'!$C$13,0) -> 23156 | H40: =ROUNDUP(((SUM(Enrolments!H19:H22)-H26))*'Enrol Scenarios'!$C$13,0) -> 24826 | I40: =ROUNDUP(((SUM(Enrolments!I19:I22)-I26))*'Enrol Scenarios'!$C$13,0) -> 26497 | J40: =ROUNDUP(((SUM(Enrolments!J19:J22)-J26))*'Enrol Scenarios'!$C$13,0) -> 28167 | K40: =ROUNDUP(((SUM(Enrolments!K19:K22)-K26))*'Enrol Scenarios'!$C$13,0) -> 29838 | L40: =ROUNDUP(((SUM(Enrolments!L19:L22)-L26))*'Enrol Scenarios'!$C$13,0) -> 31508 | M40: =ROUNDUP(((SUM(Enrolments!M19:M22)-M26))*'Enrol Scenarios'!$C$13,0) -> 33178 | N40: =ROUNDUP(((SUM(Enrolments!N19:N22)-N26))*'Enrol Scenarios'!$C$13,0) -> 34849 | O40: =ROUNDUP(((SUM(Enrolments!O19:O22)-O26))*'Enrol Scenarios'!$C$13,0) -> 36519 | P40: =ROUNDUP(((SUM(Enrolments!P19:P22)-P26))*'Enrol Scenarios'!$C$13,0) -> 38189 | Q40: =ROUNDUP(((SUM(Enrolments!Q19:Q22)-Q26))*'Enrol Scenarios'!$C$13,0) -> 39860 | R40: =ROUNDUP(((SUM(Enrolments!R19:R22)-R26))*'Enrol Scenarios'!$C$13,0) -> 41530 | S40: =ROUNDUP(((SUM(Enrolments!S19:S22)-S26))*'Enrol Scenarios'!$C$13,0) -> 43200
B41: Grade 12 | C41: =ROUNDUP((Enrolments!C23-C27)*'Enrol Scenarios'!$C$14,0) -> 12986 | D41: =ROUNDUP((Enrolments!D23-D27)*'Enrol Scenarios'!$C$14,0) -> 14501 | E41: =ROUNDUP((Enrolments!E23-E27)*'Enrol Scenarios'!$C$14,0) -> 15484 | F41: =ROUNDUP((Enrolments!F23-F27)*'Enrol Scenarios'!$C$14,0) -> 16467 | G41: =ROUNDUP((Enrolments!G23-G27)*'Enrol Scenarios'!$C$14,0) -> 17450 | H41: =ROUNDUP((Enrolments!H23-H27)*'Enrol Scenarios'!$C$14,0) -> 18434 | I41: =ROUNDUP((Enrolments!I23-I27)*'Enrol Scenarios'!$C$14,0) -> 19416 | J41: =ROUNDUP((Enrolments!J23-J27)*'Enrol Scenarios'!$C$14,0) -> 20400 | K41: =ROUNDUP((Enrolments!K23-K27)*'Enrol Scenarios'!$C$14,0) -> 21383 | L41: =ROUNDUP((Enrolments!L23-L27)*'Enrol Scenarios'!$C$14,0) -> 22366 | M41: =ROUNDUP((Enrolments!M23-M27)*'Enrol Scenarios'!$C$14,0) -> 23349 | N41: =ROUNDUP((Enrolments!N23-N27)*'Enrol Scenarios'!$C$14,0) -> 24333 | O41: =ROUNDUP((Enrolments!O23-O27)*'Enrol Scenarios'!$C$14,0) -> 25316 | P41: =ROUNDUP((Enrolments!P23-P27)*'Enrol Scenarios'!$C$14,0) -> 26299 | Q41: =ROUNDUP((Enrolments!Q23-Q27)*'Enrol Scenarios'!$C$14,0) -> 27282 | R41: =ROUNDUP((Enrolments!R23-R27)*'Enrol Scenarios'!$C$14,0) -> 28266 | S41: =ROUNDUP((Enrolments!S23-S27)*'Enrol Scenarios'!$C$14,0) -> 29249
B42: Occupational Programmes | C42: =ROUNDUP((Enrolments!C24-C28)*'Enrol Scenarios'!$C$15,0) -> 5849 | D42: =ROUNDUP((Enrolments!D24-D28)*'Enrol Scenarios'!$C$15,0) -> 6531 | E42: =ROUNDUP((Enrolments!E24-E28)*'Enrol Scenarios'!$C$15,0) -> 24016 | F42: =ROUNDUP((Enrolments!F24-F28)*'Enrol Scenarios'!$C$15,0) -> 41500 | G42: =ROUNDUP((Enrolments!G24-G28)*'Enrol Scenarios'!$C$15,0) -> 58985 | H42: =ROUNDUP((Enrolments!H24-H28)*'Enrol Scenarios'!$C$15,0) -> 76470 | I42: =ROUNDUP((Enrolments!I24-I28)*'Enrol Scenarios'!$C$15,0) -> 93954 | J42: =ROUNDUP((Enrolments!J24-J28)*'Enrol Scenarios'!$C$15,0) -> 111439 | K42: =ROUNDUP((Enrolments!K24-K28)*'Enrol Scenarios'!$C$15,0) -> 128924 | L42: =ROUNDUP((Enrolments!L24-L28)*'Enrol Scenarios'!$C$15,0) -> 146408 | M42: =ROUNDUP((Enrolments!M24-M28)*'Enrol Scenarios'!$C$15,0) -> 163892 | N42: =ROUNDUP((Enrolments!N24-N28)*'Enrol Scenarios'!$C$15,0) -> 181377 | O42: =ROUNDUP((Enrolments!O24-O28)*'Enrol Scenarios'!$C$15,0) -> 198862 | P42: =ROUNDUP((Enrolments!P24-P28)*'Enrol Scenarios'!$C$15,0) -> 216346 | Q42: =ROUNDUP((Enrolments!Q24-Q28)*'Enrol Scenarios'!$C$15,0) -> 233831 | R42: =ROUNDUP((Enrolments!R24-R28)*'Enrol Scenarios'!$C$15,0) -> 251315 | S42: =ROUNDUP((Enrolments!S24-S28)*'Enrol Scenarios'!$C$15,0) -> 268800
B43: =Dashboard!P4 -> Mixed | C43: =SUM(C44:C46) -> 32230 | D43: 42946 | E43: 53662 | F43: 64378 | G43: 75094 | H43: 85809 | I43: 96525 | J43: 107241 | K43: =SUM(K44:K46) -> 117957 | L43: 128673 | M43: 139389 | N43: 150106 | O43: 160821 | P43: 171536 | Q43: 182252 | R43: 192969 | S43: 203685
B44: AET Level 1 to 4 | C44: =ROUNDUP(((SUM(Enrolments!C27:C30))-C30)*'Enrol Scenarios'!$D$13,0) -> 14180 | D44: =ROUNDUP(((SUM(Enrolments!D27:D30))-D30)*'Enrol Scenarios'!$D$13,0) -> 15241 | E44: =ROUNDUP(((SUM(Enrolments!E27:E30))-E30)*'Enrol Scenarios'!$D$13,0) -> 16302 | F44: =ROUNDUP(((SUM(Enrolments!F27:F30))-F30)*'Enrol Scenarios'!$D$13,0) -> 17363 | G44: =ROUNDUP(((SUM(Enrolments!G27:G30))-G30)*'Enrol Scenarios'!$D$13,0) -> 18424 | H44: =ROUNDUP(((SUM(Enrolments!H27:H30))-H30)*'Enrol Scenarios'!$D$13,0) -> 19484 | I44: =ROUNDUP(((SUM(Enrolments!I27:I30))-I30)*'Enrol Scenarios'!$D$13,0) -> 20545 | J44: =ROUNDUP(((SUM(Enrolments!J27:J30))-J30)*'Enrol Scenarios'!$D$13,0) -> 21606 | K44: =ROUNDUP(((SUM(Enrolments!K27:K30))-K30)*'Enrol Scenarios'!$D$13,0) -> 22667 | L44: =ROUNDUP(((SUM(Enrolments!L27:L30))-L30)*'Enrol Scenarios'!$D$13,0) -> 23728 | M44: =ROUNDUP(((SUM(Enrolments!M27:M30))-M30)*'Enrol Scenarios'!$D$13,0) -> 24789 | N44: =ROUNDUP(((SUM(Enrolments!N27:N30))-N30)*'Enrol Scenarios'!$D$13,0) -> 25850 | O44: =ROUNDUP(((SUM(Enrolments!O27:O30))-O30)*'Enrol Scenarios'!$D$13,0) -> 26910 | P44: =ROUNDUP(((SUM(Enrolments!P27:P30))-P30)*'Enrol Scenarios'!$D$13,0) -> 27971 | Q44: =ROUNDUP(((SUM(Enrolments!Q27:Q30))-Q30)*'Enrol Scenarios'!$D$13,0) -> 29032 | R44: =ROUNDUP(((SUM(Enrolments!R27:R30))-R30)*'Enrol Scenarios'!$D$13,0) -> 30093 | S44: =ROUNDUP(((SUM(Enrolments!S27:S30))-S30)*'Enrol Scenarios'!$D$13,0) -> 31154
B45: Grade 12 | C45: =ROUNDUP((Enrolments!C31-C31)*'Enrol Scenarios'!$D$14,0) -> 12986 | D45: =ROUNDUP((Enrolments!D31-D31)*'Enrol Scenarios'!$D$14,0) -> 13957 | E45: =ROUNDUP((Enrolments!E31-E31)*'Enrol Scenarios'!$D$14,0) -> 14929 | F45: =ROUNDUP((Enrolments!F31-F31)*'Enrol Scenarios'!$D$14,0) -> 15901 | G45: =ROUNDUP((Enrolments!G31-G31)*'Enrol Scenarios'!$D$14,0) -> 16872 | H45: =ROUNDUP((Enrolments!H31-H31)*'Enrol Scenarios'!$D$14,0) -> 17844 | I45: =ROUNDUP((Enrolments!I31-I31)*'Enrol Scenarios'!$D$14,0) -> 18815 | J45: =ROUNDUP((Enrolments!J31-J31)*'Enrol Scenarios'!$D$14,0) -> 19787 | K45: =ROUNDUP((Enrolments!K31-K31)*'Enrol Scenarios'!$D$14,0) -> 20758 | L45: =ROUNDUP((Enrolments!L31-L31)*'Enrol Scenarios'!$D$14,0) -> 21730 | M45: =ROUNDUP((Enrolments!M31-M31)*'Enrol Scenarios'!$D$14,0) -> 22701 | N45: =ROUNDUP((Enrolments!N31-N31)*'Enrol Scenarios'!$D$14,0) -> 23673 | O45: =ROUNDUP((Enrolments!O31-O31)*'Enrol Scenarios'!$D$14,0) -> 24645 | P45: =ROUNDUP((Enrolments!P31-P31)*'Enrol Scenarios'!$D$14,0) -> 25616 | Q45: =ROUNDUP((Enrolments!Q31-Q31)*'Enrol Scenarios'!$D$14,0) -> 26587 | R45: =ROUNDUP((Enrolments!R31-R31)*'Enrol Scenarios'!$D$14,0) -> 27559 | S45: =ROUNDUP((Enrolments!S31-S31)*'Enrol Scenarios'!$D$14,0) -> 28531
B46: Occupational Programmes | C46: =ROUNDUP((Enrolments!C32-C32)*'Enrol Scenarios'!$D$15,0) -> 5064 | D46: =ROUNDUP((Enrolments!D32-D32)*'Enrol Scenarios'!$D$15,0) -> 13748 | E46: =ROUNDUP((Enrolments!E32-E32)*'Enrol Scenarios'!$D$15,0) -> 22431 | F46: =ROUNDUP((Enrolments!F32-F32)*'Enrol Scenarios'!$D$15,0) -> 31114 | G46: =ROUNDUP((Enrolments!G32-G32)*'Enrol Scenarios'!$D$15,0) -> 39798 | H46: =ROUNDUP((Enrolments!H32-H32)*'Enrol Scenarios'!$D$15,0) -> 48481 | I46: =ROUNDUP((Enrolments!I32-I32)*'Enrol Scenarios'!$D$15,0) -> 57165 | J46: =ROUNDUP((Enrolments!J32-J32)*'Enrol Scenarios'!$D$15,0) -> 65848 | K46: =ROUNDUP((Enrolments!K32-K32)*'Enrol Scenarios'!$D$15,0) -> 74532 | L46: =ROUNDUP((Enrolments!L32-L32)*'Enrol Scenarios'!$D$15,0) -> 83215 | M46: =ROUNDUP((Enrolments!M32-M32)*'Enrol Scenarios'!$D$15,0) -> 91899 | N46: =ROUNDUP((Enrolments!N32-N32)*'Enrol Scenarios'!$D$15,0) -> 100583 | O46: =ROUNDUP((Enrolments!O32-O32)*'Enrol Scenarios'!$D$15,0) -> 109266 | P46: =ROUNDUP((Enrolments!P32-P32)*'Enrol Scenarios'!$D$15,0) -> 117949 | Q46: =ROUNDUP((Enrolments!Q32-Q32)*'Enrol Scenarios'!$D$15,0) -> 126633 | R46: =ROUNDUP((Enrolments!R32-R32)*'Enrol Scenarios'!$D$15,0) -> 135317 | S46: =ROUNDUP((Enrolments!S32-S32)*'Enrol Scenarios'!$D$15,0) -> 144000
B48: Throughput
A49: Number of completions per learning intervention | B49: Status Quo | C49: =SUM(C50:C52) -> 89548.77537 | D49: =SUM(D50:D52) ->  | E49: =SUM(E50:E52) ->  | K49: =SUM(K50:K52) -> 
B50: AET Level 1 to 4 | C50: =SUM(Enrolments!C3:C6)-'Learner Numbers'!C22-'Learner Numbers'!C36 -> 67067.81916 | D50: =ROUNDUP(D12*D76,0) -> 
B51: Grade 12 | C51: =Enrolments!C7-'Learner Numbers'!C31-'Learner Numbers'!C37 -> 20977.94721 | D51: =ROUNDUP(D16*D77,0) -> 
B52: Occupational Programmes | C52: =Enrolments!C8-'Learner Numbers'!C32-'Learner Numbers'!C38 -> 1503.009 | D52: =ROUNDUP(D17*D78,0) -> 
B53: Full White Paper
B54: AET Level 1 to 4
B55: Grade 12
B56: Occupational Programmes
B57: Pragmatic
B58: AET Level 1 to 4
B59: Grade 12
B60: Occupational Programmes
B62: Learning Intervention Mix
B63: AET Level 1 | C63: =#REF! ->  | D63: =#REF! ->  | E63: =#REF! ->  | F63: =#REF! ->  | G63: =#REF! ->  | H63: =#REF! ->  | I63: =#REF! ->  | J63: =#REF! ->  | K63: =#REF! ->  | L63: =#REF! ->  | M63: =#REF! ->  | N63: =#REF! ->  | O63: =#REF! ->  | P63: =#REF! ->  | Q63: =#REF! ->  | R63: =#REF! ->  | S63: =#REF! -> 
B64: AET Level 2 | C64: =#REF! -> 
B65: AET Level 3 | C65: =#REF! -> 
B66: AET Level 4 | C66: =#REF! -> 
B67: Grade 12 | C67: =#REF! ->  | D67: =#REF! ->  | E67: =#REF! ->  | F67: =#REF! ->  | G67: =#REF! ->  | H67: =#REF! ->  | I67: =#REF! ->  | J67: =#REF! ->  | K67: =#REF! ->  | L67: =#REF! ->  | M67: =#REF! ->  | N67: =#REF! ->  | O67: =#REF! ->  | P67: =#REF! ->  | Q67: =#REF! ->  | R67: =#REF! ->  | S67: =#REF! -> 
B68: Occupational Programmes | C68: =#REF! ->  | D68: =#REF! ->  | E68: =#REF! ->  | F68: =#REF! ->  | G68: =#REF! ->  | H68: =#REF! ->  | I68: =#REF! ->  | J68: =#REF! ->  | K68: =#REF! ->  | L68: =#REF! ->  | M68: =#REF! ->  | N68: =#REF! ->  | O68: =#REF! ->  | P68: =#REF! ->  | Q68: =#REF! ->  | R68: =#REF! ->  | S68: =#REF! -> 
B70: Dropouts per learning intervention
B71: AET Level 1 to 4 | C71: =#REF! ->  | D71: =#REF! ->  | E71: =#REF! ->  | F71: =#REF! ->  | G71: =#REF! ->  | H71: =#REF! ->  | I71: =#REF! ->  | J71: =#REF! ->  | K71: =#REF! ->  | L71: =#REF! ->  | M71: =#REF! ->  | N71: =#REF! ->  | O71: =#REF! ->  | P71: =#REF! ->  | Q71: =#REF! ->  | R71: =#REF! ->  | S71: =#REF! -> 
B72: Grade 10 to 12 | C72: =#REF! ->  | D72: =#REF! ->  | E72: =#REF! ->  | F72: =#REF! ->  | G72: =#REF! ->  | H72: =#REF! ->  | I72: =#REF! ->  | J72: =#REF! ->  | K72: =#REF! ->  | L72: =#REF! ->  | M72: =#REF! ->  | N72: =#REF! ->  | O72: =#REF! ->  | P72: =#REF! ->  | Q72: =#REF! ->  | R72: =#REF! ->  | S72: =#REF! -> 
B73: Occupational Programmes | C73: =#REF! ->  | D73: =#REF! ->  | E73: =#REF! ->  | F73: =#REF! ->  | G73: =#REF! ->  | H73: =#REF! ->  | I73: =#REF! ->  | J73: =#REF! ->  | K73: =#REF! ->  | L73: =#REF! ->  | M73: =#REF! ->  | N73: =#REF! ->  | O73: =#REF! ->  | P73: =#REF! ->  | Q73: =#REF! ->  | R73: =#REF! ->  | S73: =#REF! -> 
B75: Throughput per learning intervention
B76: AET Level 1 to 4 | C76: =#REF! ->  | D76: =#REF! ->  | E76: =#REF! ->  | F76: =#REF! ->  | G76: =#REF! ->  | H76: =#REF! ->  | I76: =#REF! ->  | J76: =#REF! ->  | K76: =#REF! ->  | L76: =#REF! ->  | M76: =#REF! ->  | N76: =#REF! ->  | O76: =#REF! ->  | P76: =#REF! ->  | Q76: =#REF! ->  | R76: =#REF! ->  | S76: =#REF! -> 
B77: Grade 10 to 12 | C77: =#REF! ->  | D77: =#REF! ->  | E77: =#REF! ->  | F77: =#REF! ->  | G77: =#REF! ->  | H77: =#REF! ->  | I77: =#REF! ->  | J77: =#REF! ->  | K77: =#REF! ->  | L77: =#REF! ->  | M77: =#REF! ->  | N77: =#REF! ->  | O77: =#REF! ->  | P77: =#REF! ->  | Q77: =#REF! ->  | R77: =#REF! ->  | S77: =#REF! -> 
B78: Occupational Programmes | C78: =#REF! ->  | D78: =#REF! ->  | E78: =#REF! ->  | F78: =#REF! ->  | G78: =#REF! ->  | H78: =#REF! ->  | I78: =#REF! ->  | J78: =#REF! ->  | K78: =#REF! ->  | L78: =#REF! ->  | M78: =#REF! ->  | N78: =#REF! ->  | O78: =#REF! ->  | P78: =#REF! ->  | Q78: =#REF! ->  | R78: =#REF! ->  | S78: =#REF! -> 

Sheet Enrolments
C1: 2014 | D1: 2015 | E1: 2016 | F1: 2017 | G1: 2018 | H1: 2019 | I1: 2020 | J1: 2021 | K1: 2022 | L1: 2023 | M1: 2024 | N1: 2025 | O1: 2026 | P1: 2027 | Q1: 2028 | R1: 2029 | S1: 2030
A2: =Dashboard!N4 -> Status quo | B2: Total Enrolment | C2: 262621 | D2: 293248 | E2: =D2+($S2-$D2)/($S$1-$D$1) -> 340364.8 | F2: =E2+($S2-$D2)/($S$1-$D$1) -> 387481.6 | G2: 434598.4 | H2: 481715.2 | I2: 528832 | J2: 575948.8 | K2: 623065.6 | L2: 670182.4 | M2: 717299.2 | N2: 764416 | O2: 811532.8 | P2: 858649.6 | Q2: 905766.4 | R2: 952883.2 | S2: =Dashboard!E6 -> 1000000
B3: Abet 1 | C3: =C$2*'Enrol Scenarios'!$B$4 -> 15817.86638 | D3: =D$2*'Enrol Scenarios'!$B$4 -> 17662.55433 | E3: =E$2*'Enrol Scenarios'!$B$4 -> 20500.43572 | F3: =F$2*'Enrol Scenarios'!$B$4 -> 23338.3171 | G3: =G$2*'Enrol Scenarios'!$B$4 -> 26176.19848 | H3: =H$2*'Enrol Scenarios'!$B$4 -> 29014.07987 | I3: =I$2*'Enrol Scenarios'!$B$4 -> 31851.96125 | J3: =J$2*'Enrol Scenarios'!$B$4 -> 34689.84264 | K3: =K$2*'Enrol Scenarios'!$B$4 -> 37527.72402 | L3: =L$2*'Enrol Scenarios'!$B$4 -> 40365.6054 | M3: =M$2*'Enrol Scenarios'!$B$4 -> 43203.48679 | N3: =N$2*'Enrol Scenarios'!$B$4 -> 46041.36817 | O3: =O$2*'Enrol Scenarios'!$B$4 -> 48879.24955 | P3: =P$2*'Enrol Scenarios'!$B$4 -> 51717.13094 | Q3: =Q$2*'Enrol Scenarios'!$B$4 -> 54555.01232 | R3: =R$2*'Enrol Scenarios'!$B$4 -> 57392.8937 | S3: =S$2*'Enrol Scenarios'!$B$4 -> 60230.77509
B4: Abet 2 | C4: =C$2*'Enrol Scenarios'!$B$5 -> 22699.50136 | D4: =D$2*'Enrol Scenarios'!$B$5 -> 25346.72922 | E4: =E$2*'Enrol Scenarios'!$B$5 -> 29419.24386 | F4: =F$2*'Enrol Scenarios'!$B$5 -> 33491.75849 | G4: =G$2*'Enrol Scenarios'!$B$5 -> 37564.27312 | H4: =H$2*'Enrol Scenarios'!$B$5 -> 41636.78776 | I4: =I$2*'Enrol Scenarios'!$B$5 -> 45709.30239 | J4: =J$2*'Enrol Scenarios'!$B$5 -> 49781.81703 | K4: =K$2*'Enrol Scenarios'!$B$5 -> 53854.33166 | L4: =L$2*'Enrol Scenarios'!$B$5 -> 57926.84629 | M4: =M$2*'Enrol Scenarios'!$B$5 -> 61999.36093 | N4: =N$2*'Enrol Scenarios'!$B$5 -> 66071.87556 | O4: =O$2*'Enrol Scenarios'!$B$5 -> 70144.3902 | P4: =P$2*'Enrol Scenarios'!$B$5 -> 74216.90483 | Q4: =Q$2*'Enrol Scenarios'!$B$5 -> 78289.41946 | R4: =R$2*'Enrol Scenarios'!$B$5 -> 82361.9341 | S4: =S$2*'Enrol Scenarios'!$B$5 -> 86434.44873
B5: Abet 3 | C5: =C$2*'Enrol Scenarios'!$B$6 -> 26933.94882 | D5: =D$2*'Enrol Scenarios'!$B$6 -> 30075.00019 | E5: =E$2*'Enrol Scenarios'!$B$6 -> 34907.2165 | F5: =F$2*'Enrol Scenarios'!$B$6 -> 39739.43281 | G5: =G$2*'Enrol Scenarios'!$B$6 -> 44571.64912 | H5: =H$2*'Enrol Scenarios'!$B$6 -> 49403.86543 | I5: =I$2*'Enrol Scenarios'!$B$6 -> 54236.08175 | J5: =J$2*'Enrol Scenarios'!$B$6 -> 59068.29806 | K5: =K$2*'Enrol Scenarios'!$B$6 -> 63900.51437 | L5: =L$2*'Enrol Scenarios'!$B$6 -> 68732.73068 | M5: =M$2*'Enrol Scenarios'!$B$6 -> 73564.94699 | N5: =N$2*'Enrol Scenarios'!$B$6 -> 78397.1633 | O5: =O$2*'Enrol Scenarios'!$B$6 -> 83229.37961 | P5: =P$2*'Enrol Scenarios'!$B$6 -> 88061.59592 | Q5: =Q$2*'Enrol Scenarios'!$B$6 -> 92893.81224 | R5: =R$2*'Enrol Scenarios'!$B$6 -> 97726.02855 | S5: =S$2*'Enrol Scenarios'!$B$6 -> 102558.2449
B6: Abet 4 | C6: =C$2*'Enrol Scenarios'!$B$7 -> 115099.5026 | D6: =D$2*'Enrol Scenarios'!$B$7 -> 128522.4675 | E6: =E$2*'Enrol Scenarios'!$B$7 -> 149172.4545 | F6: =F$2*'Enrol Scenarios'!$B$7 -> 169822.4415 | G6: =G$2*'Enrol Scenarios'!$B$7 -> 190472.4286 | H6: =H$2*'Enrol Scenarios'!$B$7 -> 211122.4156 | I6: =I$2*'Enrol Scenarios'!$B$7 -> 231772.4026 | J6: =J$2*'Enrol Scenarios'!$B$7 -> 252422.3897 | K6: =K$2*'Enrol Scenarios'!$B$7 -> 273072.3767 | L6: =L$2*'Enrol Scenarios'!$B$7 -> 293722.3637 | M6: =M$2*'Enrol Scenarios'!$B$7 -> 314372.3507 | N6: =N$2*'Enrol Scenarios'!$B$7 -> 335022.3378 | O6: =O$2*'Enrol Scenarios'!$B$7 -> 355672.3248 | P6: =P$2*'Enrol Scenarios'!$B$7 -> 376322.3118 | Q6: =Q$2*'Enrol Scenarios'!$B$7 -> 396972.2989 | R6: =R$2*'Enrol Scenarios'!$B$7 -> 417622.2859 | S6: =S$2*'Enrol Scenarios'!$B$7 -> 438272.2729
B7: Grade 12 | C7: =C$2*'Enrol Scenarios'!$B$8 -> 75476.94721 | D7: =D$2*'Enrol Scenarios'!$B$8 -> 84279.10874 | E7: =E$2*'Enrol Scenarios'!$B$8 -> 97820.41818 | F7: =F$2*'Enrol Scenarios'!$B$8 -> 111361.7276 | G7: =G$2*'Enrol Scenarios'!$B$8 -> 124903.0371 | H7: =H$2*'Enrol Scenarios'!$B$8 -> 138444.3465 | I7: =I$2*'Enrol Scenarios'!$B$8 -> 151985.6559 | J7: =J$2*'Enrol Scenarios'!$B$8 -> 165526.9654 | K7: =K$2*'Enrol Scenarios'!$B$8 -> 179068.2748 | L7: =L$2*'Enrol Scenarios'!$B$8 -> 192609.5843 | M7: =M$2*'Enrol Scenarios'!$B$8 -> 206150.8937 | N7: =N$2*'Enrol Scenarios'!$B$8 -> 219692.2031 | O7: =O$2*'Enrol Scenarios'!$B$8 -> 233233.5126 | P7: =P$2*'Enrol Scenarios'!$B$8 -> 246774.822 | Q7: =Q$2*'Enrol Scenarios'!$B$8 -> 260316.1315 | R7: =R$2*'Enrol Scenarios'!$B$8 -> 273857.4409 | S7: =S$2*'Enrol Scenarios'!$B$8 -> 287398.7503
B8: Occupational | C8: =C$2*'Enrol Scenarios'!$B$9 -> 7616.009 | D8: =D$2*'Enrol Scenarios'!$B$9 -> 8504.192 | E8: =E$2*'Enrol Scenarios'!$B$9 -> 9870.5792 | F8: =F$2*'Enrol Scenarios'!$B$9 -> 11236.9664 | G8: =G$2*'Enrol Scenarios'!$B$9 -> 12603.3536 | H8: =H$2*'Enrol Scenarios'!$B$9 -> 13969.7408 | I8: =I$2*'Enrol Scenarios'!$B$9 -> 15336.128 | J8: =J$2*'Enrol Scenarios'!$B$9 -> 16702.5152 | K8: =K$2*'Enrol Scenarios'!$B$9 -> 18068.9024 | L8: =L$2*'Enrol Scenarios'!$B$9 -> 19435.2896 | M8: =M$2*'Enrol Scenarios'!$B$9 -> 20801.6768 | N8: =N$2*'Enrol Scenarios'!$B$9 -> 22168.064 | O8: =O$2*'Enrol Scenarios'!$B$9 -> 23534.4512 | P8: =P$2*'Enrol Scenarios'!$B$9 -> 24900.8384 | Q8: =Q$2*'Enrol Scenarios'!$B$9 -> 26267.2256 | R8: =R$2*'Enrol Scenarios'!$B$9 -> 27633.6128 | S8: =S$2*'Enrol Scenarios'!$B$9 -> 29000
C9: =C2/D2 -> 0.89555939 | D9: =1-C9 -> 0.10444061 | E9: =($S$10/$D$10)^(1/($S$1-$D$1))-1 -> 0.08058509936 | F9: =($S$10/$D$10)^(1/($S$1-$D$1))-1 -> 0.08058509936 | G9: 0.08058509936 | H9: 0.08058509936 | I9: 0.08058509936 | J9: 0.08058509936 | K9: 0.08058509936 | L9: 0.08058509936 | M9: 0.08058509936 | N9: 0.08058509936 | O9: 0.08058509936 | P9: 0.08058509936 | Q9: 0.08058509936 | R9: 0.08058509936
A10: Constant Growth | B10: Total Enrolment | C10: 293248 | D10: 312691 | E10: =D10*(1+E9) -> 337889.2353 | F10: =E10*(1+F9) -> 365118.0729 | G10: 394541.1491 | H10: 426335.2868 | I10: 460691.5582 | J10: 497816.4332 | K10: 537933.0199 | L10: 581282.4058 | M10: 628125.1062 | N10: 678742.6303 | O10: 733439.1726 | P10: 792543.4412 | Q10: 856410.6332 | R10: 925424.5691 | S10: =Dashboard!F6 -> 1000000
B11: Abet 1 | C11: =C$10*#REF! ->  | D11: =D$10*#REF! ->  | E11: =E$10*#REF! ->  | F11: =F$10*#REF! ->  | G11: =G$10*#REF! ->  | H11: =H$10*#REF! ->  | I11: =I$10*#REF! ->  | J11: =J$10*#REF! ->  | K11: =K$10*#REF! ->  | L11: =L$10*#REF! ->  | M11: =M$10*#REF! ->  | N11: =N$10*#REF! ->  | O11: =O$10*#REF! ->  | P11: =P$10*#REF! ->  | Q11: =Q$10*#REF! ->  | R11: =R$10*#REF! ->  | S11: =S$10*#REF! -> 
B12: Abet 2 | C12: =C$10*#REF! ->  | D12: =D$10*#REF! ->  | E12: =E$10*#REF! ->  | F12: =F$10*#REF! ->  | G12: =G$10*#REF! ->  | H12: =H$10*#REF! ->  | I12: =I$10*#REF! ->  | J12: =J$10*#REF! ->  | K12: =K$10*#REF! ->  | L12: =L$10*#REF! ->  | M12: =M$10*#REF! ->  | N12: =N$10*#REF! ->  | O12: =O$10*#REF! ->  | P12: =P$10*#REF! ->  | Q12: =Q$10*#REF! ->  | R12: =R$10*#REF! ->  | S12: =S$10*#REF! -> 
B13: Abet 3 | C13: =C$10*#REF! ->  | D13: =D$10*#REF! ->  | E13: =E$10*#REF! ->  | F13: =F$10*#REF! ->  | G13: =G$10*#REF! ->  | H13: =H$10*#REF! ->  | I13: =I$10*#REF! ->  | J13: =J$10*#REF! ->  | K13: =K$10*#REF! ->  | L13: =L$10*#REF! ->  | M13: =M$10*#REF! ->  | N13: =N$10*#REF! ->  | O13: =O$10*#REF! ->  | P13: =P$10*#REF! ->  | Q13: =Q$10*#REF! ->  | R13: =R$10*#REF! ->  | S13: =S$10*#REF! -> 
B14: Abet 4 | C14: =C$10*#REF! ->  | D14: =D$10*#REF! ->  | E14: =E$10*#REF! ->  | F14: =F$10*#REF! ->  | G14: =G$10*#REF! ->  | H14: =H$10*#REF! ->  | I14: =I$10*#REF! ->  | J14: =J$10*#REF! ->  | K14: =K$10*#REF! ->  | L14: =L$10*#REF! ->  | M14: =M$10*#REF! ->  | N14: =N$10*#REF! ->  | O14: =O$10*#REF! ->  | P14: =P$10*#REF! ->  | Q14: =Q$10*#REF! ->  | R14: =R$10*#REF! ->  | S14: =S$10*#REF! -> 
B15: Grade 12 | C15: =C$10*#REF! ->  | D15: =D$10*#REF! ->  | E15: =E$10*#REF! ->  | F15: =F$10*#REF! ->  | G15: =G$10*#REF! ->  | H15: =H$10*#REF! ->  | I15: =I$10*#REF! ->  | J15: =J$10*#REF! ->  | K15: =K$10*#REF! ->  | L15: =L$10*#REF! ->  | M15: =M$10*#REF! ->  | N15: =N$10*#REF! ->  | O15: =O$10*#REF! ->  | P15: =P$10*#REF! ->  | Q15: =Q$10*#REF! ->  | R15: =R$10*#REF! ->  | S15: =S$10*#REF! -> 
B16: Occupational | C16: =C$10*#REF! ->  | D16: =D$10*#REF! ->  | E16: =E$10*#REF! ->  | F16: =F$10*#REF! ->  | G16: =G$10*#REF! ->  | H16: =H$10*#REF! ->  | I16: =I$10*#REF! ->  | J16: =J$10*#REF! ->  | K16: =K$10*#REF! ->  | L16: =L$10*#REF! ->  | M16: =M$10*#REF! ->  | N16: =N$10*#REF! ->  | O16: =O$10*#REF! ->  | P16: =P$10*#REF! ->  | Q16: =Q$10*#REF! ->  | R16: =R$10*#REF! ->  | S16: =S$10*#REF! -> 
A18: =Dashboard!O4 -> Full Policy | B18: Total Enrolment | C18: =C2 -> 262621 | D18: 293248 | E18: =D18+($S18-$D18)/($S$1-$D$1) -> 340364.8 | F18: =E18+($S18-$D18)/($S$1-$D$1) -> 387481.6 | G18: 434598.4 | H18: 481715.2 | I18: 528832 | J18: 575948.8 | K18: 623065.6 | L18: 670182.4 | M18: 717299.2 | N18: 764416 | O18: 811532.8 | P18: 858649.6 | Q18: 905766.4 | R18: 952883.2 | S18: =Dashboard!F6 -> 1000000
B19: Abet 1 | C19: =C3 -> 15817.86638 | D19: =D$2*'Enrol Scenarios'!$B$4 -> 17662.55433 | E19: 22485.05071 | F19: =E19+($S19-$D19)/($S$1-$D$1) -> 27307.54709 | G19: 32130.04347 | H19: 36952.53984 | I19: 41775.03622 | J19: 46597.5326 | K19: 51420.02898 | L19: 56242.52536 | M19: 61065.02173 | N19: 65887.51811 | O19: 70710.01449 | P19: 75532.51087 | Q19: 80355.00724 | R19: 85177.50362 | S19: =S$18*'Enrol Scenarios'!C4 -> 90000
B20: Abet 2 | C20: =C4 -> 22699.50136 | D20: =D$2*'Enrol Scenarios'!$B$5 -> 25346.72922 | E20: 31656.94727 | F20: =E20+($S20-$D20)/($S$1-$D$1) -> 37967.16533 | G20: 44277.38338 | H20: 50587.60143 | I20: 56897.81948 | J20: 63208.03753 | K20: 69518.25559 | L20: 75828.47364 | M20: 82138.69169 | N20: 88448.90974 | O20: 94759.12779 | P20: 101069.3458 | Q20: 107379.5639 | R20: 113689.7819 | S20: =S$18*'Enrol Scenarios'!C5 -> 120000
B21: Abet 3 | C21: 26933.94882 | D21: =D$2*'Enrol Scenarios'!$B$6 -> 30075.00019 | E21: 31403.33351 | F21: =E21+($S21-$D21)/($S$1-$D$1) -> 32731.66683 | G21: 34060.00015 | H21: 35388.33347 | I21: 36716.66679 | J21: 38045.00011 | K21: 39373.33343 | L21: 40701.66675 | M21: 42030.00008 | N21: 43358.3334 | O21: 44686.66672 | P21: 46015.00004 | Q21: 47343.33336 | R21: 48671.66668 | S21: =S$18*'Enrol Scenarios'!C6 -> 50000
B22: Abet 4 | C22: 115099.5026 | D22: =D$2*'Enrol Scenarios'!$B$7 -> 128522.4675 | E22: 134620.9697 | F22: =E22+($S22-$D22)/($S$1-$D$1) -> 140719.4718 | G22: 146817.974 | H22: 152916.4762 | I22: 159014.9783 | J22: 165113.4805 | K22: 171211.9827 | L22: 177310.4848 | M22: 183408.987 | N22: 189507.4892 | O22: 195605.9913 | P22: 201704.4935 | Q22: 207802.9957 | R22: 213901.4978 | S22: =S$18*'Enrol Scenarios'!C7 -> 220000
B23: Grade 12 | C23: 75476.94721 | D23: =D$2*'Enrol Scenarios'!$B$8 -> 84279.10874 | E23: 89993.83482 | F23: =E23+($S23-$D23)/($S$1-$D$1) -> 95708.56091 | G23: 101423.287 | H23: 107138.0131 | I23: 112852.7392 | J23: 118567.4652 | K23: 124282.1913 | L23: 129996.9174 | M23: 135711.6435 | N23: 141426.3696 | O23: 147141.0957 | P23: 152855.8217 | Q23: 158570.5478 | R23: 164285.2739 | S23: =S$18*'Enrol Scenarios'!C8 -> 170000
B24: Occupational | C24: 7616.009 | D24: =D$2*'Enrol Scenarios'!$B$9 -> 8504.192 | E24: 31270.5792 | F24: =E24+($S24-$D24)/($S$1-$D$1) -> 54036.9664 | G24: 76803.3536 | H24: 99569.7408 | I24: 122336.128 | J24: 145102.5152 | K24: 167868.9024 | L24: 190635.2896 | M24: 213401.6768 | N24: 236168.064 | O24: 258934.4512 | P24: 281700.8384 | Q24: 304467.2256 | R24: 327233.6128 | S24: =S$18*'Enrol Scenarios'!C9 -> 350000
C25: =1-(C18/D18) -> 0.10444061 | D25: =($S$26/$C$26)^(1/($S$1-$C$1))-1 -> 0.06778358036 | E25: 0.06326467501 | F25: =($S$26/$C$26)^(1/($S$1-$C$1))-1 -> 0.06778358036 | G25: 0.06778358036 | H25: 0.06778358036 | I25: 0.06778358036 | J25: 0.06778358036 | K25: 0.06778358036 | L25: 0.06778358036 | M25: 0.06778358036 | N25: 0.06778358036 | O25: 0.06778358036 | P25: 0.06778358036 | Q25: 0.06778358036 | R25: 0.06778358036
A26: =Dashboard!P4 -> Mixed | B26: Total Enrolment | C26: 262621 | D26: 293248 | E26: 323698.1333 | F26: =E26*(1+F25) -> 345639.5518 | G26: 369068.2381 | H26: 394085.0047 | I26: 420797.4973 | J26: 449320.6582 | K26: 479777.2212 | L26: 512298.239 | M26: 547023.6479 | N26: 584102.8693 | O26: 623695.453 | P26: 665971.7639 | Q26: 711113.7145 | R26: 759315.5481 | S26: 750000
B27: Abet 1 | C27: 15817.86638 | D27: =C27+($S27-$C27)/($S$1-$C$1) -> 19516.74974 | E27: 23215.63309 | F27: =E27+($S27-$D27)/($S$1-$D$1) -> 26914.51644 | G27: 30613.39979 | H27: 34312.28314 | I27: 38011.16649 | J27: 41710.04984 | K27: 45408.93319 | L27: 49107.81654 | M27: 52806.69989 | N27: 56505.58325 | O27: 60204.4666 | P27: 63903.34995 | Q27: 67602.2333 | R27: 71301.11665 | S27: =$S$26*'Enrol Scenarios'!D4 -> 75000
B28: Abet 2 | C28: 22699.50136 | D28: 25968.28253 | E28: 29237.06369 | F28: 32505.84486 | G28: 35774.62602 | H28: 39043.40719 | I28: 42312.18835 | J28: 45580.96952 | K28: 48849.75068 | L28: 52118.53185 | M28: 55387.31301 | N28: 58656.09418 | O28: 61924.87534 | P28: 65193.65651 | Q28: 68462.43767 | R28: 71731.21884 | S28: =$S$26*'Enrol Scenarios'!D5 -> 75000
B29: Abet 3 | C29: 26933.94882 | D29: 28948.99088 | E29: 30964.03293 | F29: 32979.07498 | G29: 34994.11704 | H29: 37009.15909 | I29: 39024.20114 | J29: 41039.2432 | K29: 43054.28525 | L29: 45069.3273 | M29: 47084.36936 | N29: 49099.41141 | O29: 51114.45346 | P29: 53129.49551 | Q29: 55144.53757 | R29: 57159.57962 | S29: =$S$26*'Enrol Scenarios'!D6 -> 59174.62167
B30: Abet 4 | C30: 115099.5026 | D30: 119624.5626 | E30: 124149.6226 | F30: =E30+($S30-$D30)/($S$1-$D$1) -> 128674.6826 | G30: 133199.7426 | H30: 137724.8026 | I30: 142249.8626 | J30: 146774.9225 | K30: 151299.9825 | L30: 155825.0425 | M30: 160350.1025 | N30: 164875.1625 | O30: 169400.2225 | P30: 173925.2825 | Q30: 178450.3425 | R30: 182975.4025 | S30: =$S$26*'Enrol Scenarios'!D7 -> 187500.4625
B31: Grade 12 | C31: 75476.94721 | D31: 81123.69525 | E31: 86770.44329 | F31: 92417.19133 | G31: 98063.93937 | H31: 103710.6874 | I31: 109357.4354 | J31: 115004.1835 | K31: 120650.9315 | L31: 126297.6796 | M31: 131944.4276 | N31: 137591.1756 | O31: 143237.9237 | P31: 148884.6717 | Q31: 154531.4197 | R31: 160178.1678 | S31: =$S$26*'Enrol Scenarios'!D8 -> 165824.9158
B32: Occupational | C32: 6593.233633 | D32: 17899.90653 | E32: 29206.57943 | F32: 40513.25233 | G32: 51819.92522 | H32: 63126.59812 | I32: 74433.27102 | J32: 85739.94392 | K32: 97046.61682 | L32: 108353.2897 | M32: 119659.9626 | N32: 130966.6355 | O32: 142273.3084 | P32: 153579.9813 | Q32: 164886.6542 | R32: 176193.3271 | S32: =$S$26*'Enrol Scenarios'!D9 -> 187500
E33: 0 | F33: =($S$34/$D$34)^(1/($S$1-$D$1))-1 -> 0.08058509936 | G33: =($S$34/$D$34)^(1/($S$1-$D$1))-1 -> 0.08058509936 | H33: 0.08058509936 | I33: 0.08058509936 | J33: 0.08058509936 | K33: 0.08058509936 | L33: 0.08058509936 | M33: 0.08058509936 | N33: 0.08058509936 | O33: 0.08058509936 | P33: 0.08058509936 | Q33: 0.08058509936 | R33: 0.08058509936
A34: Constant Growth | B34: Total Enrolment | C34: 293248 | D34: 312691 | E34: =D34+($S34-$D34)/($S$1-$D$1) -> 358511.6 | F34: =E34*(1+F$33) -> 387402.2929 | G34: 418621.1452 | H34: 452355.7717 | I34: 488808.9066 | J34: 528199.6209 | K34: 570764.6398 | L34: 616759.765 | M34: 666461.4119 | N34: 720168.271 | O34: 778203.1027 | P34: 840914.6771 | Q34: 908679.8699 | R34: 981905.9274 | S34: 1000000
B35: Abet 1 | C35: =C$10*#REF! ->  | D35: =D$10*#REF! ->  | F35: =F$10*#REF! ->  | G35: =G$10*#REF! ->  | H35: =H$10*#REF! ->  | I35: =I$10*#REF! ->  | J35: =J$10*#REF! ->  | K35: =K$10*#REF! ->  | L35: =L$10*#REF! ->  | M35: =M$10*#REF! ->  | N35: =N$10*#REF! ->  | O35: =O$10*#REF! ->  | P35: =P$10*#REF! ->  | Q35: =Q$10*#REF! ->  | R35: =R$10*#REF! ->  | S35: =S$34*'Enrol Scenarios'!C4 -> 90000
B36: Abet 2 | C36: =C$10*#REF! ->  | D36: =D$10*#REF! ->  | F36: =F$10*#REF! ->  | G36: =G$10*#REF! ->  | H36: =H$10*#REF! ->  | I36: =I$10*#REF! ->  | J36: =J$10*#REF! ->  | K36: =K$10*#REF! ->  | L36: =L$10*#REF! ->  | M36: =M$10*#REF! ->  | N36: =N$10*#REF! ->  | O36: =O$10*#REF! ->  | P36: =P$10*#REF! ->  | Q36: =Q$10*#REF! ->  | R36: =R$10*#REF! ->  | S36: =S$34*'Enrol Scenarios'!C5 -> 120000
B37: Abet 3 | C37: =C$10*#REF! ->  | D37: =D$10*#REF! ->  | F37: =F$10*#REF! ->  | G37: =G$10*#REF! ->  | H37: =H$10*#REF! ->  | I37: =I$10*#REF! ->  | J37: =J$10*#REF! ->  | K37: =K$10*#REF! ->  | L37: =L$10*#REF! ->  | M37: =M$10*#REF! ->  | N37: =N$10*#REF! ->  | O37: =O$10*#REF! ->  | P37: =P$10*#REF! ->  | Q37: =Q$10*#REF! ->  | R37: =R$10*#REF! ->  | S37: =S$34*'Enrol Scenarios'!C6 -> 50000
B38: Abet 4 | C38: =C$10*#REF! ->  | D38: =D$10*#REF! ->  | F38: =F$10*#REF! ->  | G38: =G$10*#REF! ->  | H38: =H$10*#REF! ->  | I38: =I$10*#REF! ->  | J38: =J$10*#REF! ->  | K38: =K$10*#REF! ->  | L38: =L$10*#REF! ->  | M38: =M$10*#REF! ->  | N38: =N$10*#REF! ->  | O38: =O$10*#REF! ->  | P38: =P$10*#REF! ->  | Q38: =Q$10*#REF! ->  | R38: =R$10*#REF! ->  | S38: =S$34*'Enrol Scenarios'!C7 -> 220000
B39: Grade 12 | C39: =C$10*#REF! ->  | D39: =D$10*#REF! ->  | F39: =F$10*#REF! ->  | G39: =G$10*#REF! ->  | H39: =H$10*#REF! ->  | I39: =I$10*#REF! ->  | J39: =J$10*#REF! ->  | K39: =K$10*#REF! ->  | L39: =L$10*#REF! ->  | M39: =M$10*#REF! ->  | N39: =N$10*#REF! ->  | O39: =O$10*#REF! ->  | P39: =P$10*#REF! ->  | Q39: =Q$10*#REF! ->  | R39: =R$10*#REF! ->  | S39: =S$34*'Enrol Scenarios'!C8 -> 170000
B40: Occupational | C40: =C$10*#REF! ->  | D40: =D$10*#REF! ->  | F40: =F$10*#REF! ->  | G40: =G$10*#REF! ->  | H40: =H$10*#REF! ->  | I40: =I$10*#REF! ->  | J40: =J$10*#REF! ->  | K40: =K$10*#REF! ->  | L40: =L$10*#REF! ->  | M40: =M$10*#REF! ->  | N40: =N$10*#REF! ->  | O40: =O$10*#REF! ->  | P40: =P$10*#REF! ->  | Q40: =Q$10*#REF! ->  | R40: =R$10*#REF! ->  | S40: =S$34*'Enrol Scenarios'!C9 -> 350000
A44: =Dashboard!N4 -> Status quo | B44: Total AET Outpuut | C44: =SUM(C45:C48) -> 14179.82502 | D44: =SUM(D45:D48) -> 15833.48372 | E44: 18377.48431 | F44: 20921.4849 | G44: 23465.4855 | H44: 26009.48609 | I44: 28553.48668 | J44: 31097.48727 | K44: 33641.48786 | L44: 36185.48846 | M44: 38729.48905 | N44: 41273.48964 | O44: 43817.49023 | P44: 46361.49083 | Q44: 48905.49142 | R44: 51449.49201 | S44: 53993.4926
B45: AET 1 | C45: =C3*(1-'Enrol Scenarios'!$B$18)*'Enrol Scenarios'!$B$13 -> 1242.279479 | D45: =D3*(1-'Enrol Scenarios'!$B$18)*'Enrol Scenarios'!$B$13 -> 1387.154769 | E45: =E3*(1-'Enrol Scenarios'!$B$18)*'Enrol Scenarios'!$B$13 -> 1610.031971 | F45: =F3*(1-'Enrol Scenarios'!$B$18)*'Enrol Scenarios'!$B$13 -> 1832.909174 | G45: =G3*(1-'Enrol Scenarios'!$B$18)*'Enrol Scenarios'!$B$13 -> 2055.786376 | H45: =H3*(1-'Enrol Scenarios'!$B$18)*'Enrol Scenarios'!$B$13 -> 2278.663578 | I45: =I3*(1-'Enrol Scenarios'!$B$18)*'Enrol Scenarios'!$B$13 -> 2501.540781 | J45: =J3*(1-'Enrol Scenarios'!$B$18)*'Enrol Scenarios'!$B$13 -> 2724.417983 | K45: =K3*(1-'Enrol Scenarios'!$B$18)*'Enrol Scenarios'!$B$13 -> 2947.295185 | L45: =L3*(1-'Enrol Scenarios'!$B$18)*'Enrol Scenarios'!$B$13 -> 3170.172388 | M45: =M3*(1-'Enrol Scenarios'!$B$18)*'Enrol Scenarios'!$B$13 -> 3393.04959 | N45: =N3*(1-'Enrol Scenarios'!$B$18)*'Enrol Scenarios'!$B$13 -> 3615.926792 | O45: =O3*(1-'Enrol Scenarios'!$B$18)*'Enrol Scenarios'!$B$13 -> 3838.803995 | P45: =P3*(1-'Enrol Scenarios'!$B$18)*'Enrol Scenarios'!$B$13 -> 4061.681197 | Q45: =Q3*(1-'Enrol Scenarios'!$B$18)*'Enrol Scenarios'!$B$13 -> 4284.558399 | R45: =R3*(1-'Enrol Scenarios'!$B$18)*'Enrol Scenarios'!$B$13 -> 4507.435602 | S45: =S3*(1-'Enrol Scenarios'!$B$18)*'Enrol Scenarios'!$B$13 -> 4730.312804
B46: AET 2 | C46: =C4*(1-'Enrol Scenarios'!$B$18)*'Enrol Scenarios'!$B$13 -> 1782.738837 | D46: =D4*(1-'Enrol Scenarios'!$B$18)*'Enrol Scenarios'!$B$13 -> 1990.642784 | E46: =E4*(1-'Enrol Scenarios'!$B$18)*'Enrol Scenarios'!$B$13 -> 2310.48373 | F46: =F4*(1-'Enrol Scenarios'!$B$18)*'Enrol Scenarios'!$B$13 -> 2630.324677 | G46: =G4*(1-'Enrol Scenarios'!$B$18)*'Enrol Scenarios'!$B$13 -> 2950.165623 | H46: =H4*(1-'Enrol Scenarios'!$B$18)*'Enrol Scenarios'!$B$13 -> 3270.00657 | I46: =I4*(1-'Enrol Scenarios'!$B$18)*'Enrol Scenarios'!$B$13 -> 3589.847516 | J46: =J4*(1-'Enrol Scenarios'!$B$18)*'Enrol Scenarios'!$B$13 -> 3909.688463 | K46: =K4*(1-'Enrol Scenarios'!$B$18)*'Enrol Scenarios'!$B$13 -> 4229.52941 | L46: =L4*(1-'Enrol Scenarios'!$B$18)*'Enrol Scenarios'!$B$13 -> 4549.370356 | M46: =M4*(1-'Enrol Scenarios'!$B$18)*'Enrol Scenarios'!$B$13 -> 4869.211303 | N46: =N4*(1-'Enrol Scenarios'!$B$18)*'Enrol Scenarios'!$B$13 -> 5189.052249 | O46: =O4*(1-'Enrol Scenarios'!$B$18)*'Enrol Scenarios'!$B$13 -> 5508.893196 | P46: =P4*(1-'Enrol Scenarios'!$B$18)*'Enrol Scenarios'!$B$13 -> 5828.734143 | Q46: =Q4*(1-'Enrol Scenarios'!$B$18)*'Enrol Scenarios'!$B$13 -> 6148.575089 | R46: =R4*(1-'Enrol Scenarios'!$B$18)*'Enrol Scenarios'!$B$13 -> 6468.416036 | S46: =S4*(1-'Enrol Scenarios'!$B$18)*'Enrol Scenarios'!$B$13 -> 6788.256982
B47: AET 3 | C47: =C5*(1-'Enrol Scenarios'!$B$18)*'Enrol Scenarios'!$B$13 -> 2115.297417 | D47: =D5*(1-'Enrol Scenarios'!$B$18)*'Enrol Scenarios'!$B$13 -> 2361.984521 | E47: =E5*(1-'Enrol Scenarios'!$B$18)*'Enrol Scenarios'!$B$13 -> 2741.48976 | F47: =F5*(1-'Enrol Scenarios'!$B$18)*'Enrol Scenarios'!$B$13 -> 3120.994999 | G47: =G5*(1-'Enrol Scenarios'!$B$18)*'Enrol Scenarios'!$B$13 -> 3500.500238 | H47: =H5*(1-'Enrol Scenarios'!$B$18)*'Enrol Scenarios'!$B$13 -> 3880.005477 | I47: =I5*(1-'Enrol Scenarios'!$B$18)*'Enrol Scenarios'!$B$13 -> 4259.510716 | J47: =J5*(1-'Enrol Scenarios'!$B$18)*'Enrol Scenarios'!$B$13 -> 4639.015955 | K47: =K5*(1-'Enrol Scenarios'!$B$18)*'Enrol Scenarios'!$B$13 -> 5018.521194 | L47: =L5*(1-'Enrol Scenarios'!$B$18)*'Enrol Scenarios'!$B$13 -> 5398.026433 | M47: =M5*(1-'Enrol Scenarios'!$B$18)*'Enrol Scenarios'!$B$13 -> 5777.531672 | N47: =N5*(1-'Enrol Scenarios'!$B$18)*'Enrol Scenarios'!$B$13 -> 6157.03691 | O47: =O5*(1-'Enrol Scenarios'!$B$18)*'Enrol Scenarios'!$B$13 -> 6536.542149 | P47: =P5*(1-'Enrol Scenarios'!$B$18)*'Enrol Scenarios'!$B$13 -> 6916.047388 | Q47: =Q5*(1-'Enrol Scenarios'!$B$18)*'Enrol Scenarios'!$B$13 -> 7295.552627 | R47: =R5*(1-'Enrol Scenarios'!$B$18)*'Enrol Scenarios'!$B$13 -> 7675.057866 | S47: =S5*(1-'Enrol Scenarios'!$B$18)*'Enrol Scenarios'!$B$13 -> 8054.563105
B48: AET 4 | C48: =C6*(1-'Enrol Scenarios'!$B$18)*'Enrol Scenarios'!$B$13 -> 9039.509288 | D48: =D6*(1-'Enrol Scenarios'!$B$18)*'Enrol Scenarios'!$B$13 -> 10093.70164 | E48: =E6*(1-'Enrol Scenarios'!$B$18)*'Enrol Scenarios'!$B$13 -> 11715.47885 | F48: =F6*(1-'Enrol Scenarios'!$B$18)*'Enrol Scenarios'!$B$13 -> 13337.25605 | G48: =G6*(1-'Enrol Scenarios'!$B$18)*'Enrol Scenarios'!$B$13 -> 14959.03326 | H48: =H6*(1-'Enrol Scenarios'!$B$18)*'Enrol Scenarios'!$B$13 -> 16580.81046 | I48: =I6*(1-'Enrol Scenarios'!$B$18)*'Enrol Scenarios'!$B$13 -> 18202.58767 | J48: =J6*(1-'Enrol Scenarios'!$B$18)*'Enrol Scenarios'!$B$13 -> 19824.36487 | K48: =K6*(1-'Enrol Scenarios'!$B$18)*'Enrol Scenarios'!$B$13 -> 21446.14208 | L48: =L6*(1-'Enrol Scenarios'!$B$18)*'Enrol Scenarios'!$B$13 -> 23067.91928 | M48: =M6*(1-'Enrol Scenarios'!$B$18)*'Enrol Scenarios'!$B$13 -> 24689.69648 | N48: =N6*(1-'Enrol Scenarios'!$B$18)*'Enrol Scenarios'!$B$13 -> 26311.47369 | O48: =O6*(1-'Enrol Scenarios'!$B$18)*'Enrol Scenarios'!$B$13 -> 27933.25089 | P48: =P6*(1-'Enrol Scenarios'!$B$18)*'Enrol Scenarios'!$B$13 -> 29555.0281 | Q48: =Q6*(1-'Enrol Scenarios'!$B$18)*'Enrol Scenarios'!$B$13 -> 31176.8053 | R48: =R6*(1-'Enrol Scenarios'!$B$18)*'Enrol Scenarios'!$B$13 -> 32798.58251 | S48: =S6*(1-'Enrol Scenarios'!$B$18)*'Enrol Scenarios'!$B$13 -> 34420.35971
A50: =Dashboard!O4 -> Full Policy | B50: Total AET Outpuut | C50: =SUM(C51:C54) -> 14179.82502 | D50: 15833.48372 | E50: 17291.08536 | F50: 18748.687 | G50: 20206.28864 | H50: 21663.89028 | I50: 23121.49192 | J50: 24579.09357 | K50: 26036.69521 | L50: 27494.29685 | M50: 28951.89849 | N50: 30409.50013 | O50: 31867.10177 | P50: 33324.70341 | Q50: 34782.30505 | R50: 36239.90669 | S50: 37697.50833
B51: Abet 1 | C51: =C19*(1-'Enrol Scenarios'!$B$18)*'Enrol Scenarios'!$B$13 -> 1242.279479 | D51: =D19*(1-'Enrol Scenarios'!$B$18)*'Enrol Scenarios'!$B$13 -> 1387.154769 | E51: =E19*(1-'Enrol Scenarios'!$B$18)*'Enrol Scenarios'!$B$13 -> 1765.896639 | F51: =F19*(1-'Enrol Scenarios'!$B$18)*'Enrol Scenarios'!$B$13 -> 2144.638508 | G51: =G19*(1-'Enrol Scenarios'!$B$18)*'Enrol Scenarios'!$B$13 -> 2523.380378 | H51: =H19*(1-'Enrol Scenarios'!$B$18)*'Enrol Scenarios'!$B$13 -> 2902.122247 | I51: =I19*(1-'Enrol Scenarios'!$B$18)*'Enrol Scenarios'!$B$13 -> 3280.864117 | J51: =J19*(1-'Enrol Scenarios'!$B$18)*'Enrol Scenarios'!$B$13 -> 3659.605987 | K51: =K19*(1-'Enrol Scenarios'!$B$18)*'Enrol Scenarios'!$B$13 -> 4038.347856 | L51: =L19*(1-'Enrol Scenarios'!$B$18)*'Enrol Scenarios'!$B$13 -> 4417.089726 | M51: =M19*(1-'Enrol Scenarios'!$B$18)*'Enrol Scenarios'!$B$13 -> 4795.831595 | N51: =N19*(1-'Enrol Scenarios'!$B$18)*'Enrol Scenarios'!$B$13 -> 5174.573465 | O51: =O19*(1-'Enrol Scenarios'!$B$18)*'Enrol Scenarios'!$B$13 -> 5553.315334 | P51: =P19*(1-'Enrol Scenarios'!$B$18)*'Enrol Scenarios'!$B$13 -> 5932.057204 | Q51: =Q19*(1-'Enrol Scenarios'!$B$18)*'Enrol Scenarios'!$B$13 -> 6310.799074 | R51: =R19*(1-'Enrol Scenarios'!$B$18)*'Enrol Scenarios'!$B$13 -> 6689.540943 | S51: =S19*(1-'Enrol Scenarios'!$B$18)*'Enrol Scenarios'!$B$13 -> 7068.282813
B52: Abet 2 | C52: =C20*(1-'Enrol Scenarios'!$B$18)*'Enrol Scenarios'!$B$13 -> 1782.738837 | D52: =D20*(1-'Enrol Scenarios'!$B$18)*'Enrol Scenarios'!$B$13 -> 1990.642784 | E52: =E20*(1-'Enrol Scenarios'!$B$18)*'Enrol Scenarios'!$B$13 -> 2486.22507 | F52: =F20*(1-'Enrol Scenarios'!$B$18)*'Enrol Scenarios'!$B$13 -> 2981.807357 | G52: =G20*(1-'Enrol Scenarios'!$B$18)*'Enrol Scenarios'!$B$13 -> 3477.389644 | H52: =H20*(1-'Enrol Scenarios'!$B$18)*'Enrol Scenarios'!$B$13 -> 3972.97193 | I52: =I20*(1-'Enrol Scenarios'!$B$18)*'Enrol Scenarios'!$B$13 -> 4468.554217 | J52: =J20*(1-'Enrol Scenarios'!$B$18)*'Enrol Scenarios'!$B$13 -> 4964.136504 | K52: =K20*(1-'Enrol Scenarios'!$B$18)*'Enrol Scenarios'!$B$13 -> 5459.71879 | L52: =L20*(1-'Enrol Scenarios'!$B$18)*'Enrol Scenarios'!$B$13 -> 5955.301077 | M52: =M20*(1-'Enrol Scenarios'!$B$18)*'Enrol Scenarios'!$B$13 -> 6450.883364 | N52: =N20*(1-'Enrol Scenarios'!$B$18)*'Enrol Scenarios'!$B$13 -> 6946.46565 | O52: =O20*(1-'Enrol Scenarios'!$B$18)*'Enrol Scenarios'!$B$13 -> 7442.047937 | P52: =P20*(1-'Enrol Scenarios'!$B$18)*'Enrol Scenarios'!$B$13 -> 7937.630224 | Q52: =Q20*(1-'Enrol Scenarios'!$B$18)*'Enrol Scenarios'!$B$13 -> 8433.21251 | R52: =R20*(1-'Enrol Scenarios'!$B$18)*'Enrol Scenarios'!$B$13 -> 8928.794797 | S52: =S20*(1-'Enrol Scenarios'!$B$18)*'Enrol Scenarios'!$B$13 -> 9424.377084
B53: Abet 3 | C53: =C21*(1-'Enrol Scenarios'!$B$18)*'Enrol Scenarios'!$B$13 -> 2115.297417 | D53: =D21*(1-'Enrol Scenarios'!$B$18)*'Enrol Scenarios'!$B$13 -> 2361.984521 | E53: =E21*(1-'Enrol Scenarios'!$B$18)*'Enrol Scenarios'!$B$13 -> 2466.307139 | F53: =F21*(1-'Enrol Scenarios'!$B$18)*'Enrol Scenarios'!$B$13 -> 2570.629757 | G53: =G21*(1-'Enrol Scenarios'!$B$18)*'Enrol Scenarios'!$B$13 -> 2674.952374 | H53: =H21*(1-'Enrol Scenarios'!$B$18)*'Enrol Scenarios'!$B$13 -> 2779.274992 | I53: =I21*(1-'Enrol Scenarios'!$B$18)*'Enrol Scenarios'!$B$13 -> 2883.597609 | J53: =J21*(1-'Enrol Scenarios'!$B$18)*'Enrol Scenarios'!$B$13 -> 2987.920227 | K53: =K21*(1-'Enrol Scenarios'!$B$18)*'Enrol Scenarios'!$B$13 -> 3092.242844 | L53: =L21*(1-'Enrol Scenarios'!$B$18)*'Enrol Scenarios'!$B$13 -> 3196.565462 | M53: =M21*(1-'Enrol Scenarios'!$B$18)*'Enrol Scenarios'!$B$13 -> 3300.888079 | N53: =N21*(1-'Enrol Scenarios'!$B$18)*'Enrol Scenarios'!$B$13 -> 3405.210697 | O53: =O21*(1-'Enrol Scenarios'!$B$18)*'Enrol Scenarios'!$B$13 -> 3509.533315 | P53: =P21*(1-'Enrol Scenarios'!$B$18)*'Enrol Scenarios'!$B$13 -> 3613.855932 | Q53: =Q21*(1-'Enrol Scenarios'!$B$18)*'Enrol Scenarios'!$B$13 -> 3718.17855 | R53: =R21*(1-'Enrol Scenarios'!$B$18)*'Enrol Scenarios'!$B$13 -> 3822.501167 | S53: =S21*(1-'Enrol Scenarios'!$B$18)*'Enrol Scenarios'!$B$13 -> 3926.823785
B54: Abet 4 | C54: =C22*(1-'Enrol Scenarios'!$B$18)*'Enrol Scenarios'!$B$13 -> 9039.509288 | D54: =D22*(1-'Enrol Scenarios'!$B$18)*'Enrol Scenarios'!$B$13 -> 10093.70164 | E54: =E22*(1-'Enrol Scenarios'!$B$18)*'Enrol Scenarios'!$B$13 -> 10572.65651 | F54: =F22*(1-'Enrol Scenarios'!$B$18)*'Enrol Scenarios'!$B$13 -> 11051.61138 | G54: =G22*(1-'Enrol Scenarios'!$B$18)*'Enrol Scenarios'!$B$13 -> 11530.56625 | H54: =H22*(1-'Enrol Scenarios'!$B$18)*'Enrol Scenarios'!$B$13 -> 12009.52111 | I54: =I22*(1-'Enrol Scenarios'!$B$18)*'Enrol Scenarios'!$B$13 -> 12488.47598 | J54: =J22*(1-'Enrol Scenarios'!$B$18)*'Enrol Scenarios'!$B$13 -> 12967.43085 | K54: =K22*(1-'Enrol Scenarios'!$B$18)*'Enrol Scenarios'!$B$13 -> 13446.38572 | L54: =L22*(1-'Enrol Scenarios'!$B$18)*'Enrol Scenarios'!$B$13 -> 13925.34058 | M54: =M22*(1-'Enrol Scenarios'!$B$18)*'Enrol Scenarios'!$B$13 -> 14404.29545 | N54: =N22*(1-'Enrol Scenarios'!$B$18)*'Enrol Scenarios'!$B$13 -> 14883.25032 | O54: =O22*(1-'Enrol Scenarios'!$B$18)*'Enrol Scenarios'!$B$13 -> 15362.20518 | P54: =P22*(1-'Enrol Scenarios'!$B$18)*'Enrol Scenarios'!$B$13 -> 15841.16005 | Q54: =Q22*(1-'Enrol Scenarios'!$B$18)*'Enrol Scenarios'!$B$13 -> 16320.11492 | R54: =R22*(1-'Enrol Scenarios'!$B$18)*'Enrol Scenarios'!$B$13 -> 16799.06979 | S54: =S22*(1-'Enrol Scenarios'!$B$18)*'Enrol Scenarios'!$B$13 -> 17278.02465
A56: =Dashboard!P4 -> Mixed | B56: Total AET Outpuut | C56: =SUM(C57:C60) -> 14179.82502 | D56: 15240.6774 | E56: 16301.52978 | F56: 17362.38216 | G56: 18423.23454 | H56: 19484.08692 | I56: 20544.9393 | J56: 21605.79168 | K56: 22666.64406 | L56: 23727.49644 | M56: 24788.34883 | N56: 25849.20121 | O56: 26910.05359 | P56: 27970.90597 | Q56: 29031.75835 | R56: 30092.61073 | S56: 31153.46311
B57: Abet 1 | C57: =C27*(1-'Enrol Scenarios'!$B$18)*'Enrol Scenarios'!$B$13 -> 1242.279479 | D57: =D27*(1-'Enrol Scenarios'!$B$18)*'Enrol Scenarios'!$B$13 -> 1532.776741 | E57: =E27*(1-'Enrol Scenarios'!$B$18)*'Enrol Scenarios'!$B$13 -> 1823.274004 | F57: =F27*(1-'Enrol Scenarios'!$B$18)*'Enrol Scenarios'!$B$13 -> 2113.771266 | G57: =G27*(1-'Enrol Scenarios'!$B$18)*'Enrol Scenarios'!$B$13 -> 2404.268528 | H57: =H27*(1-'Enrol Scenarios'!$B$18)*'Enrol Scenarios'!$B$13 -> 2694.765791 | I57: =I27*(1-'Enrol Scenarios'!$B$18)*'Enrol Scenarios'!$B$13 -> 2985.263053 | J57: =J27*(1-'Enrol Scenarios'!$B$18)*'Enrol Scenarios'!$B$13 -> 3275.760316 | K57: =K27*(1-'Enrol Scenarios'!$B$18)*'Enrol Scenarios'!$B$13 -> 3566.257578 | L57: =L27*(1-'Enrol Scenarios'!$B$18)*'Enrol Scenarios'!$B$13 -> 3856.75484 | M57: =M27*(1-'Enrol Scenarios'!$B$18)*'Enrol Scenarios'!$B$13 -> 4147.252103 | N57: =N27*(1-'Enrol Scenarios'!$B$18)*'Enrol Scenarios'!$B$13 -> 4437.749365 | O57: =O27*(1-'Enrol Scenarios'!$B$18)*'Enrol Scenarios'!$B$13 -> 4728.246628 | P57: =P27*(1-'Enrol Scenarios'!$B$18)*'Enrol Scenarios'!$B$13 -> 5018.74389 | Q57: =Q27*(1-'Enrol Scenarios'!$B$18)*'Enrol Scenarios'!$B$13 -> 5309.241152 | R57: =R27*(1-'Enrol Scenarios'!$B$18)*'Enrol Scenarios'!$B$13 -> 5599.738415 | S57: =S27*(1-'Enrol Scenarios'!$B$18)*'Enrol Scenarios'!$B$13 -> 5890.235677
B58: Abet 2 | C58: =C28*(1-'Enrol Scenarios'!$B$18)*'Enrol Scenarios'!$B$13 -> 1782.738837 | D58: =D28*(1-'Enrol Scenarios'!$B$18)*'Enrol Scenarios'!$B$13 -> 2039.457389 | E58: =E28*(1-'Enrol Scenarios'!$B$18)*'Enrol Scenarios'!$B$13 -> 2296.175942 | F58: =F28*(1-'Enrol Scenarios'!$B$18)*'Enrol Scenarios'!$B$13 -> 2552.894495 | G58: =G28*(1-'Enrol Scenarios'!$B$18)*'Enrol Scenarios'!$B$13 -> 2809.613047 | H58: =H28*(1-'Enrol Scenarios'!$B$18)*'Enrol Scenarios'!$B$13 -> 3066.3316 | I58: =I28*(1-'Enrol Scenarios'!$B$18)*'Enrol Scenarios'!$B$13 -> 3323.050152 | J58: =J28*(1-'Enrol Scenarios'!$B$18)*'Enrol Scenarios'!$B$13 -> 3579.768705 | K58: =K28*(1-'Enrol Scenarios'!$B$18)*'Enrol Scenarios'!$B$13 -> 3836.487257 | L58: =L28*(1-'Enrol Scenarios'!$B$18)*'Enrol Scenarios'!$B$13 -> 4093.20581 | M58: =M28*(1-'Enrol Scenarios'!$B$18)*'Enrol Scenarios'!$B$13 -> 4349.924362 | N58: =N28*(1-'Enrol Scenarios'!$B$18)*'Enrol Scenarios'!$B$13 -> 4606.642915 | O58: =O28*(1-'Enrol Scenarios'!$B$18)*'Enrol Scenarios'!$B$13 -> 4863.361467 | P58: =P28*(1-'Enrol Scenarios'!$B$18)*'Enrol Scenarios'!$B$13 -> 5120.08002 | Q58: =Q28*(1-'Enrol Scenarios'!$B$18)*'Enrol Scenarios'!$B$13 -> 5376.798572 | R58: =R28*(1-'Enrol Scenarios'!$B$18)*'Enrol Scenarios'!$B$13 -> 5633.517125 | S58: =S28*(1-'Enrol Scenarios'!$B$18)*'Enrol Scenarios'!$B$13 -> 5890.235677
B59: Abet 3 | C59: =C29*(1-'Enrol Scenarios'!$B$18)*'Enrol Scenarios'!$B$13 -> 2115.297417 | D59: =D29*(1-'Enrol Scenarios'!$B$18)*'Enrol Scenarios'!$B$13 -> 2273.551718 | E59: =E29*(1-'Enrol Scenarios'!$B$18)*'Enrol Scenarios'!$B$13 -> 2431.80602 | F59: =F29*(1-'Enrol Scenarios'!$B$18)*'Enrol Scenarios'!$B$13 -> 2590.060321 | G59: =G29*(1-'Enrol Scenarios'!$B$18)*'Enrol Scenarios'!$B$13 -> 2748.314622 | H59: =H29*(1-'Enrol Scenarios'!$B$18)*'Enrol Scenarios'!$B$13 -> 2906.568923 | I59: =I29*(1-'Enrol Scenarios'!$B$18)*'Enrol Scenarios'!$B$13 -> 3064.823225 | J59: =J29*(1-'Enrol Scenarios'!$B$18)*'Enrol Scenarios'!$B$13 -> 3223.077526 | K59: =K29*(1-'Enrol Scenarios'!$B$18)*'Enrol Scenarios'!$B$13 -> 3381.331827 | L59: =L29*(1-'Enrol Scenarios'!$B$18)*'Enrol Scenarios'!$B$13 -> 3539.586128 | M59: =M29*(1-'Enrol Scenarios'!$B$18)*'Enrol Scenarios'!$B$13 -> 3697.84043 | N59: =N29*(1-'Enrol Scenarios'!$B$18)*'Enrol Scenarios'!$B$13 -> 3856.094731 | O59: =O29*(1-'Enrol Scenarios'!$B$18)*'Enrol Scenarios'!$B$13 -> 4014.349032 | P59: =P29*(1-'Enrol Scenarios'!$B$18)*'Enrol Scenarios'!$B$13 -> 4172.603333 | Q59: =Q29*(1-'Enrol Scenarios'!$B$18)*'Enrol Scenarios'!$B$13 -> 4330.857635 | R59: =R29*(1-'Enrol Scenarios'!$B$18)*'Enrol Scenarios'!$B$13 -> 4489.111936 | S59: =S29*(1-'Enrol Scenarios'!$B$18)*'Enrol Scenarios'!$B$13 -> 4647.366237
B60: Abet 4 | C60: =C30*(1-'Enrol Scenarios'!$B$18)*'Enrol Scenarios'!$B$13 -> 9039.509288 | D60: =D30*(1-'Enrol Scenarios'!$B$18)*'Enrol Scenarios'!$B$13 -> 9394.891552 | E60: =E30*(1-'Enrol Scenarios'!$B$18)*'Enrol Scenarios'!$B$13 -> 9750.273816 | F60: =F30*(1-'Enrol Scenarios'!$B$18)*'Enrol Scenarios'!$B$13 -> 10105.65608 | G60: =G30*(1-'Enrol Scenarios'!$B$18)*'Enrol Scenarios'!$B$13 -> 10461.03834 | H60: =H30*(1-'Enrol Scenarios'!$B$18)*'Enrol Scenarios'!$B$13 -> 10816.42061 | I60: =I30*(1-'Enrol Scenarios'!$B$18)*'Enrol Scenarios'!$B$13 -> 11171.80287 | J60: =J30*(1-'Enrol Scenarios'!$B$18)*'Enrol Scenarios'!$B$13 -> 11527.18514 | K60: =K30*(1-'Enrol Scenarios'!$B$18)*'Enrol Scenarios'!$B$13 -> 11882.5674 | L60: =L30*(1-'Enrol Scenarios'!$B$18)*'Enrol Scenarios'!$B$13 -> 12237.94967 | M60: =M30*(1-'Enrol Scenarios'!$B$18)*'Enrol Scenarios'!$B$13 -> 12593.33193 | N60: =N30*(1-'Enrol Scenarios'!$B$18)*'Enrol Scenarios'!$B$13 -> 12948.71419 | O60: =O30*(1-'Enrol Scenarios'!$B$18)*'Enrol Scenarios'!$B$13 -> 13304.09646 | P60: =P30*(1-'Enrol Scenarios'!$B$18)*'Enrol Scenarios'!$B$13 -> 13659.47872 | Q60: =Q30*(1-'Enrol Scenarios'!$B$18)*'Enrol Scenarios'!$B$13 -> 14014.86099 | R60: =R30*(1-'Enrol Scenarios'!$B$18)*'Enrol Scenarios'!$B$13 -> 14370.24325 | S60: =S30*(1-'Enrol Scenarios'!$B$18)*'Enrol Scenarios'!$B$13 -> 14725.62552
A62: Enrolments excl. Occupational
A63: Status quo Scenario | C63: =C2-C8 -> 255004.991 | D63: =D2-D8 -> 284743.808 | E63: 330494.2208 | F63: 376244.6336 | G63: 421995.0464 | H63: 467745.4592 | I63: 513495.872 | J63: 559246.2848 | K63: 604996.6976 | L63: 650747.1104 | M63: 696497.5232 | N63: 742247.936 | O63: 787998.3488 | P63: 833748.7616 | Q63: 879499.1744 | R63: 925249.5872 | S63: =S2-S8 -> 971000
A64: Full Policy Scenario | C64: =C18-C24 -> 255004.991 | D64: =D18-D24 -> 284743.808 | E64: 309094.2208 | F64: 333444.6336 | G64: 357795.0464 | H64: 382145.4592 | I64: 406495.872 | J64: 430846.2848 | K64: 455196.6976 | L64: 479547.1104 | M64: 503897.5232 | N64: 528247.936 | O64: 552598.3488 | P64: 576948.7616 | Q64: 601299.1744 | R64: 625649.5872 | S64: =S18-S24 -> 650000
A65: Balanced Scenario | C65: =C26-C32 -> 256027.7664 | D65: =D26-D32 -> 275348.0935 | E65: 294491.5539 | F65: 305126.2994 | G65: 317248.3129 | H65: 330958.4066 | I65: 346364.2262 | J65: 363580.7143 | K65: 382730.6044 | L65: 403944.9493 | M65: 427363.6853 | N65: 453136.2338 | O65: 481422.1446 | P65: 512391.7826 | Q65: 546227.0603 | R65: 583122.221 | S65: =S26-S32 -> 562500
C67: 2014 | D67: 2015 | E67: 2016 | F67: 2017 | G67: 2018 | H67: 2019 | I67: 2020 | J67: 2021 | K67: 2022 | L67: 2023 | M67: 2024 | N67: 2025 | O67: 2026 | P67: 2027 | Q67: 2028 | R67: 2029 | S67: 2030
B68: =Dashboard!N4 -> Status quo | C68: =C2 -> 262621 | D68: =D2 -> 293248 | E68: 340364.8 | F68: 387481.6 | G68: 434598.4 | H68: 481715.2 | I68: 528832 | J68: 575948.8 | K68: 623065.6 | L68: 670182.4 | M68: 717299.2 | N68: 764416 | O68: 811532.8 | P68: 858649.6 | Q68: 905766.4 | R68: 952883.2 | S68: 1000000
B69: =Dashboard!O4 -> Full Policy | C69: =C18 -> 262621 | D69: =D18 -> 293248 | E69: 340364.8 | F69: 387481.6 | G69: 434598.4 | H69: 481715.2 | I69: 528832 | J69: 575948.8 | K69: 623065.6 | L69: 670182.4 | M69: 717299.2 | N69: 764416 | O69: 811532.8 | P69: 858649.6 | Q69: 905766.4 | R69: 952883.2 | S69: 1000000
B70: =Dashboard!P4 -> Mixed | C70: =C26 -> 262621 | D70: =D26 -> 293248 | E70: 323698.1333 | F70: 345639.5518 | G70: 369068.2381 | H70: 394085.0047 | I70: 420797.4973 | J70: 449320.6582 | K70: 479777.2212 | L70: 512298.239 | M70: 547023.6479 | N70: 584102.8693 | O70: 623695.453 | P70: 665971.7639 | Q70: 711113.7145 | R70: 759315.5481 | S70: 750000
A83: Programme Name | B83: Theory Cost per enrolment (2014 prices) | C83: Practical Cost per enrolment (2014 prices) | D83: Proportion with practical component | E83: Average Total Cost per Enrolment | F83: FTE to Enrol ratio | G83: Cost per FTE
A84: Skills Programme | B84: 5000 | C84: 10000 | D84: 1 | E84: =B84+D84*C84 -> 15000 | F84: 0.2 | G84: =E84/F84 -> 75000
A85: AET | D85: 0 | F85: 0.93
A86: Matric | D86: 0 | F86: 0.93
C89: 2014 | D89: 2015 | E89: 2016 | F89: 2017 | G89: 2018 | H89: 2019 | I89: 2020 | J89: 2021 | K89: 2022 | L89: 2023 | M89: 2024 | N89: 2025 | O89: 2026 | P89: 2027 | Q89: 2028 | R89: 2029 | S89: 2030
A90: Status Quo FTE | B90: Total Enrolment | C90: =SUM(C91:C96) -> 239629.0245 | D90: 267574.6882 | E90: 310566.5008 | F90: 353558.3134 | G90: 396550.126 | H90: 439541.9387 | I90: 482533.7513 | J90: 525525.5639 | K90: 568517.3765 | L90: 611509.1891 | M90: 654501.0018 | N90: 697492.8144 | O90: 740484.627 | P90: 783476.4396 | Q90: 826468.2523 | R90: 869460.0649 | S90: 912451.8775
B91: FTE Abet 1 | C91: =C3*$F$85 -> 14710.61574 | D91: 16426.17553 | E91: 19065.40522 | F91: 21704.6349 | G91: 24343.86459 | H91: 26983.09428 | I91: 29622.32396 | J91: 32261.55365 | K91: 34900.78334 | L91: 37540.01302 | M91: 40179.24271 | N91: 42818.4724 | O91: 45457.70208 | P91: 48096.93177 | Q91: 50736.16146 | R91: 53375.39115 | S91: 56014.62083
B92: FTE Abet 2 | C92: =C4*$F$85 -> 21110.53627 | D92: 23572.45818 | E92: 27359.89679 | F92: 31147.3354 | G92: 34934.77401 | H92: 38722.21262 | I92: 42509.65122 | J92: 46297.08983 | K92: 50084.52844 | L92: 53871.96705 | M92: 57659.40566 | N92: 61446.84427 | O92: 65234.28288 | P92: 69021.72149 | Q92: 72809.1601 | R92: 76596.59871 | S92: 80384.03732
B93: FTE Abet 3 | C93: =C5*$F$85 -> 25048.57241 | D93: 27969.75018 | E93: 32463.71134 | F93: 36957.67251 | G93: 41451.63368 | H93: 45945.59485 | I93: 50439.55602 | J93: 54933.51719 | K93: 59427.47836 | L93: 63921.43953 | M93: 68415.4007 | N93: 72909.36187 | O93: 77403.32304 | P93: 81897.28421 | Q93: 86391.24538 | R93: 90885.20655 | S93: 95379.16772
B94: FTE Abet 4 | C94: =C6*$F$85 -> 107042.5374 | D94: 119525.8948 | E94: 138730.3827 | F94: 157934.8706 | G94: 177139.3586 | H94: 196343.8465 | I94: 215548.3344 | J94: 234752.8224 | K94: 253957.3103 | L94: 273161.7983 | M94: 292366.2862 | N94: 311570.7741 | O94: 330775.2621 | P94: 349979.75 | Q94: 369184.2379 | R94: 388388.7259 | S94: 407593.2138
B95: FTE Grade 12 | C95: =C7*$F$85 -> 70193.56091 | D95: 78379.57113 | E95: 90972.98891 | F95: 103566.4067 | G95: 116159.8245 | H95: 128753.2422 | I95: 141346.66 | J95: 153940.0778 | K95: 166533.4956 | L95: 179126.9134 | M95: 191720.3311 | N95: 204313.7489 | O95: 216907.1667 | P95: 229500.5845 | Q95: 242094.0023 | R95: 254687.42 | S95: 267280.8378
B96: FTE Skills Programmes | C96: =C8*$F$84 -> 1523.2018 | D96: =D8*$F$84 -> 1700.8384 | E96: 1974.11584 | F96: 2247.39328 | G96: 2520.67072 | H96: 2793.94816 | I96: 3067.2256 | J96: 3340.50304 | K96: 3613.78048 | L96: 3887.05792 | M96: 4160.33536 | N96: 4433.6128 | O96: 4706.89024 | P96: 4980.16768 | Q96: 5253.44512 | R96: 5526.72256 | S96: 5800
A98: Full Policy FTE | B98: Total Enrolment | C98: =SUM(C99:C104) -> 239629.0245 | D98: 267574.6882 | E98: 294703.0423 | F98: 321831.3964 | G98: 348959.7505 | H98: 376088.1047 | I98: 403216.4588 | J98: 430344.8129 | K98: 457473.167 | L98: 484601.5211 | M98: 511729.8753 | N98: 538858.2294 | O98: 565986.5835 | P98: 593114.9376 | Q98: 620243.2918 | R98: 647371.6459 | S98: 674500
B99: FTE Abet 1 | C99: =C19*$F$85 -> 14710.61574 | D99: 16426.17553 | E99: 20911.09716 | F99: 25396.01879 | G99: 29880.94042 | H99: 34365.86206 | I99: 38850.78369 | J99: 43335.70532 | K99: 47820.62695 | L99: 52305.54858 | M99: 56790.47021 | N99: 61275.39184 | O99: 65760.31347 | P99: 70245.23511 | Q99: 74730.15674 | R99: 79215.07837 | S99: 83700
B100: FTE Abet 2 | C100: =C20*$F$85 -> 21110.53627 | D100: =D20*$F$85 -> 23572.45818 | E100: 29440.96096 | F100: 35309.46375 | G100: 41177.96654 | H100: 47046.46933 | I100: 52914.97212 | J100: 58783.47491 | K100: 64651.97769 | L100: 70520.48048 | M100: 76388.98327 | N100: 82257.48606 | O100: 88125.98885 | P100: 93994.49164 | Q100: 99862.99442 | R100: 105731.4972 | S100: =S20*$F$85 -> 111600
B101: FTE Abet 3 | C101: =C21*$F$85 -> 25048.57241 | D101: =D21*$F$85 -> 27969.75018 | E101: 29205.10016 | F101: 30440.45015 | G101: 31675.80014 | H101: 32911.15013 | I101: 34146.50012 | J101: 35381.85011 | K101: 36617.20009 | L101: 37852.55008 | M101: 39087.90007 | N101: 40323.25006 | O101: 41558.60005 | P101: 42793.95004 | Q101: 44029.30002 | R101: 45264.65001 | S101: =S21*$F$85 -> 46500
B102: FTE Abet 4 | C102: =C22*$F$85 -> 107042.5374 | D102: =D22*$F$85 -> 119525.8948 | E102: 125197.5018 | F102: 130869.1088 | G102: 136540.7158 | H102: 142212.3228 | I102: 147883.9298 | J102: 153555.5369 | K102: 159227.1439 | L102: 164898.7509 | M102: 170570.3579 | N102: 176241.9649 | O102: 181913.5719 | P102: 187585.179 | Q102: 193256.786 | R102: 198928.393 | S102: =S22*$F$85 -> 204600
B103: FTE Grade 12 | C103: =C23*$F$85 -> 70193.56091 | D103: =D23*$F$85 -> 78379.57113 | E103: 83694.26638 | F103: 89008.96164 | G103: 94323.6569 | H103: 99638.35216 | I103: 104953.0474 | J103: 110267.7427 | K103: 115582.4379 | L103: 120897.1332 | M103: 126211.8285 | N103: 131526.5237 | O103: 136841.219 | P103: 142155.9142 | Q103: 147470.6095 | R103: 152785.3047 | S103: =S23*$F$85 -> 158100
B104: FTE Occupational | C104: =C24*$F$84 -> 1523.2018 | D104: 1700.8384 | E104: 6254.11584 | F104: 10807.39328 | G104: 15360.67072 | H104: 19913.94816 | I104: 24467.2256 | J104: 29020.50304 | K104: 33573.78048 | L104: 38127.05792 | M104: 42680.33536 | N104: 47233.6128 | O104: 51786.89024 | P104: 56340.16768 | Q104: 60893.44512 | R104: 65446.72256 | S104: 70000
A106: Mixed FTE | B106: Total Enrolment | C106: =SUM(C107:C112) -> 239424.4694 | D106: 259499.5026 | E106: 279574.5358 | F106: 299649.5689 | G106: 319724.6021 | H106: 339799.6352 | I106: 359874.6684 | J106: 379949.7016 | K106: 400024.7347 | L106: 420099.7679 | M106: 440174.801 | N106: 460249.8342 | O106: 480324.8674 | P106: 500399.9005 | Q106: 520474.9337 | R106: 540549.9668 | S106: 560625
B107: FTE Abet 1 | C107: =C27*$F$85 -> 14710.61574 | D107: 18150.57725 | E107: 21590.53877 | F107: 25030.50029 | G107: 28470.4618 | H107: 31910.42332 | I107: 35350.38484 | J107: 38790.34635 | K107: 42230.30787 | L107: 45670.26939 | M107: 49110.2309 | N107: 52550.19242 | O107: 55990.15393 | P107: 59430.11545 | Q107: 62870.07697 | R107: 66310.03848 | S107: =S27*$F$85 -> 69750
B108: FTE Abet 2 | C108: 21110.53627 | D108: =D28*$F$85 -> 24150.50275 | E108: 27190.46923 | F108: 30230.43572 | G108: 33270.4022 | H108: 36310.36868 | I108: 39350.33517 | J108: 42390.30165 | K108: 45430.26813 | L108: 48470.23462 | M108: 51510.2011 | N108: 54550.16758 | O108: 57590.13407 | P108: 60630.10055 | Q108: 63670.06703 | R108: 66710.03352 | S108: =S28*$F$85 -> 69750
B109: FTE Abet 3 | C109: 25048.57241 | D109: 26922.56151 | E109: 28796.55062 | F109: 30670.53973 | G109: 32544.52884 | H109: 34418.51795 | I109: 36292.50706 | J109: 38166.49617 | K109: 40040.48528 | L109: 41914.47439 | M109: 43788.4635 | N109: 45662.45261 | O109: 47536.44172 | P109: 49410.43083 | Q109: 51284.41994 | R109: 53158.40905 | S109: =S29*$F$85 -> 55032.39816
B110: FTE Abet 4 | C110: 107042.5374 | D110: 111250.8432 | E110: 115459.149 | F110: 119667.4548 | G110: 123875.7606 | H110: 128084.0664 | I110: 132292.3722 | J110: 136500.678 | K110: 140708.9838 | L110: 144917.2896 | M110: 149125.5954 | N110: 153333.9012 | O110: 157542.2069 | P110: 161750.5127 | Q110: 165958.8185 | R110: 170167.1243 | S110: =S30*$F$85 -> 174375.4301
B111: FTE Grade 12 | C111: 70193.56091 | D111: 75445.03658 | E111: 80696.51226 | F111: 85947.98793 | G111: 91199.46361 | H111: 96450.93929 | I111: 101702.415 | J111: 106953.8906 | K111: 112205.3663 | L111: 117456.842 | M111: 122708.3177 | N111: 127959.7933 | O111: 133211.269 | P111: 138462.7447 | Q111: 143714.2204 | R111: 148965.696 | S111: =S31*$F$85 -> 154217.1717
B112: FTE Occupational | C112: =C32*$F$84 -> 1318.646727 | D112: 3579.981306 | E112: 5841.315886 | F112: 8102.650465 | G112: 10363.98504 | H112: 12625.31962 | I112: 14886.6542 | J112: 17147.98878 | K112: 19409.32336 | L112: 21670.65794 | M112: 23931.99252 | N112: 26193.3271 | O112: 28454.66168 | P112: 30715.99626 | Q112: 32977.33084 | R112: 35238.66542 | S112: 37500

Sheet Enrol Scenarios
A3: Learning Programme Mix | B3: =Dashboard!N4 -> Status quo | C3: =Dashboard!O4 -> Full Policy | D3: =Dashboard!P4 -> Mixed | H3: =Dashboard!N4 -> Status quo | I3: =Dashboard!O4 -> Full Policy | J3: =Dashboard!P4 -> Mixed | K3: Norm
A4: AET Level 1 | B4: 0.06023077509 | C4: 0.09 | D4: 0.1 | G4: AET Level 1 | I4: =C4*K4 -> 1.8 | J4: =D4*K4 -> 2 | K4: 20
A5: AET Level 2 | B5: 0.08643444873 | C5: 0.12 | D5: 0.1 | G5: AET Level 2 | I5: 2.4 | J5: 2 | K5: 20
A6: AET Level 3 | B6: 0.1025582449 | C6: 0.05 | D6: =(100%-$D$9)*$B6/SUM($B$4:$B$8) -> 0.07889949557 | G6: AET Level 3 | I6: 1 | J6: 1.577989911 | K6: 20
A7: AET Level 4 | B7: 0.4382722729 | C7: =100%-C8-C9-C6-C5-C4 -> 0.22 | D7: =100%-D8-D9-D6-D5-D4 -> 0.2500006167 | G7: AET Level 4 | I7: 5.5 | J7: 6.250015417 | K7: 25
A8: NSC / NASCA | B8: 0.2873987503 | C8: 0.17 | D8: =(100%-$D$9)*$B8/SUM($B$4:$B$8) -> 0.2210998878 | G8: Grade 12 | I8: 5.1 | J8: 6.632996633 | K8: 30
A9: Skills Programmes | B9: =Dashboard!E7 -> 0.029 | C9: =Dashboard!F7 -> 0.35 | D9: =Dashboard!G7 -> 0.25 | G9: Skills Programmes | I9: 10.5 | J9: 7.5 | K9: 30
G10: Average Lecturer Ratio | I10: =SUM(I4:I9) -> 26.3 | J10: =SUM(J4:J9) -> 25.96100196
A12: Certification | B12: =Dashboard!N4 -> Status quo | C12: =Dashboard!O4 -> Full Policy | D12: =Dashboard!P4 -> Mixed
A13: AET Level 1 to 4 | B13: =Dashboard!E8 -> 0.1745255015 | C13: =Dashboard!F8 -> 0.2 | D13: =Dashboard!G8 -> 0.1745255015
A14: Grade 12 | B14: 0.3823333333 | C14: 0.3823333333 | D14: 0.3823333333
A15: Skills Programmes | B15: 0.8 | C15: 0.8 | D15: 0.8
A17: Dropout Rates
A18: AET Level 1 to 4 | B18: 0.55 | C18: 0.55 | D18: 0.55
A19: Grade 12 | B19: 0.55 | C19: 0.55 | D19: 0.55
A20: Skills Programmes | B20: 0.04 | C20: 0.04 | D20: 0.04
A23: Number of colleges | B23: 9 | C23: 9 | D23: 9
A24: Number of AET Centres | B24: 3150
A25: Total Number of employees | B25: =B27+B28+B29 -> 19133
A26: FTE lecturers
A27: Number of Support Staff | B27: 283
A28: Number of Educators | B28: 16604
A29: Number of Centre Managers | B29: 2246
A30: Number of learners | B30: 293248
A31: Lecturer Student Ratio | B31: 18

Sheet Funding Descr
C3: Model Layout
C4: This model forms part of the broader post school education and training (PSET) system costing initiative
C5: 'This model forecasts expenditure of the Community Colleges up to 2030 based on the targets and objectives of White Paper on Post-School Education.

Sheet Funding Dashboard
C2: INPUTS & ASSUMPTIONS | L2: OUTPUTS
M3: 2030
M4: Status quo | N4: Full Policy | O4: Mixed | P4: 2014
E5: Status quo | F5: Full Policy | G5: Mixed | L5: Total current spending (R'm) | M5: =Dashboard!N5 -> 14163.28997 | N5: =Dashboard!O5 -> 17956.3476 | O5: =Dashboard!P5 -> 12283.74432 | P5: =Dashboard!Q5 -> 1843.818969
C6: Government Subsidy | D6: Historical Real Growth | E6: 0.016 | F6: 0.016 | G6: 0.016 | L6: Total Current Revenue | M6: ='Funding Shortfall'!C8 -> 7385.323143 | N6: ='Funding Shortfall'!D8 -> 9962.44864 | O6: ='Funding Shortfall'!E8 -> 7361.7965 | P6: ='Funding Shortfall'!B8 -> 1843.818969
D7: Projection Real Growth | E7: 0.029 | F7: 0.029 | G7: 0.029 | L7: Shortfall (-) / Surplus (+): Current spending | M7: =M6-M5 -> -6777.966823 | N7: =N6-N5 -> -7993.898963 | O7: =O6-O5 -> -4921.947823
C8: Learning Fees | D8: Real Growth | E8: 0 | F8: 0 | G8: 0
L9: Total Cumulative Spending (R'm) | M9: =Dashboard!N6 -> 125713 | N9: =Dashboard!O6 -> 341249 | O9: =Dashboard!P6 -> 203685
L10: Total Cumulative Revenue (R'm) | M10: =('Funding over time'!S3+'TVET & CET Funding'!T10)/1000 -> 77800.07563 | N10: =('Funding over time'!S3+'TVET & CET Funding'!T21)/1000 -> 77800.07563 | O10: =('Funding over time'!S3+'TVET & CET Funding'!T32)/1000 -> 77800.07563
L11: Shortfall (-) / Surplus (+): Current spending | M11: =M10-M9 -> -47912.92437 | N11: =N10-N9 -> -263448.9244 | O11: =O10-O9 -> -125884.9244
E14: Status quo | F14: Full Policy | G14: Mixed
C15: Enrolments | D15: Current | E15: =Dashboard!E6:E6 -> 1000000 | F15: =Dashboard!F6:F6 -> 1000000 | G15: =Dashboard!G6:G6 -> 750000

Sheet Funding Shortfall
C4: Historical
A5: All figures in R'm | B5: 2014 | C5: 2030 (Nominal) | F5: 2030 (Real)
B6: Status Quo | C6: Status Quo | D6: Full Policy Scenario | E6: Mixed | F6: Status Quo | G6: Full Policy Scenario | H6: Mixed
A7: Current Costs | B7: =Dashboard!Q5 -> 1843.818969 | C7: =Dashboard!N5 -> 14163.28997 | D7: =Dashboard!O5 -> 17956.3476 | E7: =Dashboard!P5 -> 12283.74432 | F7: =C7/(1.062)^16 -> 5409.68377 | G7: =D7/(1.062)^16 -> 6858.446197 | H7: =E7/(1.062)^16 -> 4691.789299
A8: Funding and financing: Total | B8: =B9+B10+B11 -> 1843.818969 | C8: =C9+C10+C11 -> 7385.323143 | D8: 9962.44864 | E8: 7361.7965 | F8: 2820.832084 | G8: 3805.167927 | H8: 2811.846057
A9: State subsidies | B9: ='Funding over time'!B15/1000 -> 1731.89 | C9: ='Funding over time'!R4/1000 -> 6868.472326 | D9: =C9 -> 6868.472326 | E9: =C9 -> 6868.472326 | F9: =C9/(1.062)^16 -> 2623.420361 | G9: =D9/(1.062)^16 -> 2623.420361 | H9: 2623.420361
A10: NSF | B10: ='Funding over time'!B19/1000 -> 22.59580585 | C10: ='Funding over time'!R19/1000 -> 103.7590949 | D10: ='Funding over time'!R20/1000 -> 2319.639081 | E10: ='Funding over time'!R21/1000 -> 231.9639081 | F10: =C10/(1.062)^16 -> 39.63089743 | G10: 885.9886312 | H10: 88.59886312
A11: SETA | B11: ='Funding over time'!B16/1000 -> 89.33316315 | C11: ='Funding over time'!R16/1000 -> 413.0917223 | D11: ='Funding over time'!R17/1000 -> 774.3372334 | E11: ='Funding over time'!R18/1000 -> 261.3602661 | F11: =C11/(1.062)^16 -> 157.7808257 | G11: 295.7589356 | H11: 99.82683354
A12: Shortfall (+) / Surplus (-) | B12: =B7-B8 -> -3.217337508e-10 | C12: 6777.966823 | D12: 7993.898963 | E12: 4921.947823 | F12: 2588.851687 | G12: 3053.27827 | H12: 1879.943242
C13: =C12/C8 -> 0.9177617135 | D13: 0.8024030288 | E13: 0.6685797173 | F13: 0.9177617135 | G13: 0.8024030288 | H13: 0.6685797173
C14: Projected
A15: All figures in R'm | B15: 2014 | C15: 2030 | F15: 2030 (Real)
B16: Status Quo | C16: Status Quo | D16: Full Policy Scenario | E16: Mixed | F16: Status Quo | G16: Full Policy Scenario | H16: Mixed
A17: Current Costs | B17: =B7 -> 1843.818969 | C17: 14163.28997 | D17: 17956.3476 | E17: 12283.74432 | F17: 5409.68377 | G17: 6858.446197 | H17: 4691.789299
A18: Funding and financing: Total | B18: =B19+B20+B21 -> 1843.818969 | C18: 7371.625928 | D18: 9880.454265 | E18: 7348.722771 | F18: 2815.600418 | G18: 3773.850088 | H18: 2806.852532
A19: State subsidies | B19: ='Funding over time'!B4/1000 -> 1731.89 | C19: =('Funding over time'!R15)/1000 -> 6868.472326 | D19: =C19 -> 6868.472326 | E19: =C19 -> 6868.472326 | F19: =C19/(1.062)^16 -> 2623.420361 | G19: =D19/(1.062)^16 -> 2623.420361 | H19: 2623.420361
A20: NSF | B20: ='Funding over time'!B8/1000 -> 22.59580585 | C20: ='Funding over time'!R8/1000 -> 101.0093447 | D20: ='Funding over time'!R9/1000 -> 2258.165644 | E20: ='Funding over time'!R10/1000 -> 225.8165644 | F20: =C20/(1.062)^16 -> 38.58062737 | G20: 862.5087861 | H20: 86.25087861
A21: SETA | B21: ='Funding over time'!B16/1000 -> 89.33316315 | C21: ='Funding over time'!R5/1000 -> 402.1442572 | D21: ='Funding over time'!R6/1000 -> 753.8162948 | E21: ='Funding over time'!R7/1000 -> 254.4338809 | F21: =C21/(1.062)^16 -> 153.5994297 | G21: 287.9209411 | H21: 97.18129329
A22: Shortfall (+) / Surplus (-) | B22: =B17-B18 -> -3.217337508e-10 | C22: 6791.664038 | D22: 8075.893339 | E22: 4935.021551 | F22: 2594.083353 | G22: 3084.59611 | H22: 1884.936767
C23: =C22/C18 -> 0.9213251059 | D23: 0.8173605305 | E23: 0.6715482003 | F23: 0.9213251059 | G23: 0.8173605305 | H23: 0.6715482003
C25: 65165337.69 | D25: 1160478616
C26: 171962971.1 | D26: 311981026.1

Sheet Funding over time
A1: Projection
A2: Funding Item | B2: 2014 | C2: 2015 | D2: 2016 | E2: 2017 | F2: 2018 | G2: 2019 | H2: 2020 | I2: 2021 | J2: 2022 | K2: 2023 | L2: 2024 | M2: 2025 | N2: 2026 | O2: 2027 | P2: 2028 | Q2: 2029 | R2: 2030 | S2: Cumulative
A3: Total revenue | B3: =SUM(B4:B8) -> 2022485.295 | C3: =SUM(C4:C8) -> 2332748.299 | D3: 2557536.566 | E3: 2803541.521 | F3: 2945735.616 | G3: 3214884.251 | H3: 3507438.718 | I3: 3826615.641 | J3: 4174837.664 | K3: 4554747.892 | L3: 4969229.95 | M3: 5421429.875 | N3: 5914779.994 | O3: 6453024.974 | P3: 7040250.246 | Q3: 7680913.019 | R3: 8379876.103 | S3: =SUM(B3:R3) -> 77800075.63
A4: Programme funding (DHET Subsidy) | B4: 1731890 | C4: 1859897 | D4: =C4*(1+$B$26)/(1+$C$27) -> 2029147.627 | E4: =D4*(1+$B$26)/(1+$C$27) -> 2213800.061 | F4: =E4*(1+$B$26)/(1+$C$27) -> 2415255.867 | G4: =F4*(1+$B$26)/(1+$C$27) -> 2635044.15 | H4: =G4*(1+$B$26)/(1+$C$27) -> 2874833.168 | I4: =H4*(1+$B$26)/(1+$C$27) -> 3136442.986 | J4: =I4*(1+$B$26)/(1+$C$27) -> 3421859.298 | K4: =J4*(1+$B$26)/(1+$C$27) -> 3733248.494 | L4: =K4*(1+$B$26)/(1+$C$27) -> 4072974.107 | M4: =L4*(1+$B$26)/(1+$C$27) -> 4443614.751 | N4: =M4*(1+$B$26)/(1+$C$27) -> 4847983.693 | O4: =N4*(1+$B$26)/(1+$C$27) -> 5289150.21 | P4: =O4*(1+$B$26)/(1+$C$27) -> 5770462.879 | Q4: =P4*(1+$B$26)/(1+$C$27) -> 6295575.001 | R4: =Q4*(1+$B$26)/(1+$C$27) -> 6868472.326 | S4: =SUM(B4:R4) -> 63639651.62
A5: SETA: Status Quo | B5: 89333.16315 | C5: =$B$30*C39 -> 100928.8358 | D5: =$B$30*D39 -> 112789.0627 | E5: =$B$30*E39 -> 125885.5201 | F5: =$B$30*F39 -> 140980.5699 | G5: =$B$30*G39 -> 154279.9945 | H5: =$B$30*H39 -> 168319.474 | I5: =$B$30*I39 -> 183636.5461 | J5: =$B$30*J39 -> 200347.4718 | K5: =$B$30*K39 -> 218579.0918 | L5: =$B$30*L39 -> 238469.7891 | M5: =$B$30*M39 -> 260170.5399 | N5: =$B$30*N39 -> 283846.0591 | O5: =$B$30*O39 -> 309676.0504 | P5: =$B$30*P39 -> 337856.571 | Q5: =$B$30*Q39 -> 368601.519 | R5: =$B$30*R39 -> 402144.2572 | S5: =SUM(B5:R5) -> 3695844.516
A6: SETA: Full Policy | B6: 89333.16315 | C6: =$C$30*C40 -> 230986.4252 | D6: =$C$30*D40 -> 258129.8218 | E6: 288102.4639 | F6: 264708.7365 | G6: 289196.6545 | H6: 315513.5501 | I6: 344225.2831 | J6: 375549.7839 | K6: 409724.8142 | L6: 447009.7723 | M6: 487687.6616 | N6: 532067.2388 | O6: 580485.3575 | P6: 633309.5251 | Q6: 690940.6919 | R6: 753816.2948 | S6: 6990787.238
A7: SETA: Mixed | B7: 89333.16315 | C7: =$D$30*C41 -> 115493.2126 | D7: =$D$30*D41 -> 129064.9109 | E7: 144051.232 | F7: 89271.13125 | G7: 97611.88191 | H7: 106494.5632 | I7: 116185.5684 | J7: 126758.4551 | K7: 138293.4745 | L7: 150878.1807 | M7: 164608.0952 | N7: 179587.4318 | O7: 195929.8881 | P7: 213759.508 | Q7: 233211.6232 | R7: 254433.8809 | S7: 2544966.201
A8: NSF: Status Quo | B8: 22595.80585 | C8: =$B$31*C43 -> 25442.82586 | D8: =$B$31*D43 -> 28405.14374 | E8: 31702.24411 | F8: 35519.31211 | G8: 38751.56952 | H8: 42277.96234 | I8: 46125.25692 | J8: 50322.6553 | K8: 54902.01693 | L8: 59898.10047 | M8: 65348.82761 | N8: 71295.57092 | O8: 77783.46788 | P8: 84861.76345 | Q8: 92584.18393 | R8: 101009.3447 | S8: 928826.0516
A9: NSF: Full Policy | B9: 22595.80585 | C9: =$C$31*C44 -> 568800 | D9: =$C$31*D44 -> 635025.6 | E9: 708735.6 | F9: 794070 | G9: 866330.37 | H9: 945166.4337 | I9: 1031176.579 | J9: 1125013.648 | K9: 1227389.89 | L9: 1339082.37 | M9: 1460938.865 | N9: 1593884.302 | O9: 1738927.774 | P9: 1897170.201 | Q9: 2069812.689 | R9: 2258165.644 | S9: 20282285.77
A10: NSF Mixed | B10: 22595.80585 | C10: =$D$31*C45 -> 56880 | D10: =$D$31*D45 -> 63502.56 | E10: 70873.56 | F10: 79407 | G10: 86633.037 | H10: 94516.64337 | I10: 103117.6579 | J10: 112501.3648 | K10: 122738.989 | L10: 133908.237 | M10: 146093.8865 | N10: 159388.4302 | O10: 173892.7774 | P10: 189717.0201 | Q10: 206981.2689 | R10: 225816.5644 | S10: 2048564.802
A12: Historical
A13: Funding Item | B13: 2014 | C13: 2015 | D13: 2016 | E13: 2017 | F13: 2018 | G13: 2019 | H13: 2020 | I13: 2021 | J13: 2022 | K13: 2023 | L13: 2024 | M13: 2025 | N13: 2026 | O13: 2027 | P13: 2028 | Q13: 2029 | R13: 2030 | S13: Cumulative | AL13: Current | AM13: 0.18
A14: Total revenue | B14: =SUM(B15:B19) -> 2022485.295 | C14: 2344927.98 | D14: 2571920.756 | E14: 2819595.894 | F14: 2960176.724 | G14: 3230669.082 | H14: 3524659.969 | I14: 3845404.026 | J14: 4195335.792 | K14: 4577111.349 | L14: 4993628.482 | M14: 5448048.674 | N14: 5943821.103 | O14: 6484708.824 | P14: 7074817.327 | Q14: 7718625.703 | R14: 8421020.642 | S14: =SUM(B14:R14) -> 78176957.62 | AL14: SETA Landscape | AM14: 1
A15: Programme funding (DHET Subsidy) | B15: 1731890 | C15: 1859897 | D15: =C15*(1+$B$26)/(1+$C$27) -> 2029147.627 | E15: =D15*(1+$B$26)/(1+$C$27) -> 2213800.061 | F15: =E15*(1+$B$26)/(1+$C$27) -> 2415255.867 | G15: =F15*(1+$B$26)/(1+$C$27) -> 2635044.15 | H15: =G15*(1+$B$26)/(1+$C$27) -> 2874833.168 | I15: =H15*(1+$B$26)/(1+$C$27) -> 3136442.986 | J15: =I15*(1+$B$26)/(1+$C$27) -> 3421859.298 | K15: =J15*(1+$B$26)/(1+$C$27) -> 3733248.494 | L15: =K15*(1+$B$26)/(1+$C$27) -> 4072974.107 | M15: =L15*(1+$B$26)/(1+$C$27) -> 4443614.751 | N15: =M15*(1+$B$26)/(1+$C$27) -> 4847983.693 | O15: =N15*(1+$B$26)/(1+$C$27) -> 5289150.21 | P15: =O15*(1+$B$26)/(1+$C$27) -> 5770462.879 | Q15: =P15*(1+$B$26)/(1+$C$27) -> 6295575.001 | R15: =Q15*(1+$B$26)/(1+$C$27) -> 6868472.326 | S15: =SUM(B15:R15) -> 63639651.62
A16: SETA | B16: 89333.16315 | C16: =$B$30*C39*(1+$B$25)/(1+$B$26) -> 103676.3944 | D16: =$B$30*D39*(1+$B$25)/(1+$B$26) -> 115859.4891 | E16: 129312.4678 | F16: 144818.4461 | G16: 158479.9174 | H16: 172901.5898 | I16: 188635.6345 | J16: 205801.4773 | K16: 224529.4117 | L16: 244961.5881 | M16: 267253.0927 | N16: 291573.1241 | O16: 318106.2784 | P16: 347053.9497 | Q16: 378635.8591 | R16: 413091.7223 | S16: =SUM(B16:R16) -> 3794023.606
A17: SETA: Full Policy | B17: 89333.16315 | C17: =$C$30*C40*(1+$B$25)/(1+$B$26) -> 237274.5066 | D17: =$C$30*D40*(1+$B$25)/(1+$B$26) -> 265156.8206 | E17: 295945.3999 | F17: 271914.8313 | G17: 297069.3774 | H17: 324102.6907 | I17: 353596.0356 | J17: 385773.2748 | K17: 420878.6428 | L17: 459178.5993 | M17: 500963.8518 | N17: 546551.5624 | O17: 596287.7545 | P17: 650549.9402 | Q17: 709749.9848 | R17: 774337.2334 | S17: =SUM(B17:R17) -> 7178663.669
A18: SETA: Mixed | B18: 89333.16315 | C18: =$D$30*C41*(1+$B$25)/(1+$B$26) -> 118637.2533 | D18: =$D$30*D41*(1+$B$25)/(1+$B$26) -> 132578.4103 | E18: 147972.7 | F18: 91701.33528 | G18: 100269.144 | H18: 109393.6361 | I18: 119348.4569 | J18: 130209.1665 | K18: 142058.2007 | L18: 154985.4969 | M18: 169089.1771 | N18: 184476.2923 | O18: 201263.6349 | P18: 219578.6256 | Q18: 239560.2806 | R18: 261360.2661 | S18: 2611815.24
A19: NSF | B19: 22595.80585 | C19: =$B$31*C43 -> 25442.82586 | D19: =$B$31*D43*(1+$B$25)/(1+$B$26) -> 29178.40934 | E19: =$B$31*E43*(1+$B$25)/(1+$B$26) -> 32565.26579 | F19: 36486.24481 | G19: 39806.49309 | H19: 43428.88396 | I19: 47380.9124 | J19: 51692.57543 | K19: 56396.59979 | L19: 61528.69037 | M19: 67127.8012 | N19: 73236.4311 | O19: 79900.94633 | P19: 87171.93245 | Q19: 95104.5783 | R19: 103759.0949 | S19: =SUM(B19:R19) -> 952803.491
A20: NSF: Full Policy | B20: 22595.80585 | C20: =$B$31*C44 -> 25442.82586 | D20: =$C$31*D44*(1+$B$25)/(1+$B$26) -> 652312.7314 | E20: 728029.3189 | F20: 815686.7544 | G20: 889914.249 | H20: =$C$31*H44*(1+$B$25)/(1+$B$26) -> 970896.4457 | I20: 1059248.022 | J20: 1155639.592 | K20: 1260802.795 | L20: 1375535.849 | M20: 1500709.612 | N20: 1637274.186 | O20: 1786266.137 | P20: 1948816.356 | Q20: 2126158.644 | R20: 2319639.081 | S20: =SUM(B20:R20) -> 20274968.41
A21: NSF Mixed | B21: 22595.80585 | C21: 25442.82586 | D21: =$D$31*D45*(1+$B$25)/(1+$B$26) -> 65231.27314 | E21: =$D$31*E45*(1+$B$25)/(1+$B$26) -> 72802.93189 | F21: 81568.67544 | G21: 88991.4249 | H21: 97089.64457 | I21: 105924.8022 | J21: 115563.9592 | K21: 126080.2795 | L21: 137553.5849 | M21: 150070.9612 | N21: 163727.4186 | O21: 178626.6137 | P21: 194881.6356 | Q21: 212615.8644 | R21: 231963.9081 | S21: 2070731.609
A24: Growth Assumptions
A25: Historical | B25: 0.1207 | E25: =1843.81896899968*1000 -> 1843818.969
A26: Projection | B26: 0.091
A27: CPI Inflation | B27: Nominal | C27: =IF(B27=Dashboard!AK3,Dashboard!AL4,Dashboard!AL3) -> 0
A29: Community College Allocations | B29: Status Quo | C29: Full Policy | D29: Mixed
A30: SETA | B30: =B16/B39 -> 0.04369470444 | C30: 0.1 | D30: 0.05
A31: NSF | B31: =B8/B43 -> 0.04473070651 | C31: 1 | D31: 0.1
A33: NSF Skills Programmes Scenario | B33: Current | C33: =IF(B33=AL13,AM13,AM14) -> 0.18
A38: SETA Skills Programmes
A39: Status Quo | B39: 2044484.894 | C39: 2309864.252 | D39: 2581298.218 | E39: 2881024.639 | F39: 3226490.984 | G39: 3530862.527 | H39: 3852171.016 | I39: 4202718.579 | J39: 4585165.97 | K39: 5002416.073 | L39: 5457635.935 | M39: 5954280.806 | N39: 6496120.359 | O39: 7087267.312 | P39: 7732208.637 | Q39: 8435839.623 | R39: 9203501.029
A40: Full Policy | B40: 2019429.799 | C40: 2309864.252 | D40: 2581298.218 | E40: 2881024.639 | F40: 2647087.365 | G40: 2891966.545 | H40: 3155135.501 | I40: 3442252.831 | J40: 3755497.839 | K40: 4097248.142 | L40: 4470097.723 | M40: 4876876.616 | N40: 5320672.388 | O40: 5804853.575 | P40: 6333095.251 | Q40: 6909406.919 | R40: 7538162.948
A41: Mixed | B41: 2019429.799 | C41: 2309864.252 | D41: 2581298.218 | E41: 2881024.639 | F41: 1785422.625 | G41: 1952237.638 | H41: 2129891.263 | I41: 2323711.368 | J41: 2535169.103 | K41: 2765869.491 | L41: 3017563.615 | M41: 3292161.904 | N41: 3591748.637 | O41: 3918597.763 | P41: 4275190.159 | Q41: 4664232.464 | R41: 5088677.618
A42: NSF Skills Programmes
A43: Status Quo | B43: =B49*0.18 -> 505152 | C43: =C49*0.18 -> 568800 | D43: 635025.6 | E43: 708735.6 | F43: 794070 | G43: 866330.37 | H43: 945166.4337 | I43: 1031176.579 | J43: 1125013.648 | K43: 1227389.89 | L43: 1339082.37 | M43: 1460938.865 | N43: 1593884.302 | O43: 1738927.774 | P43: 1897170.201 | Q43: 2069812.689 | R43: 2258165.644
A44: Full Policy | B44: =B50*0.18 -> 505152 | C44: 568800 | D44: 635025.6 | E44: 708735.6 | F44: =F50*$C$33 -> 794070 | G44: =G50*$C$33 -> 866330.37 | H44: 945166.4337 | I44: 1031176.579 | J44: 1125013.648 | K44: 1227389.89 | L44: 1339082.37 | M44: 1460938.865 | N44: 1593884.302 | O44: 1738927.774 | P44: 1897170.201 | Q44: 2069812.689 | R44: 2258165.644
A45: Mixed | B45: 505152 | C45: 568800 | D45: 635025.6 | E45: 708735.6 | F45: =F51*$C$33 -> 794070 | G45: =G51*$C$33 -> 866330.37 | H45: 945166.4337 | I45: 1031176.579 | J45: 1125013.648 | K45: 1227389.89 | L45: 1339082.37 | M45: 1460938.865 | N45: 1593884.302 | O45: 1738927.774 | P45: 1897170.201 | Q45: 2069812.689 | R45: 2258165.644
A48: NSF Training Programmes
A49: Status Quo | B49: 2806400 | C49: 3160000 | D49: 3527920 | E49: 3937420 | F49: 4411500 | G49: 4812946.5 | H49: 5250924.632 | I49: 5728758.773 | J49: 6250075.821 | K49: 6818832.721 | L49: 7439346.499 | M49: 8116327.03 | N49: 8854912.79 | O49: 9660709.854 | P49: 10539834.45 | Q49: 11498959.39 | R49: 12545364.69
A50: Full Policy | B50: 2806400 | C50: 3160000 | D50: 3527920 | E50: 3937420 | F50: 4411500 | G50: 4812946.5 | H50: 5250924.632 | I50: 5728758.773 | J50: 6250075.821 | K50: 6818832.721 | L50: 7439346.499 | M50: 8116327.03 | N50: 8854912.79 | O50: 9660709.854 | P50: 10539834.45 | Q50: 11498959.39 | R50: 12545364.69
A51: Mixed | B51: 2806400 | C51: 3160000 | D51: 3527920 | E51: 3937420 | F51: 4411500 | G51: 4812946.5 | H51: 5250924.632 | I51: 5728758.773 | J51: 6250075.821 | K51: 6818832.721 | L51: 7439346.499 | M51: 8116327.03 | N51: 8854912.79 | O51: 9660709.854 | P51: 10539834.45 | Q51: 11498959.39 | R51: 12545364.69
B54: 1000

Sheet TVET & CET Funding (hidden)
C3: 2014 | D3: 2015 | E3: 2016 | F3: 2017 | G3: 2018 | H3: 2019 | I3: 2020 | J3: 2021 | K3: 2022 | L3: 2023 | M3: 2024 | N3: 2025 | O3: 2026 | P3: 2027 | Q3: 2028 | R3: 2029 | S3: 2030
A4: Status Quo | B4: TVET | C4: =SUM(C5:C10) -> 495418454.3 | D4: =SUM(D5:D10) -> 565639910.5 | E4: 631616818 | F4: 704933065.1 | G4: 789783602.7 | H4: 885126251.5 | I4: 991981059.5 | J4: 1111735666 | K4: 1245947368 | L4: 1396361466 | M4: 1564933956 | N4: 1753856968 | O4: 1965587271 | P4: 2202878222 | Q4: 2468815572 | R4: 2766857590 | S4: 3100880036
B5: NCV Business | C5: ='[11]NSF Spend'!C10 -> 7430096.361 | D5: ='[11]NSF Spend'!D10 -> 8483070.968 | E5: ='[11]NSF Spend'!E10 -> 9470758.142 | F5: ='[11]NSF Spend'!F10 -> 10570067.5 | G5: ='[11]NSF Spend'!G10 -> 11842742.9 | H5: ='[11]NSF Spend'!H10 -> 13272430.49 | I5: ='[11]NSF Spend'!I10 -> 14874713.79 | J5: ='[11]NSF Spend'!J10 -> 16670429.02 | K5: ='[11]NSF Spend'!K10 -> 18682927.79 | L5: ='[11]NSF Spend'!L10 -> 20938380.79 | M5: ='[11]NSF Spend'!M10 -> 23466118.11 | N5: ='[11]NSF Spend'!N10 -> 26299010.64 | O5: ='[11]NSF Spend'!O10 -> 29473897.53 | P5: ='[11]NSF Spend'!P10 -> 33032065.25 | Q5: ='[11]NSF Spend'!Q10 -> 37019784.5 | R5: ='[11]NSF Spend'!R10 -> 41488911.87 | S5: ='[11]NSF Spend'!S10 -> 46497564.26
B6: NCV Technical | C6: ='[11]NSF Spend'!C11 -> 14860192.72 | D6: ='[11]NSF Spend'!D11 -> 16966141.94 | E6: ='[11]NSF Spend'!E11 -> 18941516.28 | F6: ='[11]NSF Spend'!F11 -> 21140134.99 | G6: ='[11]NSF Spend'!G11 -> 23685485.81 | H6: ='[11]NSF Spend'!H11 -> 26544860.99 | I6: ='[11]NSF Spend'!I11 -> 29749427.59 | J6: ='[11]NSF Spend'!J11 -> 33340858.04 | K6: ='[11]NSF Spend'!K11 -> 37365855.58 | L6: ='[11]NSF Spend'!L11 -> 41876761.58 | M6: ='[11]NSF Spend'!M11 -> 46932236.22 | N6: ='[11]NSF Spend'!N11 -> 52598021.27 | O6: ='[11]NSF Spend'!O11 -> 58947795.05 | P6: ='[11]NSF Spend'!P11 -> 66064130.5 | Q6: ='[11]NSF Spend'!Q11 -> 74039568.99 | R6: ='[11]NSF Spend'!R11 -> 82977823.74 | S6: ='[11]NSF Spend'!S11 -> 92995128.51
B7: NATED (N1-N3) | C7: ='[11]NSF Spend'!C12 -> 48295626.35 | D7: ='[11]NSF Spend'!D12 -> 55139961.29 | E7: ='[11]NSF Spend'!E12 -> 61559927.92 | F7: ='[11]NSF Spend'!F12 -> 68705438.73 | G7: ='[11]NSF Spend'!G12 -> 76977828.87 | H7: ='[11]NSF Spend'!H12 -> 86270798.21 | I7: ='[11]NSF Spend'!I12 -> 96685639.67 | J7: ='[11]NSF Spend'!J12 -> 108357788.6 | K7: ='[11]NSF Spend'!K12 -> 121439030.6 | L7: ='[11]NSF Spend'!L12 -> 136099475.1 | M7: ='[11]NSF Spend'!M12 -> 152529767.7 | N7: ='[11]NSF Spend'!N12 -> 170943569.1 | O7: ='[11]NSF Spend'!O12 -> 191580333.9 | P7: ='[11]NSF Spend'!P12 -> 214708424.1 | Q7: ='[11]NSF Spend'!Q12 -> 240628599.2 | R7: ='[11]NSF Spend'!R12 -> 269677927.2 | S7: ='[11]NSF Spend'!S12 -> 302234167.7
B8: NATED (N4-N6) | C8: ='[11]NSF Spend'!C13 -> 44580578.17 | D8: ='[11]NSF Spend'!D13 -> 50898425.81 | E8: ='[11]NSF Spend'!E13 -> 56824548.85 | F8: ='[11]NSF Spend'!F13 -> 63420404.98 | G8: ='[11]NSF Spend'!G13 -> 71056457.42 | H8: ='[11]NSF Spend'!H13 -> 79634582.97 | I8: ='[11]NSF Spend'!I13 -> 89248282.77 | J8: ='[11]NSF Spend'!J13 -> 100022574.1 | K8: ='[11]NSF Spend'!K13 -> 112097566.7 | L8: ='[11]NSF Spend'!L13 -> 125630284.7 | M8: ='[11]NSF Spend'!M13 -> 140796708.7 | N8: ='[11]NSF Spend'!N13 -> 157794063.8 | O8: ='[11]NSF Spend'!O13 -> 176843385.2 | P8: ='[11]NSF Spend'!P13 -> 198192391.5 | Q8: ='[11]NSF Spend'!Q13 -> 222118707 | R8: ='[11]NSF Spend'!R13 -> 248933471.2 | S8: ='[11]NSF Spend'!S13 -> 278985385.5
B9: Learnerships | C9: ='[11]NSF Spend'!C14*[11]Assumptions!$B$68 -> 343236560.2 | D9: ='[11]NSF Spend'!D14*[11]Assumptions!$B$68 -> 391879184 | E9: ='[11]NSF Spend'!E14*[11]Assumptions!$B$68 -> 437505826.2 | F9: ='[11]NSF Spend'!F14*[11]Assumptions!$B$68 -> 488288904 | G9: ='[11]NSF Spend'!G14*[11]Assumptions!$B$68 -> 547080702.6 | H9: ='[11]NSF Spend'!H14*[11]Assumptions!$B$68 -> 613125747.9 | I9: ='[11]NSF Spend'!I14*[11]Assumptions!$B$68 -> 687143927.7 | J9: ='[11]NSF Spend'!J14*[11]Assumptions!$B$68 -> 770097780.2 | K9: ='[11]NSF Spend'!K14*[11]Assumptions!$B$68 -> 863066043.5 | L9: ='[11]NSF Spend'!L14*[11]Assumptions!$B$68 -> 967257684.1 | M9: ='[11]NSF Spend'!M14*[11]Assumptions!$B$68 -> 1084027618 | N9: ='[11]NSF Spend'!N14*[11]Assumptions!$B$68 -> 1214894331 | O9: ='[11]NSF Spend'!O14*[11]Assumptions!$B$68 -> 1361559623 | P9: ='[11]NSF Spend'!P14*[11]Assumptions!$B$68 -> 1525930742 | Q9: ='[11]NSF Spend'!Q14*[11]Assumptions!$B$68 -> 1710145181 | R9: ='[11]NSF Spend'!R14*[11]Assumptions!$B$68 -> 1916598481 | S9: ='[11]NSF Spend'!S14*[11]Assumptions!$B$68 -> 2147975374
B10: Learnerships (SETA) | C10: ='[11]SETA Discretionary'!C8*[11]Assumptions!$B$70 -> 37015400.5 | D10: ='[11]SETA Discretionary'!D8*[11]Assumptions!$B$70 -> 42273126.48 | E10: ='[11]SETA Discretionary'!E8*[11]Assumptions!$B$70 -> 47314240.59 | F10: ='[11]SETA Discretionary'!F8*[11]Assumptions!$B$70 -> 52808114.91 | G10: ='[11]SETA Discretionary'!G8*[11]Assumptions!$B$70 -> 59140385.09 | H10: ='[11]SETA Discretionary'!H8*[11]Assumptions!$B$70 -> 66277830.93 | I10: ='[11]SETA Discretionary'!I8*[11]Assumptions!$B$70 -> 74279067.9 | J10: ='[11]SETA Discretionary'!J8*[11]Assumptions!$B$70 -> 83246235.61 | K10: ='[11]SETA Discretionary'!K8*[11]Assumptions!$B$70 -> 93295943.77 | L10: ='[11]SETA Discretionary'!L8*[11]Assumptions!$B$70 -> 104558879.6 | M10: ='[11]SETA Discretionary'!M8*[11]Assumptions!$B$70 -> 117181507.1 | N10: ='[11]SETA Discretionary'!N8*[11]Assumptions!$B$70 -> 131327972 | O10: ='[11]SETA Discretionary'!O8*[11]Assumptions!$B$70 -> 147182236 | P10: ='[11]SETA Discretionary'!P8*[11]Assumptions!$B$70 -> 164950469.1 | Q10: ='[11]SETA Discretionary'!Q8*[11]Assumptions!$B$70 -> 184863730.8 | R10: ='[11]SETA Discretionary'!R8*[11]Assumptions!$B$70 -> 207180974.7 | S10: ='[11]SETA Discretionary'!S8*[11]Assumptions!$B$70 -> 232192416
B11: Community Colleges | C11: =SUM(C12:C13) -> 30869175.57 | D11: =SUM(D12:D13) -> 35251131.83 | E11: 39427537.72 | F11: 44005212.11 | G11: 49287867 | H11: 55236736.29 | I11: 61905062.8 | J11: 69378407.52 | K11: 77753954.4 | L11: 87140619.69 | M11: 97660468.32 | N11: 109450301.2 | O11: 122663434.2 | P11: 137471692 | Q11: 154067642.3 | R11: 172667100.1 | S11: 193511934.1 | T11: =SUM(E11:S11)/1000 -> 1471627.97
B12: Skills Programmes (NSF) | C12: =[11]Assumptions!$B$69*'[11]NSF Spend'!C17 -> 8485952.16 | D12: =[11]Assumptions!$B$69*'[11]NSF Spend'!D17 -> 9688560 | E12: =[11]Assumptions!$B$69*'[11]NSF Spend'!E17 -> 10816602.72 | F12: =[11]Assumptions!$B$69*'[11]NSF Spend'!F17 -> 12072129.72 | G12: =[11]Assumptions!$B$69*'[11]NSF Spend'!G17 -> 13525659 | H12: =[11]Assumptions!$B$69*'[11]NSF Spend'!H17 -> 15158512.72 | I12: =[11]Assumptions!$B$69*'[11]NSF Spend'!I17 -> 16988488.91 | J12: =[11]Assumptions!$B$69*'[11]NSF Spend'!J17 -> 19039384.72 | K12: =[11]Assumptions!$B$69*'[11]NSF Spend'!K17 -> 21337870.16 | L12: =[11]Assumptions!$B$69*'[11]NSF Spend'!L17 -> 23913834.9 | M12: =[11]Assumptions!$B$69*'[11]NSF Spend'!M17 -> 26800777 | N12: =[11]Assumptions!$B$69*'[11]NSF Spend'!N17 -> 30036238.46 | O12: =[11]Assumptions!$B$69*'[11]NSF Spend'!O17 -> 33662293.49 | P12: =[11]Assumptions!$B$69*'[11]NSF Spend'!P17 -> 37726095.57 | Q12: =[11]Assumptions!$B$69*'[11]NSF Spend'!Q17 -> 42280490.71 | R12: =[11]Assumptions!$B$69*'[11]NSF Spend'!R17 -> 47384704.61 | S12: =[11]Assumptions!$B$69*'[11]NSF Spend'!S17 -> 53105112.86
B13: Skills Programmes (SETA) | C13: =[11]Assumptions!$B$71*'[11]SETA Discretionary'!C12 -> 22383223.41 | D13: =[11]Assumptions!$B$71*'[11]SETA Discretionary'!D12 -> 25562571.83 | E13: =[11]Assumptions!$B$71*'[11]SETA Discretionary'!E12 -> 28610935 | F13: =[11]Assumptions!$B$71*'[11]SETA Discretionary'!F12 -> 31933082.39 | G13: =[11]Assumptions!$B$71*'[11]SETA Discretionary'!G12 -> 35762208 | H13: =[11]Assumptions!$B$71*'[11]SETA Discretionary'!H12 -> 40078223.57 | I13: =[11]Assumptions!$B$71*'[11]SETA Discretionary'!I12 -> 44916573.89 | J13: =[11]Assumptions!$B$71*'[11]SETA Discretionary'!J12 -> 50339022.8 | K13: =[11]Assumptions!$B$71*'[11]SETA Discretionary'!K12 -> 56416084.24 | L13: =[11]Assumptions!$B$71*'[11]SETA Discretionary'!L12 -> 63226784.79 | M13: =[11]Assumptions!$B$71*'[11]SETA Discretionary'!M12 -> 70859691.32 | N13: =[11]Assumptions!$B$71*'[11]SETA Discretionary'!N12 -> 79414062.74 | O13: =[11]Assumptions!$B$71*'[11]SETA Discretionary'!O12 -> 89001140.75 | P13: =[11]Assumptions!$B$71*'[11]SETA Discretionary'!P12 -> 99745596.45 | Q13: =[11]Assumptions!$B$71*'[11]SETA Discretionary'!Q12 -> 111787151.6 | R13: =[11]Assumptions!$B$71*'[11]SETA Discretionary'!R12 -> 125282395.4 | S13: =[11]Assumptions!$B$71*'[11]SETA Discretionary'!S12 -> 140406821.2
A15: Full Policy | B15: TVET | C15: =SUM(C16:C21) -> 495418454.3 | D15: =SUM(D16:D21) -> 565639910.5 | E15: 631616818 | F15: 704933065.1 | G15: 2455099363 | H15: 2751476476 | I15: 3083642074 | J15: 3455907591 | K15: 3873113997 | L15: 4340686675 | M15: 4864705978 | N15: 5451986292 | O15: 6110164656 | P15: 6847800072 | Q15: 7674484808 | R15: 8600969136 | S15: 9639301129
B16: NCV Business | C16: ='[11]NSF Spend'!C38 -> 7430096.361 | D16: ='[11]NSF Spend'!D38 -> 8483070.968 | E16: ='[11]NSF Spend'!E38 -> 9470758.142 | F16: ='[11]NSF Spend'!F38 -> 10570067.5 | G16: ='[11]NSF Spend'!G38 -> 14452074 | H16: ='[11]NSF Spend'!H38 -> 16196767.02 | I16: ='[11]NSF Spend'!I38 -> 18152084.04 | J16: ='[11]NSF Spend'!J38 -> 20343452.17 | K16: ='[11]NSF Spend'!K38 -> 22799368.11 | L16: ='[11]NSF Spend'!L38 -> 25551768.8 | M16: ='[11]NSF Spend'!M38 -> 28636446.66 | N16: ='[11]NSF Spend'!N38 -> 32093515.07 | O16: ='[11]NSF Spend'!O38 -> 35967930.03 | P16: ='[11]NSF Spend'!P38 -> 40310074.72 | Q16: ='[11]NSF Spend'!Q38 -> 45176414.73 | R16: ='[11]NSF Spend'!R38 -> 50630232.32 | S16: ='[11]NSF Spend'!S38 -> 56742449.36
B17: NCV Technical | C17: ='[11]NSF Spend'!C39 -> 14860192.72 | D17: ='[11]NSF Spend'!D39 -> 16966141.94 | E17: ='[11]NSF Spend'!E39 -> 18941516.28 | F17: ='[11]NSF Spend'!F39 -> 21140134.99 | G17: ='[11]NSF Spend'!G39 -> 28904148 | H17: ='[11]NSF Spend'!H39 -> 32393534.04 | I17: ='[11]NSF Spend'!I39 -> 36304168.09 | J17: ='[11]NSF Spend'!J39 -> 40686904.34 | K17: ='[11]NSF Spend'!K39 -> 45598736.23 | L17: ='[11]NSF Spend'!L39 -> 51103537.6 | M17: ='[11]NSF Spend'!M39 -> 57272893.31 | N17: ='[11]NSF Spend'!N39 -> 64187030.14 | O17: ='[11]NSF Spend'!O39 -> 71935860.06 | P17: ='[11]NSF Spend'!P39 -> 80620149.45 | Q17: ='[11]NSF Spend'!Q39 -> 90352829.47 | R17: ='[11]NSF Spend'!R39 -> 101260464.6 | S17: ='[11]NSF Spend'!S39 -> 113484898.7
B18: NATED (N1-N3) | C18: ='[11]NSF Spend'!C40 -> 48295626.35 | D18: ='[11]NSF Spend'!D40 -> 55139961.29 | E18: ='[11]NSF Spend'!E40 -> 61559927.92 | F18: ='[11]NSF Spend'!F40 -> 68705438.73 | G18: ='[11]NSF Spend'!G40 -> 95142820.5 | H18: ='[11]NSF Spend'!H40 -> 106628716.2 | I18: ='[11]NSF Spend'!I40 -> 119501220 | J18: ='[11]NSF Spend'!J40 -> 133927726.8 | K18: ='[11]NSF Spend'!K40 -> 150095840.1 | L18: ='[11]NSF Spend'!L40 -> 168215811.3 | M18: ='[11]NSF Spend'!M40 -> 188523273.8 | N18: ='[11]NSF Spend'!N40 -> 211282307.6 | O18: ='[11]NSF Spend'!O40 -> 236788872.7 | P18: ='[11]NSF Spend'!P40 -> 265374658.6 | Q18: ='[11]NSF Spend'!Q40 -> 297411397 | R18: ='[11]NSF Spend'!R40 -> 333315696.1 | S18: ='[11]NSF Spend'!S40 -> 373554458.3
B19: NATED (N4-N6) | C19: ='[11]NSF Spend'!C41 -> 44580578.17 | D19: ='[11]NSF Spend'!D41 -> 50898425.81 | E19: ='[11]NSF Spend'!E41 -> 56824548.85 | F19: ='[11]NSF Spend'!F41 -> 63420404.98 | G19: ='[11]NSF Spend'!G41 -> 87916783.5 | H19: ='[11]NSF Spend'!H41 -> 98530332.7 | I19: ='[11]NSF Spend'!I41 -> 110425177.9 | J19: ='[11]NSF Spend'!J41 -> 123756000.7 | K19: ='[11]NSF Spend'!K41 -> 138696156 | L19: ='[11]NSF Spend'!L41 -> 155439926.9 | M19: ='[11]NSF Spend'!M41 -> 174205050.5 | N19: ='[11]NSF Spend'!N41 -> 195235550 | O19: ='[11]NSF Spend'!O41 -> 218804907.7 | P19: ='[11]NSF Spend'!P41 -> 245219621.2 | Q19: ='[11]NSF Spend'!Q41 -> 274823189.6 | R19: ='[11]NSF Spend'!R41 -> 308000580 | S19: ='[11]NSF Spend'!S41 -> 345183233.6
B20: Learnerships (NSF) | C20: ='[11]NSF Spend'!C42*[11]Assumptions!$B$68 -> 343236560.2 | D20: ='[11]NSF Spend'!D42*[11]Assumptions!$B$68 -> 391879184 | E20: ='[11]NSF Spend'!E42*[11]Assumptions!$B$68 -> 437505826.2 | F20: ='[11]NSF Spend'!F42*[11]Assumptions!$B$68 -> 488288904 | G20: ='[11]NSF Spend'!G42*[11]Assumptions!$C$68 -> 2099693658 | H20: ='[11]NSF Spend'!H42*[11]Assumptions!$C$68 -> 2353174291 | I20: ='[11]NSF Spend'!I42*[11]Assumptions!$C$68 -> 2637255784 | J20: ='[11]NSF Spend'!J42*[11]Assumptions!$C$68 -> 2955632354 | K20: ='[11]NSF Spend'!K42*[11]Assumptions!$C$68 -> 3312444195 | L20: ='[11]NSF Spend'!L42*[11]Assumptions!$C$68 -> 3712331316 | M20: ='[11]NSF Spend'!M42*[11]Assumptions!$C$68 -> 4160493880 | N20: ='[11]NSF Spend'!N42*[11]Assumptions!$C$68 -> 4662759826 | O20: ='[11]NSF Spend'!O42*[11]Assumptions!$C$68 -> 5225660661 | P20: ='[11]NSF Spend'!P42*[11]Assumptions!$C$68 -> 5856516390 | Q20: ='[11]NSF Spend'!Q42*[11]Assumptions!$C$68 -> 6563530709 | R20: ='[11]NSF Spend'!R42*[11]Assumptions!$C$68 -> 7355897687 | S20: ='[11]NSF Spend'!S42*[11]Assumptions!$C$68 -> 8243921326
B21: Learnerships (SETA) | C21: ='[11]SETA Discretionary'!C30*[11]Assumptions!$B$70 -> 37015400.5 | D21: ='[11]SETA Discretionary'!D30*[11]Assumptions!$B$70 -> 42273126.48 | E21: ='[11]SETA Discretionary'!E30*[11]Assumptions!$B$70 -> 47314240.59 | F21: ='[11]SETA Discretionary'!F30*[11]Assumptions!$B$70 -> 52808114.91 | G21: ='[11]SETA Discretionary'!G30*[11]Assumptions!$C$70 -> 128989878.7 | H21: ='[11]SETA Discretionary'!H30*[11]Assumptions!$C$70 -> 144552835.4 | I21: ='[11]SETA Discretionary'!I30*[11]Assumptions!$C$70 -> 162003640.3 | J21: ='[11]SETA Discretionary'!J30*[11]Assumptions!$C$70 -> 181561152.9 | K21: ='[11]SETA Discretionary'!K30*[11]Assumptions!$C$70 -> 203479700.8 | L21: ='[11]SETA Discretionary'!L30*[11]Assumptions!$C$70 -> 228044314.4 | M21: ='[11]SETA Discretionary'!M30*[11]Assumptions!$C$70 -> 255574433.8 | N21: ='[11]SETA Discretionary'!N30*[11]Assumptions!$C$70 -> 286428062.9 | O21: ='[11]SETA Discretionary'!O30*[11]Assumptions!$C$70 -> 321006424.6 | P21: ='[11]SETA Discretionary'!P30*[11]Assumptions!$C$70 -> 359759178.5 | Q21: ='[11]SETA Discretionary'!Q30*[11]Assumptions!$C$70 -> 403190268.6 | R21: ='[11]SETA Discretionary'!R30*[11]Assumptions!$C$70 -> 451864476 | S21: ='[11]SETA Discretionary'!S30*[11]Assumptions!$C$70 -> 506414763.8
B22: Community Colleges | C22: =SUM(C23:C24) -> 30869175.57 | D22: =SUM(D23:D24) -> 35251131.83 | E22: 39427537.72 | F22: 44005212.11 | G22: 305868080.9 | H22: 342788734.9 | I22: 384171107.6 | J22: 430549271 | K22: 482526330.3 | L22: 540778199.2 | M22: 606062389.4 | N22: 679227861.7 | O22: 761226065.5 | P22: 853123311.7 | Q22: 956114639.1 | R22: 1071539355 | S22: 1200898451 | T22: =SUM(E22:S22)/1000 -> 8698306.547
B23: Skills Programmes (NSF) | C23: =[11]Assumptions!$B$69*'[11]NSF Spend'!C45 -> 8485952.16 | D23: =[11]Assumptions!$B$69*'[11]NSF Spend'!D45 -> 9688560 | E23: =[11]Assumptions!$B$69*'[11]NSF Spend'!E45 -> 10816602.72 | F23: =[11]Assumptions!$B$69*'[11]NSF Spend'!F45 -> 12072129.72 | G23: =[11]Assumptions!$C$69*'[11]NSF Spend'!G45 -> 240867900 | H23: =[11]Assumptions!$C$69*'[11]NSF Spend'!H45 -> 269946117 | I23: =[11]Assumptions!$C$69*'[11]NSF Spend'!I45 -> 302534734.1 | J23: =[11]Assumptions!$C$69*'[11]NSF Spend'!J45 -> 339057536.2 | K23: =[11]Assumptions!$C$69*'[11]NSF Spend'!K45 -> 379989468.6 | L23: =[11]Assumptions!$C$69*'[11]NSF Spend'!L45 -> 425862813.3 | M23: =[11]Assumptions!$C$69*'[11]NSF Spend'!M45 -> 477274110.9 | N23: =[11]Assumptions!$C$69*'[11]NSF Spend'!N45 -> 534891917.9 | O23: =[11]Assumptions!$C$69*'[11]NSF Spend'!O45 -> 599465500.5 | P23: =[11]Assumptions!$C$69*'[11]NSF Spend'!P45 -> 671834578.7 | Q23: =[11]Assumptions!$C$69*'[11]NSF Spend'!Q45 -> 752940245.6 | R23: =[11]Assumptions!$C$69*'[11]NSF Spend'!R45 -> 843837205.4 | S23: =[11]Assumptions!$C$69*'[11]NSF Spend'!S45 -> 945707489.3
B24: Skills Programmes (SETA) | C24: =[11]Assumptions!$B$71*'[11]SETA Discretionary'!C34 -> 22383223.41 | D24: =[11]Assumptions!$B$71*'[11]SETA Discretionary'!D34 -> 25562571.83 | E24: =[11]Assumptions!$B$71*'[11]SETA Discretionary'!E34 -> 28610935 | F24: =[11]Assumptions!$B$71*'[11]SETA Discretionary'!F34 -> 31933082.39 | G24: =[11]Assumptions!$C$71*'[11]SETA Discretionary'!G34 -> 65000180.87 | H24: =[11]Assumptions!$C$71*'[11]SETA Discretionary'!H34 -> 72842617.9 | I24: =[11]Assumptions!$C$71*'[11]SETA Discretionary'!I34 -> 81636373.52 | J24: =[11]Assumptions!$C$71*'[11]SETA Discretionary'!J34 -> 91491734.83 | K24: =[11]Assumptions!$C$71*'[11]SETA Discretionary'!K34 -> 102536861.7 | L24: =[11]Assumptions!$C$71*'[11]SETA Discretionary'!L34 -> 114915385.8 | M24: =[11]Assumptions!$C$71*'[11]SETA Discretionary'!M34 -> 128788278.5 | N24: =[11]Assumptions!$C$71*'[11]SETA Discretionary'!N34 -> 144335943.9 | O24: =[11]Assumptions!$C$71*'[11]SETA Discretionary'!O34 -> 161760565 | P24: =[11]Assumptions!$C$71*'[11]SETA Discretionary'!P34 -> 181288732.9 | Q24: =[11]Assumptions!$C$71*'[11]SETA Discretionary'!Q34 -> 203174393.6 | R24: =[11]Assumptions!$C$71*'[11]SETA Discretionary'!R34 -> 227702149.6 | S24: =[11]Assumptions!$C$71*'[11]SETA Discretionary'!S34 -> 255190962
A26: Mixed | B26: TVET | C26: =SUM(C27:C32) -> 495418454.3 | D26: =SUM(D27:D32) -> 565639910.5 | E26: 631616818 | F26: 704933065.1 | G26: 3991566145 | H26: 4435838468 | I26: 4971344750 | J26: 5571498782 | K26: 6244105013 | L26: 6997910067 | M26: 7842716483 | N26: 8789510189 | O26: 9850603362 | P26: 1.103979454e+10 | Q26: 1.237254806e+10 | R26: 1.386619515e+10 | S26: 1.55401593e+10
B27: NCV Business | C27: ='[11]NSF Spend'!C66 -> 7430096.361 | D27: ='[11]NSF Spend'!D66 -> 8483070.968 | E27: ='[11]NSF Spend'!E66 -> 9470758.142 | F27: ='[11]NSF Spend'!F66 -> 10570067.5 | G27: ='[11]NSF Spend'!G66 -> 374977500 | H27: ='[11]NSF Spend'!H66 -> 420245786.5 | I27: ='[11]NSF Spend'!I66 -> 470978981.6 | J27: ='[11]NSF Spend'!J66 -> 527836823.7 | K27: ='[11]NSF Spend'!K66 -> 591558696.5 | L27: ='[11]NSF Spend'!L66 -> 662973244.2 | M27: ='[11]NSF Spend'!M66 -> 743009147 | N27: ='[11]NSF Spend'!N66 -> 832707198.1 | O27: ='[11]NSF Spend'!O66 -> 933233837.8 | P27: ='[11]NSF Spend'!P66 -> 1045896322 | Q27: ='[11]NSF Spend'!Q66 -> 1172159723 | R27: ='[11]NSF Spend'!R66 -> 1313665979 | S27: ='[11]NSF Spend'!S66 -> 1472255249
B28: NCV Technical | C28: ='[11]NSF Spend'!C67 -> 14860192.72 | D28: ='[11]NSF Spend'!D67 -> 16966141.94 | E28: ='[11]NSF Spend'!E67 -> 18941516.28 | F28: ='[11]NSF Spend'!F67 -> 21140134.99 | G28: ='[11]NSF Spend'!G67 -> 1124932500 | H28: ='[11]NSF Spend'!H67 -> 1260737360 | I28: ='[11]NSF Spend'!I67 -> 1412936945 | J28: ='[11]NSF Spend'!J67 -> 1583510471 | K28: ='[11]NSF Spend'!K67 -> 1774676089 | L28: ='[11]NSF Spend'!L67 -> 1988919733 | M28: ='[11]NSF Spend'!M67 -> 2229027441 | N28: ='[11]NSF Spend'!N67 -> 2498121594 | O28: ='[11]NSF Spend'!O67 -> 2799701513 | P28: ='[11]NSF Spend'!P67 -> 3137688967 | Q28: ='[11]NSF Spend'!Q67 -> 3516479169 | R28: ='[11]NSF Spend'!R67 -> 3940997937 | S28: ='[11]NSF Spend'!S67 -> 4416765747
B29: NATED (N1-N3) | C29: ='[11]NSF Spend'!C68 -> 48295626.35 | D29: ='[11]NSF Spend'!D68 -> 55139961.29 | E29: ='[11]NSF Spend'!E68 -> 61559927.92 | F29: ='[11]NSF Spend'!F68 -> 68705438.73 | G29: ='[11]NSF Spend'!G68 -> 749955000 | H29: ='[11]NSF Spend'!H68 -> 840491573 | I29: ='[11]NSF Spend'!I68 -> 941957963.2 | J29: ='[11]NSF Spend'!J68 -> 1055673647 | K29: ='[11]NSF Spend'!K68 -> 1183117393 | L29: ='[11]NSF Spend'!L68 -> 1325946488 | M29: ='[11]NSF Spend'!M68 -> 1486018294 | N29: ='[11]NSF Spend'!N68 -> 1665414396 | O29: ='[11]NSF Spend'!O68 -> 1866467676 | P29: ='[11]NSF Spend'!P68 -> 2091792644 | Q29: ='[11]NSF Spend'!Q68 -> 2344319446 | R29: ='[11]NSF Spend'!R68 -> 2627331958 | S29: ='[11]NSF Spend'!S68 -> 2944510498
B30: NATED (N4-N6) | C30: ='[11]NSF Spend'!C69 -> 44580578.17 | D30: ='[11]NSF Spend'!D69 -> 50898425.81 | E30: ='[11]NSF Spend'!E69 -> 56824548.85 | F30: ='[11]NSF Spend'!F69 -> 63420404.98 | G30: ='[11]NSF Spend'!G69 -> 599964000 | H30: ='[11]NSF Spend'!H69 -> 672393258.4 | I30: ='[11]NSF Spend'!I69 -> 753566370.6 | J30: ='[11]NSF Spend'!J69 -> 844538917.9 | K30: ='[11]NSF Spend'!K69 -> 946493914.4 | L30: ='[11]NSF Spend'!L69 -> 1060757191 | M30: ='[11]NSF Spend'!M69 -> 1188814635 | N30: ='[11]NSF Spend'!N69 -> 1332331517 | O30: ='[11]NSF Spend'!O69 -> 1493174140 | P30: ='[11]NSF Spend'!P69 -> 1673434115 | Q30: ='[11]NSF Spend'!Q69 -> 1875455557 | R30: ='[11]NSF Spend'!R69 -> 2101865567 | S30: ='[11]NSF Spend'!S69 -> 2355608398
B31: Learnerships | C31: ='[11]NSF Spend'!C70*[11]Assumptions!$B$68 -> 343236560.2 | D31: ='[11]NSF Spend'!D70*[11]Assumptions!$B$68 -> 391879184 | E31: ='[11]NSF Spend'!E70*[11]Assumptions!$B$68 -> 437505826.2 | F31: ='[11]NSF Spend'!F70*[11]Assumptions!$B$68 -> 488288904 | G31: ='[11]NSF Spend'!G70*[11]Assumptions!$C$68 -> 650960940 | H31: ='[11]NSF Spend'!H70*[11]Assumptions!$C$68 -> 729546685.4 | I31: ='[11]NSF Spend'!I70*[11]Assumptions!$C$68 -> 817619512.1 | J31: ='[11]NSF Spend'!J70*[11]Assumptions!$C$68 -> 916324725.9 | K31: ='[11]NSF Spend'!K70*[11]Assumptions!$C$68 -> 1026945897 | L31: ='[11]NSF Spend'!L70*[11]Assumptions!$C$68 -> 1150921552 | M31: ='[11]NSF Spend'!M70*[11]Assumptions!$C$68 -> 1289863879 | N31: ='[11]NSF Spend'!N70*[11]Assumptions!$C$68 -> 1445579696 | O31: ='[11]NSF Spend'!O70*[11]Assumptions!$C$68 -> 1620093942 | P31: ='[11]NSF Spend'!P70*[11]Assumptions!$C$68 -> 1815676015 | Q31: ='[11]NSF Spend'!Q70*[11]Assumptions!$C$68 -> 2034869279 | R31: ='[11]NSF Spend'!R70*[11]Assumptions!$C$68 -> 2280524140 | S31: ='[11]NSF Spend'!S70*[11]Assumptions!$C$68 -> 2555835112
B32: Learnerships (SETA) | C32: ='[11]SETA Discretionary'!C53*[11]Assumptions!$B$70 -> 37015400.5 | D32: ='[11]SETA Discretionary'!D53*[11]Assumptions!$B$70 -> 42273126.48 | E32: ='[11]SETA Discretionary'!E53*[11]Assumptions!$B$70 -> 47314240.59 | F32: ='[11]SETA Discretionary'!F53*[11]Assumptions!$B$70 -> 52808114.91 | G32: ='[11]SETA Discretionary'!G53*[11]Assumptions!$C$70 -> 490776205.2 | H32: ='[11]SETA Discretionary'!H53*[11]Assumptions!$C$70 -> 512423805.5 | I32: ='[11]SETA Discretionary'!I53*[11]Assumptions!$C$70 -> 574284977.6 | J32: ='[11]SETA Discretionary'!J53*[11]Assumptions!$C$70 -> 643614195.7 | K32: ='[11]SETA Discretionary'!K53*[11]Assumptions!$C$70 -> 721313022.5 | L32: ='[11]SETA Discretionary'!L53*[11]Assumptions!$C$70 -> 808391859.4 | M32: ='[11]SETA Discretionary'!M53*[11]Assumptions!$C$70 -> 905983086.3 | N32: ='[11]SETA Discretionary'!N53*[11]Assumptions!$C$70 -> 1015355787 | O32: ='[11]SETA Discretionary'!O53*[11]Assumptions!$C$70 -> 1137932253 | P32: ='[11]SETA Discretionary'!P53*[11]Assumptions!$C$70 -> 1275306477 | Q32: ='[11]SETA Discretionary'!Q53*[11]Assumptions!$C$70 -> 1429264885 | R32: ='[11]SETA Discretionary'!R53*[11]Assumptions!$C$70 -> 1601809564 | S32: ='[11]SETA Discretionary'!S53*[11]Assumptions!$C$70 -> 1795184298
B33: Community Colleges | C33: =SUM(C34:C35) -> 30869175.57 | D33: =SUM(D34:D35) -> 35251131.83 | E33: 39427537.72 | F33: 44005212.11 | G33: 55925676.35 | H33: 60403487.43 | I33: 67695557.95 | J33: 75867946.73 | K33: 85026928.13 | L33: 95291606.26 | M33: 106795463.8 | N33: 119688097.7 | O33: 134137165 | P33: 150330562.2 | Q33: 168478869.7 | R33: 188818089.3 | S33: 211612714 | T33: =SUM(E33:S33)/1000 -> 1603504.914
B34: Skills Programmes (NSF) | C34: =[11]Assumptions!$B$69*'[11]NSF Spend'!C73 -> 8485952.16 | D34: =[11]Assumptions!$B$69*'[11]NSF Spend'!D73 -> 9688560 | E34: =[11]Assumptions!$B$69*'[11]NSF Spend'!E73 -> 10816602.72 | F34: =[11]Assumptions!$B$69*'[11]NSF Spend'!F73 -> 12072129.72 | G34: =[11]Assumptions!$B$69*'[11]NSF Spend'!G73 -> 26248425 | H34: =[11]Assumptions!$B$69*'[11]NSF Spend'!H73 -> 29417205.06 | I34: =[11]Assumptions!$B$69*'[11]NSF Spend'!I73 -> 32968528.71 | J34: =[11]Assumptions!$B$69*'[11]NSF Spend'!J73 -> 36948577.66 | K34: =[11]Assumptions!$B$69*'[11]NSF Spend'!K73 -> 41409108.75 | L34: =[11]Assumptions!$B$69*'[11]NSF Spend'!L73 -> 46408127.09 | M34: =[11]Assumptions!$B$69*'[11]NSF Spend'!M73 -> 52010640.29 | N34: =[11]Assumptions!$B$69*'[11]NSF Spend'!N73 -> 58289503.87 | O34: =[11]Assumptions!$B$69*'[11]NSF Spend'!O73 -> 65326368.64 | P34: =[11]Assumptions!$B$69*'[11]NSF Spend'!P73 -> 73212742.55 | Q34: =[11]Assumptions!$B$69*'[11]NSF Spend'!Q73 -> 82051180.61 | R34: =[11]Assumptions!$B$69*'[11]NSF Spend'!R73 -> 91956618.54 | S34: =[11]Assumptions!$B$69*'[11]NSF Spend'!S73 -> 103057867.4
B35: Skills Programmes (SETA) | C35: =[11]Assumptions!$B$71*'[11]SETA Discretionary'!C57 -> 22383223.41 | D35: =[11]Assumptions!$B$71*'[11]SETA Discretionary'!D57 -> 25562571.83 | E35: =[11]Assumptions!$B$71*'[11]SETA Discretionary'!E57 -> 28610935 | F35: =[11]Assumptions!$B$71*'[11]SETA Discretionary'!F57 -> 31933082.39 | G35: =[11]Assumptions!$B$71*'[11]SETA Discretionary'!G57 -> 29677251.35 | H35: =[11]Assumptions!$B$71*'[11]SETA Discretionary'!H57 -> 30986282.37 | I35: =[11]Assumptions!$B$71*'[11]SETA Discretionary'!I57 -> 34727029.24 | J35: =[11]Assumptions!$B$71*'[11]SETA Discretionary'!J57 -> 38919369.07 | K35: =[11]Assumptions!$B$71*'[11]SETA Discretionary'!K57 -> 43617819.38 | L35: =[11]Assumptions!$B$71*'[11]SETA Discretionary'!L57 -> 48883479.17 | M35: =[11]Assumptions!$B$71*'[11]SETA Discretionary'!M57 -> 54784823.49 | N35: =[11]Assumptions!$B$71*'[11]SETA Discretionary'!N57 -> 61398593.88 | O35: =[11]Assumptions!$B$71*'[11]SETA Discretionary'!O57 -> 68810796.31 | P35: =[11]Assumptions!$B$71*'[11]SETA Discretionary'!P57 -> 77117819.64 | Q35: =[11]Assumptions!$B$71*'[11]SETA Discretionary'!Q57 -> 86427689.05 | R35: =[11]Assumptions!$B$71*'[11]SETA Discretionary'!R57 -> 96861470.78 | S35: =[11]Assumptions!$B$71*'[11]SETA Discretionary'!S57 -> 108554846.5

Sheet Infrastructure
B1: 2014 | C1: 2015 | D1: 2016 | E1: 2017 | F1: 2018 | G1: 2019 | H1: 2020 | I1: 2021 | J1: 2022 | K1: 2023 | L1: 2024 | M1: 2025 | N1: 2026 | O1: 2027 | P1: 2028 | Q1: 2029 | R1: 2030
A2: Number of FTEs | B2: =Enrolments!C90 -> 239629.0245 | C2: =Enrolments!D90 -> 267574.6882 | D2: =Enrolments!E90 -> 310566.5008 | E2: =Enrolments!F90 -> 353558.3134 | F2: =Enrolments!G90 -> 396550.126 | G2: =Enrolments!H90 -> 439541.9387 | H2: =Enrolments!I90 -> 482533.7513 | I2: =Enrolments!J90 -> 525525.5639 | J2: =Enrolments!K90 -> 568517.3765 | K2: =Enrolments!L90 -> 611509.1891 | L2: =Enrolments!M90 -> 654501.0018 | M2: =Enrolments!N90 -> 697492.8144 | N2: =Enrolments!O90 -> 740484.627 | O2: =Enrolments!P90 -> 783476.4396 | P2: =Enrolments!Q90 -> 826468.2523 | Q2: =Enrolments!R90 -> 869460.0649 | R2: =Enrolments!S90 -> 912451.8775 | T2: Status Quo
A3: Change in FTEs | C3: =C2-B2 -> 27945.66365 | D3: =D2-C2 -> 42991.81262 | E3: 42991.81262 | F3: 42991.81262 | G3: 42991.81262 | H3: 42991.81262 | I3: 42991.81262 | J3: 42991.81262 | K3: 42991.81262 | L3: 42991.81262 | M3: 42991.81262 | N3: 42991.81262 | O3: 42991.81262 | P3: 42991.81262 | Q3: 42991.81262 | R3: 42991.81262
A4: Number of FTEs | B4: =Enrolments!C98 -> 239629.0245 | C4: =Enrolments!D98 -> 267574.6882 | D4: =Enrolments!E98 -> 294703.0423 | E4: =Enrolments!F98 -> 321831.3964 | F4: =Enrolments!G98 -> 348959.7505 | G4: =Enrolments!H98 -> 376088.1047 | H4: =Enrolments!I98 -> 403216.4588 | I4: =Enrolments!J98 -> 430344.8129 | J4: =Enrolments!K98 -> 457473.167 | K4: =Enrolments!L98 -> 484601.5211 | L4: =Enrolments!M98 -> 511729.8753 | M4: =Enrolments!N98 -> 538858.2294 | N4: =Enrolments!O98 -> 565986.5835 | O4: =Enrolments!P98 -> 593114.9376 | P4: =Enrolments!Q98 -> 620243.2918 | Q4: =Enrolments!R98 -> 647371.6459 | R4: =Enrolments!S98 -> 674500 | T4: full Policy
A5: Change in FTEs | C5: =C4-B4 -> 27945.66365 | D5: 27128.35412 | E5: 27128.35412 | F5: 27128.35412 | G5: 27128.35412 | H5: 27128.35412 | I5: 27128.35412 | J5: 27128.35412 | K5: 27128.35412 | L5: 27128.35412 | M5: 27128.35412 | N5: 27128.35412 | O5: 27128.35412 | P5: 27128.35412 | Q5: 27128.35412 | R5: 27128.35412
A6: Number of FTEs | B6: =Enrolments!C106 -> 239424.4694 | C6: =Enrolments!D106 -> 259499.5026 | D6: =Enrolments!E106 -> 279574.5358 | E6: =Enrolments!F106 -> 299649.5689 | F6: =Enrolments!G106 -> 319724.6021 | G6: =Enrolments!H106 -> 339799.6352 | H6: =Enrolments!I106 -> 359874.6684 | I6: =Enrolments!J106 -> 379949.7016 | J6: =Enrolments!K106 -> 400024.7347 | K6: =Enrolments!L106 -> 420099.7679 | L6: =Enrolments!M106 -> 440174.801 | M6: =Enrolments!N106 -> 460249.8342 | N6: =Enrolments!O106 -> 480324.8674 | O6: =Enrolments!P106 -> 500399.9005 | P6: =Enrolments!Q106 -> 520474.9337 | Q6: =Enrolments!R106 -> 540549.9668 | R6: =Enrolments!S106 -> 560625 | T6: Balanced
A7: Change in FTEs | C7: =C6-B6 -> 20075.03316 | D7: 20075.03316 | E7: 20075.03316 | F7: 20075.03316 | G7: 20075.03316 | H7: 20075.03316 | I7: 20075.03316 | J7: 20075.03316 | K7: 20075.03316 | L7: 20075.03316 | M7: 20075.03316 | N7: 20075.03316 | O7: 20075.03316 | P7: 20075.03316 | Q7: 20075.03316 | R7: 20075.03316
C9: Equipment costs
A10: Cost per square meter (inflation adjusted) | B10: 13000 | C10: Basic | D10: 4000 | E10: FTE to seats ratio | F10: 2.5
E11: FTE to enrolment | F11: 1.926384927
A13: New campus estimates | D13: LEGEND
A14: Number of FTEs per campus | B14: 6000 | E14: Heading
A15: Number of FTEs per campus | B15: =B14/F11 -> 3114.642311 | E15: Item description
A16: Total cost of campus | B16: 453034103.3 | E16: User-defined Input
A17: Average cost per new campus FTE | B17: =B16/B15 -> 145453.0113 | E17: Fixed Assumption
E18: Output
A19: Existing campus expansion estimates | E19: Key output
A20: Ratio between expansion and new campus costs | B20: =1/3 -> 0.3333333333
A21: Average cost per new campus FTE | B21: =B20*B17 -> 48484.33711
A23: Final cost per FTE to use (2014)
A24: Ratio of expanding existing and building new | B24: =1/3 -> 0.3333333333
A25: Weighted cost (2014) | B25: =B24*B21+(1-B24)*B17*0.8 -> 93736.38509
A28: Cost per FTE new infrastructure | B28: =B25 -> 93736.38509 | C28: =B28*(1+Expenditure!$C$9)/(1+Expenditure!$C$5) -> 99548.04096 | D28: =C28*(1+Expenditure!$C$9)/(1+Expenditure!$C$5) -> 105720.0195 | E28: =D28*(1+Expenditure!$C$9)/(1+Expenditure!$C$5) -> 112274.6607 | F28: =E28*(1+Expenditure!$C$9)/(1+Expenditure!$C$5) -> 119235.6897 | G28: =F28*(1+Expenditure!$C$9)/(1+Expenditure!$C$5) -> 126628.3024 | H28: =G28*(1+Expenditure!$C$9)/(1+Expenditure!$C$5) -> 134479.2572 | I28: =H28*(1+Expenditure!$C$9)/(1+Expenditure!$C$5) -> 142816.9711 | J28: =I28*(1+Expenditure!$C$9)/(1+Expenditure!$C$5) -> 151671.6233 | K28: =J28*(1+Expenditure!$C$9)/(1+Expenditure!$C$5) -> 161075.264 | L28: =K28*(1+Expenditure!$C$9)/(1+Expenditure!$C$5) -> 171061.9304 | M28: =L28*(1+Expenditure!$C$9)/(1+Expenditure!$C$5) -> 181667.77 | N28: =M28*(1+Expenditure!$C$9)/(1+Expenditure!$C$5) -> 192931.1718 | O28: =N28*(1+Expenditure!$C$9)/(1+Expenditure!$C$5) -> 204892.9044 | P28: =O28*(1+Expenditure!$C$9)/(1+Expenditure!$C$5) -> 217596.2645 | Q28: =P28*(1+Expenditure!$C$9)/(1+Expenditure!$C$5) -> 231087.2329 | R28: =Q28*(1+Expenditure!$C$9)/(1+Expenditure!$C$5) -> 245414.6413
A29: Proportion requiring infrastructure | B29: 0 | C29: =Expenditure!$C$22 -> 0 | D29: =Expenditure!$C$22 -> 0 | E29: =Expenditure!$C$22 -> 0 | F29: =Expenditure!$C$22 -> 0 | G29: =Expenditure!$C$22 -> 0 | H29: =Expenditure!$C$22 -> 0 | I29: =Expenditure!$C$22 -> 0 | J29: =Expenditure!$C$22 -> 0 | K29: =Expenditure!$C$22 -> 0 | L29: =Expenditure!$C$22 -> 0 | M29: =Expenditure!$C$22 -> 0 | N29: =Expenditure!$C$22 -> 0 | O29: =Expenditure!$C$22 -> 0 | P29: =Expenditure!$C$22 -> 0 | Q29: =Expenditure!$C$22 -> 0 | R29: =Expenditure!$C$22 -> 0
A30: Total new infrastructure costs required | C30: =C3*B$28*Expenditure!$C$22 -> 0 | D30: =D3*D$28*D29 -> 0 | E30: =E3*D$28*E29 -> 0 | F30: 0 | G30: 0 | H30: 0 | I30: 0 | J30: 0 | K30: 0 | L30: 0 | M30: 0 | N30: 0 | O30: 0 | P30: 0 | Q30: 0 | R30: 0 | S30: =SUM(C30:R30) -> 0 | T30: Status Quo
A31: Total new infrastructure costs required | C31: =C5*B$28*Expenditure!$D$22*(1+Expenditure!$C$9)/(1+Expenditure!$C$5) -> 1390968035 | D31: =D5*C$28*Expenditure!$D$22*(1+Expenditure!$C$9)/(1+Expenditure!$C$5) -> 1434005063 | E31: =E5*D$28*Expenditure!$D$22 -> 1434005063 | F31: =F5*E$28*Expenditure!$D$22 -> 1522913377 | G31: =G5*F$28*Expenditure!$D$22 -> 1617334007 | H31: =H5*G$28*Expenditure!$D$22 -> 1717608715 | I31: =I5*H$28*Expenditure!$D$22 -> 1824100456 | J31: =J5*I$28*Expenditure!$D$22 -> 1937194684 | K31: =K5*J$28*Expenditure!$D$22 -> 2057300754 | L31: =L5*K$28*Expenditure!$D$22 -> 2184853401 | M31: =M5*L$28*Expenditure!$D$22 -> 2320314312 | N31: =N5*M$28*Expenditure!$D$22 -> 2464173799 | O31: =O5*N$28*Expenditure!$D$22 -> 2616952575 | P31: =P5*O$28*Expenditure!$D$22 -> 2779203634 | Q31: =Q5*P$28*Expenditure!$D$22 -> 2951514260 | R31: =R5*Q$28*Expenditure!$D$22 -> 3134508144 | S31: =SUM(D31:R31) -> 3.199598224e+10 | T31: Full Policy
A32: Total new infrastructure costs required | C32: =C7*B$28*Expenditure!$E$22 -> 282264155.8 | D32: =D7*C$28*Expenditure!$E$22 -> 299764533.5 | E32: =E7*D$28*Expenditure!$E$22 -> 318349934.6 | F32: =F7*E$28*Expenditure!$E$22 -> 338087630.5 | G32: =G7*F$28*Expenditure!$E$22 -> 359049063.6 | H32: =H7*G$28*Expenditure!$E$22 -> 381310105.6 | I32: =I7*H$28*Expenditure!$E$22 -> 404951332.1 | J32: =J7*I$28*Expenditure!$E$22 -> 430058314.7 | K32: =K7*J$28*Expenditure!$E$22 -> 456721930.2 | L32: =L7*K$28*Expenditure!$E$22 -> 485038689.9 | M32: =M7*L$28*Expenditure!$E$22 -> 515111088.6 | N32: =N7*M$28*Expenditure!$E$22 -> 547047976.1 | O32: =O7*N$28*Expenditure!$E$22 -> 580964950.7 | P32: =P7*O$28*Expenditure!$E$22 -> 616984777.6 | Q32: =Q7*P$28*Expenditure!$E$22 -> 655237833.8 | R32: =R7*Q$28*Expenditure!$E$22 -> 695862579.5 | S32: =SUM(D32:R32) -> 7084540741 | T32: Balanced
A35: Cost per sqm | B35: 128
A36: Number of learners per sqm | B36: 2
A37: Status Quo | B37: =B$6*$B$35/$B$36 -> 15323166.04 | C37: =C$6*$B$35/$B$36 -> 16607968.17 | D37: 17892770.29 | E37: 19177572.41 | F37: 20462374.53 | G37: 21747176.66 | H37: 23031978.78 | I37: 24316780.9 | J37: 25601583.02 | K37: 26886385.14 | L37: 28171187.27 | M37: 29455989.39 | N37: 30740791.51 | O37: 32025593.63 | P37: 33310395.76 | Q37: 34595197.88 | R37: 35880000
A38: Full Policy
A39: Mixed
